Dept/Family,Entity,Expense Type,Expense Area,Supplier,Payment Date, Amount ,SME,UNSPCC Code,UNSPCC Description
"Department for Levelling Up, Housing and Communities",Homes England,MISC PROFESSIONAL FEES,Chief Customer Office,HM LAND REGISTRY,11/04/2023, 966.00 ,PUB,80131700,Escrow and title services
"Department for Levelling Up, Housing and Communities",Homes England,REV GRNTS TO LOCAL AUTHORITIES,Investment,MANCHESTER CITY COUNCIL,04/04/2023," 3,375.00 ",PUB,None,Grants
"Department for Levelling Up, Housing and Communities",Homes England,REV GRNTS TO LOCAL AUTHORITIES,Investment,MANCHESTER CITY COUNCIL,04/04/2023," 33,750.00 ",PUB,None,Grants
"Department for Levelling Up, Housing and Communities",Homes England,REV GRNTS TO LOCAL AUTHORITIES,Investment,MANCHESTER CITY COUNCIL,05/04/2023," 13,500.00 ",PUB,None,Grants
"Department for Levelling Up, Housing and Communities",Homes England,REV GRNTS TO LOCAL AUTHORITIES,Investment,MANCHESTER CITY COUNCIL,05/04/2023," 10,541.00 ",PUB,None,Grants
"Department for Levelling Up, Housing and Communities",Homes England,REV GRNTS TO LOCAL AUTHORITIES,Investment,MANCHESTER CITY COUNCIL,05/04/2023," 13,500.00 ",PUB,None,Grants
"Department for Levelling Up, Housing and Communities",Homes England,REV GRNTS TO LOCAL AUTHORITIES,Investment,MANCHESTER CITY COUNCIL,05/04/2023," 13,500.00 ",PUB,None,Grants
"Department for Levelling Up, Housing and Communities",Homes England,REV GRNTS TO LOCAL AUTHORITIES,Investment,MANCHESTER CITY COUNCIL,05/04/2023," 10,431.00 ",PUB,None,Grants
"Department for Levelling Up, Housing and Communities",Homes England,REV GRNTS TO LOCAL AUTHORITIES,Investment,MANCHESTER CITY COUNCIL,05/04/2023," 13,500.00 ",PUB,None,Grants
"Department for Levelling Up, Housing and Communities",Homes England,REV GRNTS TO LOCAL AUTHORITIES,Investment,MANCHESTER CITY COUNCIL,05/04/2023," 10,431.00 ",PUB,None,Grants
"Department for Levelling Up, Housing and Communities",Homes England,REV GRNTS TO LOCAL AUTHORITIES,Investment,MANCHESTER CITY COUNCIL,05/04/2023," 13,500.00 ",PUB,None,Grants
"Department for Levelling Up, Housing and Communities",Homes England,REV GRNTS TO LOCAL AUTHORITIES,Investment,MANCHESTER CITY COUNCIL,05/04/2023," 10,541.00 ",PUB,None,Grants
"Department for Levelling Up, Housing and Communities",Homes England,REV GRNTS TO LOCAL AUTHORITIES,Investment,MANCHESTER CITY COUNCIL,05/04/2023," 10,541.00 ",PUB,None,Grants
"Department for Levelling Up, Housing and Communities",Homes England,REV GRNTS TO LOCAL AUTHORITIES,Investment,MANCHESTER CITY COUNCIL,05/04/2023," 13,500.00 ",PUB,None,Grants
"Department for Levelling Up, Housing and Communities",Homes England,REV GRNTS TO LOCAL AUTHORITIES,Investment,MANCHESTER CITY COUNCIL,06/04/2023," 3,375.00 ",PUB,None,Grants
"Department for Levelling Up, Housing and Communities",Homes England,CAP GRNTS TO LOCAL AUTHORITIES,Investment,WIGAN COUNCIL,05/04/2023," 126,750.00 ",PUB,None,Grants
"Department for Levelling Up, Housing and Communities",Homes England,CAP GRNTS TO LOCAL AUTHORITIES,Investment,WIGAN COUNCIL,05/04/2023," 39,000.00 ",PUB,None,Grants
"Department for Levelling Up, Housing and Communities",Homes England,CAP GRNTS TO LOCAL AUTHORITIES,Investment,DONCASTER METROPOLITAN BOROUGH COUNCIL,11/04/2023," 100,000.00 ",PUB,None,Grants
"Department for Levelling Up, Housing and Communities",Homes England,CAP GRNTS TO LOCAL AUTHORITIES,Investment,SHEFFIELD CITY COUNCIL,05/04/2023," 78,000.00 ",PUB,None,Grants
"Department for Levelling Up, Housing and Communities",Homes England,CAP GRNTS TO LOCAL AUTHORITIES,Investment,SHEFFIELD CITY COUNCIL,05/04/2023," 175,500.00 ",PUB,None,Grants
"Department for Levelling Up, Housing and Communities",Homes England,REV GRNTS TO LOCAL AUTHORITIES,Investment,SHEFFIELD CITY COUNCIL,06/04/2023," 14,465.00 ",PUB,None,Grants
"Department for Levelling Up, Housing and Communities",Homes England,REV GRNTS TO LOCAL AUTHORITIES,Investment,SHEFFIELD CITY COUNCIL,11/04/2023, 761.00 ,PUB,None,Grants
"Department for Levelling Up, Housing and Communities",Homes England,CAP GRNTS TO LOCAL AUTHORITIES,Investment,SHEFFIELD CITY COUNCIL,11/04/2023," 185,250.00 ",PUB,None,Grants
"Department for Levelling Up, Housing and Communities",Homes England,REV GRNTS TO LOCAL AUTHORITIES,Investment,SHEFFIELD CITY COUNCIL,06/04/2023," 14,465.00 ",PUB,None,Grants
"Department for Levelling Up, Housing and Communities",Homes England,REV GRNTS TO LOCAL AUTHORITIES,Investment,SHEFFIELD CITY COUNCIL,11/04/2023, 761.00 ,PUB,None,Grants
"Department for Levelling Up, Housing and Communities",Homes England,REV GRNTS TO LOCAL AUTHORITIES,Investment,SHEFFIELD CITY COUNCIL,06/04/2023," 14,465.00 ",PUB,None,Grants
"Department for Levelling Up, Housing and Communities",Homes England,CAP GRNTS TO LOCAL AUTHORITIES,Investment,SHEFFIELD CITY COUNCIL,06/04/2023," 97,500.00 ",PUB,None,Grants
"Department for Levelling Up, Housing and Communities",Homes England,REV GRNTS TO LOCAL AUTHORITIES,Investment,SHEFFIELD CITY COUNCIL,06/04/2023," 456,000.00 ",PUB,None,Grants
"Department for Levelling Up, Housing and Communities",Homes England,REV GRNTS TO LOCAL AUTHORITIES,Investment,SHEFFIELD CITY COUNCIL,11/04/2023, 761.00 ,PUB,None,Grants
"Department for Levelling Up, Housing and Communities",Homes England,CAP GRNTS TO LOCAL AUTHORITIES,Investment,GATESHEAD METROPOLITAN BOROUGH COUNCIL,11/04/2023," 76,852.00 ",PUB,None,Grants
"Department for Levelling Up, Housing and Communities",Homes England,REV GRNTS TO LOCAL AUTHORITIES,Investment,NEWCASTLE CITY COUNCIL,05/04/2023," 45,287.00 ",PUB,None,Grants
"Department for Levelling Up, Housing and Communities",Homes England,REV GRNTS TO LOCAL AUTHORITIES,Investment,NEWCASTLE CITY COUNCIL,11/04/2023," 135,862.00 ",PUB,None,Grants
"Department for Levelling Up, Housing and Communities",Homes England,REV GRNTS TO LOCAL AUTHORITIES,Investment,WOLVERHAMPTON CITY COUNCIL,06/04/2023," 16,000.00 ",PUB,None,Grants
"Department for Levelling Up, Housing and Communities",Homes England,REV GRNTS TO LOCAL AUTHORITIES,Investment,DARLINGTON BOROUGH COUNCIL,06/04/2023," 2,187.00 ",PUB,None,Grants
"Department for Levelling Up, Housing and Communities",Homes England,REV GRNTS TO LOCAL AUTHORITIES,Investment,DARLINGTON BOROUGH COUNCIL,06/04/2023," 2,118.00 ",PUB,None,Grants
"Department for Levelling Up, Housing and Communities",Homes England,REV GRNTS TO LOCAL AUTHORITIES,Investment,DARLINGTON BOROUGH COUNCIL,06/04/2023," 2,187.00 ",PUB,None,Grants
"Department for Levelling Up, Housing and Communities",Homes England,REV GRNTS TO LOCAL AUTHORITIES,Investment,THE COUNTY COUNCIL OF DURHAM,03/04/2023," 9,000.00 ",PUB,None,Grants
"Department for Levelling Up, Housing and Communities",Homes England,REV GRNTS TO LOCAL AUTHORITIES,Investment,THE COUNTY COUNCIL OF DURHAM,03/04/2023," 9,000.00 ",PUB,None,Grants
"Department for Levelling Up, Housing and Communities",Homes England,REV GRNTS TO LOCAL AUTHORITIES,Investment,THE COUNTY COUNCIL OF DURHAM,03/04/2023," 1,000.00 ",PUB,None,Grants
"Department for Levelling Up, Housing and Communities",Homes England,REV GRNTS TO LOCAL AUTHORITIES,Investment,THE COUNTY COUNCIL OF DURHAM,03/04/2023," 1,000.00 ",PUB,None,Grants
"Department for Levelling Up, Housing and Communities",Homes England,REV GRNTS TO LOCAL AUTHORITIES,Investment,THE COUNTY COUNCIL OF DURHAM,04/04/2023," 1,000.00 ",PUB,None,Grants
"Department for Levelling Up, Housing and Communities",Homes England,REV GRNTS TO LOCAL AUTHORITIES,Investment,THE COUNTY COUNCIL OF DURHAM,04/04/2023," 9,000.00 ",PUB,None,Grants
"Department for Levelling Up, Housing and Communities",Homes England,REV GRNTS TO LOCAL AUTHORITIES,Investment,THE COUNTY COUNCIL OF DURHAM,04/04/2023," 1,000.00 ",PUB,None,Grants
"Department for Levelling Up, Housing and Communities",Homes England,REV GRNTS TO LOCAL AUTHORITIES,Investment,THE COUNTY COUNCIL OF DURHAM,04/04/2023," 10,000.00 ",PUB,None,Grants
"Department for Levelling Up, Housing and Communities",Homes England,REV GRNTS TO LOCAL AUTHORITIES,Investment,THE COUNTY COUNCIL OF DURHAM,04/04/2023," 1,000.00 ",PUB,None,Grants
"Department for Levelling Up, Housing and Communities",Homes England,REV GRNTS TO LOCAL AUTHORITIES,Investment,THE COUNTY COUNCIL OF DURHAM,04/04/2023," 1,000.00 ",PUB,None,Grants
"Department for Levelling Up, Housing and Communities",Homes England,REV GRNTS TO LOCAL AUTHORITIES,Investment,THE COUNTY COUNCIL OF DURHAM,04/04/2023," 10,000.00 ",PUB,None,Grants
"Department for Levelling Up, Housing and Communities",Homes England,REV GRNTS TO LOCAL AUTHORITIES,Investment,THE COUNTY COUNCIL OF DURHAM,04/04/2023," 1,000.00 ",PUB,None,Grants
"Department for Levelling Up, Housing and Communities",Homes England,REV GRNTS TO LOCAL AUTHORITIES,Investment,THE COUNTY COUNCIL OF DURHAM,04/04/2023," 1,000.00 ",PUB,None,Grants
"Department for Levelling Up, Housing and Communities",Homes England,REV GRNTS TO LOCAL AUTHORITIES,Investment,THE COUNTY COUNCIL OF DURHAM,04/04/2023," 1,000.00 ",PUB,None,Grants
"Department for Levelling Up, Housing and Communities",Homes England,REV GRNTS TO LOCAL AUTHORITIES,Investment,THE COUNTY COUNCIL OF DURHAM,05/04/2023," 9,000.00 ",PUB,None,Grants
"Department for Levelling Up, Housing and Communities",Homes England,REV GRNTS TO LOCAL AUTHORITIES,Investment,THE COUNTY COUNCIL OF DURHAM,05/04/2023," 9,000.00 ",PUB,None,Grants
"Department for Levelling Up, Housing and Communities",Homes England,REV GRNTS TO LOCAL AUTHORITIES,Investment,THE COUNTY COUNCIL OF DURHAM,05/04/2023," 10,000.00 ",PUB,None,Grants
"Department for Levelling Up, Housing and Communities",Homes England,REV GRNTS TO LOCAL AUTHORITIES,Investment,THE COUNTY COUNCIL OF DURHAM,05/04/2023," 9,000.00 ",PUB,None,Grants
"Department for Levelling Up, Housing and Communities",Homes England,REV GRNTS TO LOCAL AUTHORITIES,Investment,THE COUNTY COUNCIL OF DURHAM,05/04/2023," 9,000.00 ",PUB,None,Grants
"Department for Levelling Up, Housing and Communities",Homes England,REV GRNTS TO LOCAL AUTHORITIES,Investment,THE COUNTY COUNCIL OF DURHAM,11/04/2023," 5,625.00 ",PUB,None,Grants
"Department for Levelling Up, Housing and Communities",Homes England,REV GRNTS TO LOCAL AUTHORITIES,Investment,THE COUNTY COUNCIL OF DURHAM,06/04/2023," 15,000.00 ",PUB,None,Grants
"Department for Levelling Up, Housing and Communities",Homes England,REV GRNTS TO LOCAL AUTHORITIES,Investment,THE COUNTY COUNCIL OF DURHAM,11/04/2023," 1,000.00 ",PUB,None,Grants
"Department for Levelling Up, Housing and Communities",Homes England,REV GRNTS TO LOCAL AUTHORITIES,Investment,THE COUNTY COUNCIL OF DURHAM,11/04/2023," 5,625.00 ",PUB,None,Grants
"Department for Levelling Up, Housing and Communities",Homes England,REV GRNTS TO LOCAL AUTHORITIES,Investment,THE COUNTY COUNCIL OF DURHAM,06/04/2023," 10,000.00 ",PUB,None,Grants
"Department for Levelling Up, Housing and Communities",Homes England,REV GRNTS TO LOCAL AUTHORITIES,Investment,THE COUNTY COUNCIL OF DURHAM,11/04/2023," 1,000.00 ",PUB,None,Grants
"Department for Levelling Up, Housing and Communities",Homes England,REV GRNTS TO LOCAL AUTHORITIES,Investment,THE COUNTY COUNCIL OF DURHAM,11/04/2023," 5,625.00 ",PUB,None,Grants
"Department for Levelling Up, Housing and Communities",Homes England,REV GRNTS TO LOCAL AUTHORITIES,Investment,THE COUNTY COUNCIL OF DURHAM,11/04/2023," 1,000.00 ",PUB,None,Grants
"Department for Levelling Up, Housing and Communities",Homes England,REV GRNTS TO LOCAL AUTHORITIES,Investment,THE COUNTY COUNCIL OF DURHAM,11/04/2023," 1,000.00 ",PUB,None,Grants
"Department for Levelling Up, Housing and Communities",Homes England,REV GRNTS TO LOCAL AUTHORITIES,Investment,THE COUNTY COUNCIL OF DURHAM,11/04/2023," 5,625.00 ",PUB,None,Grants
"Department for Levelling Up, Housing and Communities",Homes England,REV GRNTS TO LOCAL AUTHORITIES,Investment,THE COUNTY COUNCIL OF DURHAM,06/04/2023," 10,000.00 ",PUB,None,Grants
"Department for Levelling Up, Housing and Communities",Homes England,REV GRNTS TO LOCAL AUTHORITIES,Investment,THE COUNTY COUNCIL OF DURHAM,11/04/2023," 5,625.00 ",PUB,None,Grants
"Department for Levelling Up, Housing and Communities",Homes England,REV GRNTS TO LOCAL AUTHORITIES,Investment,THE COUNTY COUNCIL OF DURHAM,11/04/2023," 5,625.00 ",PUB,None,Grants
"Department for Levelling Up, Housing and Communities",Homes England,REV GRNTS TO LOCAL AUTHORITIES,Investment,THE COUNTY COUNCIL OF DURHAM,06/04/2023," 10,000.00 ",PUB,None,Grants
"Department for Levelling Up, Housing and Communities",Homes England,REV GRNTS TO LOCAL AUTHORITIES,Investment,THE COUNTY COUNCIL OF DURHAM,11/04/2023," 1,000.00 ",PUB,None,Grants
"Department for Levelling Up, Housing and Communities",Homes England,REV GRNTS TO LOCAL AUTHORITIES,Investment,THE COUNTY COUNCIL OF DURHAM,11/04/2023," 5,625.00 ",PUB,None,Grants
"Department for Levelling Up, Housing and Communities",Homes England,REV GRNTS TO LOCAL AUTHORITIES,Investment,THE COUNTY COUNCIL OF DURHAM,11/04/2023," 1,000.00 ",PUB,None,Grants
"Department for Levelling Up, Housing and Communities",Homes England,REV GRNTS TO LOCAL AUTHORITIES,Investment,THE COUNTY COUNCIL OF DURHAM,06/04/2023," 10,000.00 ",PUB,None,Grants
"Department for Levelling Up, Housing and Communities",Homes England,REV GRNTS TO LOCAL AUTHORITIES,Investment,THE COUNTY COUNCIL OF DURHAM,11/04/2023," 1,000.00 ",PUB,None,Grants
"Department for Levelling Up, Housing and Communities",Homes England,REV GRNTS TO LOCAL AUTHORITIES,Investment,THE COUNTY COUNCIL OF DURHAM,11/04/2023," 5,625.00 ",PUB,None,Grants
"Department for Levelling Up, Housing and Communities",Homes England,REV GRNTS TO LOCAL AUTHORITIES,Investment,THE COUNTY COUNCIL OF DURHAM,14/04/2023," 6,250.00 ",PUB,None,Grants
"Department for Levelling Up, Housing and Communities",Homes England,REV GRNTS TO LOCAL AUTHORITIES,Investment,THE COUNTY COUNCIL OF DURHAM,14/04/2023," 6,250.00 ",PUB,None,Grants
"Department for Levelling Up, Housing and Communities",Homes England,REV GRNTS TO LOCAL AUTHORITIES,Investment,THE COUNTY COUNCIL OF DURHAM,14/04/2023," 6,250.00 ",PUB,None,Grants
"Department for Levelling Up, Housing and Communities",Homes England,REV GRNTS TO LOCAL AUTHORITIES,Investment,THE COUNTY COUNCIL OF DURHAM,14/04/2023," 6,250.00 ",PUB,None,Grants
"Department for Levelling Up, Housing and Communities",Homes England,REV GRNTS TO LOCAL AUTHORITIES,Investment,THE COUNTY COUNCIL OF DURHAM,14/04/2023," 6,250.00 ",PUB,None,Grants
"Department for Levelling Up, Housing and Communities",Homes England,REV GRNTS TO LOCAL AUTHORITIES,Investment,THE COUNTY COUNCIL OF DURHAM,14/04/2023," 6,250.00 ",PUB,None,Grants
"Department for Levelling Up, Housing and Communities",Homes England,REV GRNTS TO LOCAL AUTHORITIES,Investment,THE COUNTY COUNCIL OF DURHAM,14/04/2023," 6,250.00 ",PUB,None,Grants
"Department for Levelling Up, Housing and Communities",Homes England,REV GRNTS TO LOCAL AUTHORITIES,Investment,THE COUNTY COUNCIL OF DURHAM,14/04/2023," 6,250.00 ",PUB,None,Grants
"Department for Levelling Up, Housing and Communities",Homes England,CAP GRNTS TO LOCAL AUTHORITIES,Investment,CITY OF YORK COUNCIL,18/04/2023," 19,200.00 ",PUB,None,Grants
"Department for Levelling Up, Housing and Communities",Homes England,REV GRNTS TO LOCAL AUTHORITIES,Investment,BRISTOL CITY COUNCIL,05/04/2023," 44,351.00 ",PUB,None,Grants
"Department for Levelling Up, Housing and Communities",Homes England,REV GRNTS TO LOCAL AUTHORITIES,Investment,BRISTOL CITY COUNCIL,05/04/2023," 4,564.00 ",PUB,None,Grants
"Department for Levelling Up, Housing and Communities",Homes England,REV GRNTS TO LOCAL AUTHORITIES,Investment,BRISTOL CITY COUNCIL,14/04/2023," 36,388.00 ",PUB,None,Grants
"Department for Levelling Up, Housing and Communities",Homes England,REV GRNTS TO LOCAL AUTHORITIES,Investment,BRISTOL CITY COUNCIL,24/04/2023," 4,040.00 ",PUB,None,Grants
"Department for Levelling Up, Housing and Communities",Homes England,REV GRNTS TO LOCAL AUTHORITIES,Investment,CORNWALL COUNCIL,03/04/2023," 2,797.00 ",PUB,None,Grants
"Department for Levelling Up, Housing and Communities",Homes England,REV GRNTS TO LOCAL AUTHORITIES,Investment,CORNWALL COUNCIL,03/04/2023," 25,178.00 ",PUB,None,Grants
"Department for Levelling Up, Housing and Communities",Homes England,REV GRNTS TO LOCAL AUTHORITIES,Investment,CORNWALL COUNCIL,04/04/2023," 27,975.00 ",PUB,None,Grants
"Department for Levelling Up, Housing and Communities",Homes England,REV GRNTS TO LOCAL AUTHORITIES,Investment,CORNWALL COUNCIL,05/04/2023," 27,975.00 ",PUB,None,Grants
"Department for Levelling Up, Housing and Communities",Homes England,REV GRNTS TO LOCAL AUTHORITIES,Investment,CORNWALL COUNCIL,11/04/2023," 399,000.00 ",PUB,None,Grants
"Department for Levelling Up, Housing and Communities",Homes England,REV GRNTS TO LOCAL AUTHORITIES,Investment,CORNWALL COUNCIL,11/04/2023," 22,500.00 ",PUB,None,Grants
"Department for Levelling Up, Housing and Communities",Homes England,REV GRNTS TO LOCAL AUTHORITIES,Investment,CORNWALL COUNCIL,11/04/2023," 1,282,500.00 ",PUB,None,Grants
"Department for Levelling Up, Housing and Communities",Homes England,REV GRNTS TO LOCAL AUTHORITIES,Investment,CORNWALL COUNCIL,20/04/2023, 783.00 ,PUB,None,Grants
"Department for Levelling Up, Housing and Communities",Homes England,REV GRNTS TO LOCAL AUTHORITIES,Investment,CORNWALL COUNCIL,20/04/2023, 783.00 ,PUB,None,Grants
"Department for Levelling Up, Housing and Communities",Homes England,CAP GRNTS TO LOCAL AUTHORITIES,Investment,CORNWALL COUNCIL,25/04/2023," 35,000.00 ",PUB,None,Grants
"Department for Levelling Up, Housing and Communities",Homes England,REV GRNTS TO LOCAL AUTHORITIES,Investment,CORNWALL COUNCIL,27/04/2023," 1,458.00 ",PUB,None,Grants
"Department for Levelling Up, Housing and Communities",Homes England,REV GRNTS TO LOCAL AUTHORITIES,Investment,CORNWALL COUNCIL,27/04/2023, 580.00 ,PUB,None,Grants
"Department for Levelling Up, Housing and Communities",Homes England,REV GRNTS TO LOCAL AUTHORITIES,Investment,CORNWALL COUNCIL,27/04/2023, 580.00 ,PUB,None,Grants
"Department for Levelling Up, Housing and Communities",Homes England,REV GRNTS TO LOCAL AUTHORITIES,Investment,SWINDON BOROUGH COUNCIL,03/04/2023," 28,125.00 ",PUB,None,Grants
"Department for Levelling Up, Housing and Communities",Homes England,REV GRNTS TO LOCAL AUTHORITIES,Investment,SWINDON BOROUGH COUNCIL,05/04/2023," 31,250.00 ",PUB,None,Grants
"Department for Levelling Up, Housing and Communities",Homes England,CAP GRNTS TO LOCAL AUTHORITIES,Investment,SWINDON BOROUGH COUNCIL,28/04/2023," 1,560,719.20 ",PUB,None,Grants
"Department for Levelling Up, Housing and Communities",Homes England,CAP GRNTS TO LOCAL AUTHORITIES,Investment,WILTSHIRE COUNCIL,25/04/2023," 95,000.00 ",PUB,None,Grants
"Department for Levelling Up, Housing and Communities",Homes England,REV GRNTS TO LOCAL AUTHORITIES,Investment,CENTRAL BEDFORDSHIRE COUNCIL,04/04/2023," 22,500.00 ",PUB,None,Grants
"Department for Levelling Up, Housing and Communities",Homes England,REV GRNTS TO LOCAL AUTHORITIES,Investment,CENTRAL BEDFORDSHIRE COUNCIL,05/04/2023," 25,000.00 ",PUB,None,Grants
"Department for Levelling Up, Housing and Communities",Homes England,REV GRNTS TO LOCAL AUTHORITIES,Investment,MEDWAY COUNCIL,11/04/2023," 4,062.00 ",PUB,None,Grants
"Department for Levelling Up, Housing and Communities",Homes England,REV GRNTS TO LOCAL AUTHORITIES,Investment,MEDWAY COUNCIL,11/04/2023," 4,062.00 ",PUB,None,Grants
"Department for Levelling Up, Housing and Communities",Homes England,REV GRNTS TO LOCAL AUTHORITIES,Investment,WEST BERKSHIRE DISTRICT COUNCIL,05/04/2023," 8,405.00 ",PUB,None,Grants
"Department for Levelling Up, Housing and Communities",Homes England,REV GRNTS TO LOCAL AUTHORITIES,Investment,WEST BERKSHIRE DISTRICT COUNCIL,11/04/2023, 442.00 ,PUB,None,Grants
"Department for Levelling Up, Housing and Communities",Homes England,REV GRNTS TO LOCAL AUTHORITIES,Investment,BRIGHTON & HOVE CITY COUNCIL,04/04/2023," 30,000.00 ",PUB,None,Grants
"Department for Levelling Up, Housing and Communities",Homes England,BUILDINGS-VACANT RATES,Development,WELWYN HATFIELD COUNCIL,26/04/2023," 3,642.70 ",PUB,80131500,Lease and rental of property or building
"Department for Levelling Up, Housing and Communities",Homes England,INSURANCES,Chief Operating Officer,COVENTRY CITY COUNCIL,03/04/2023, 19.97 ,PUB,84131500,Insurance services for structures and property and possessions
"Department for Levelling Up, Housing and Communities",Homes England,INSURANCES,Chief Operating Officer,COVENTRY CITY COUNCIL,03/04/2023," 2,779.45 ",PUB,84131500,Insurance services for structures and property and possessions
"Department for Levelling Up, Housing and Communities",Homes England,INSURANCES,Chief Operating Officer,COVENTRY CITY COUNCIL,03/04/2023, 25.72 ,PUB,84131500,Insurance services for structures and property and possessions
"Department for Levelling Up, Housing and Communities",Homes England,INSURANCES,Chief Operating Officer,COVENTRY CITY COUNCIL,03/04/2023," 2,002.36 ",PUB,84131500,Insurance services for structures and property and possessions
"Department for Levelling Up, Housing and Communities",Homes England,RATES,Chief Operating Officer,COVENTRY CITY COUNCIL,14/04/2023," 107,008.00 ",PUB,80131500,Lease and rental of property or building
"Department for Levelling Up, Housing and Communities",Homes England,RENT,Chief Operating Officer,COVENTRY CITY COUNCIL,27/04/2023," 81,764.70 ",PUB,80131500,Lease and rental of property or building
"Department for Levelling Up, Housing and Communities",Homes England,RATES,Chief Operating Officer,COVENTRY CITY COUNCIL,27/04/2023, 34.33 ,PUB,80131500,Lease and rental of property or building
"Department for Levelling Up, Housing and Communities",Homes England,RATES,Chief Operating Officer,COVENTRY CITY COUNCIL,27/04/2023," 2,156.41 ",PUB,80131500,Lease and rental of property or building
"Department for Levelling Up, Housing and Communities",Homes England,CAP GRNTS TO LOCAL AUTHORITIES,Investment,BOLSOVER DISTRICT COUNCIL,06/04/2023," 62,500.00 ",PUB,None,Grants
"Department for Levelling Up, Housing and Communities",Homes England,CAP GRNTS TO LOCAL AUTHORITIES,Investment,BOLSOVER DISTRICT COUNCIL,06/04/2023," 237,438.00 ",PUB,None,Grants
"Department for Levelling Up, Housing and Communities",Homes England,MORTGAGE ADMINISTRATION,Corporate Resources,GEMINI CONSULTANTS LTD,13/04/2023," 2,476.80 ",MIC,80131800,Real estate management services
"Department for Levelling Up, Housing and Communities",Homes England,REV GRNTS TO LOCAL AUTHORITIES,Investment,EXETER CITY COUNCIL,05/04/2023," 4,174.00 ",PUB,None,Grants
"Department for Levelling Up, Housing and Communities",Homes England,PENSION SCHEME CONTRIBUTIONS,Corporate Allocations,LPFA,05/04/2023," 6,812.64 ",SMA,84131700,Pension funds
"Department for Levelling Up, Housing and Communities",Homes England,REV GRNTS TO LOCAL AUTHORITIES,Investment,EASTBOURNE BOROUGH COUNCIL,05/04/2023," 3,750.00 ",PUB,None,Grants
"Department for Levelling Up, Housing and Communities",Homes England,REV GRNTS TO LOCAL AUTHORITIES,Investment,EASTBOURNE BOROUGH COUNCIL,05/04/2023," 37,500.00 ",PUB,None,Grants
"Department for Levelling Up, Housing and Communities",Homes England,REV GRNTS TO LOCAL AUTHORITIES,Investment,EASTBOURNE BOROUGH COUNCIL,05/04/2023," 1,575.00 ",PUB,None,Grants
"Department for Levelling Up, Housing and Communities",Homes England,REV GRNTS TO LOCAL AUTHORITIES,Investment,EASTBOURNE BOROUGH COUNCIL,11/04/2023," 37,500.00 ",PUB,None,Grants
"Department for Levelling Up, Housing and Communities",Homes England,REV GRNTS TO LOCAL AUTHORITIES,Investment,EASTBOURNE BOROUGH COUNCIL,11/04/2023," 3,750.00 ",PUB,None,Grants
"Department for Levelling Up, Housing and Communities",Homes England,REV GRNTS TO LOCAL AUTHORITIES,Investment,EASTBOURNE BOROUGH COUNCIL,06/04/2023," 33,750.00 ",PUB,None,Grants
"Department for Levelling Up, Housing and Communities",Homes England,ESTATE GENERAL MAINTENANCE,Development,IDVERDE LIMITED,20/04/2023," 1,160.19 ",LAR,72101500,Building maintenance and repair services
"Department for Levelling Up, Housing and Communities",Homes England,ESTATE GENERAL MAINTENANCE,Development,IDVERDE LIMITED,20/04/2023," 1,159.86 ",LAR,72101500,Building maintenance and repair services
"Department for Levelling Up, Housing and Communities",Homes England,ESTATE GENERAL MAINTENANCE,Development,IDVERDE LIMITED,20/04/2023," 1,159.86 ",LAR,72101500,Building maintenance and repair services
"Department for Levelling Up, Housing and Communities",Homes England,DRAINS & SEWERS,Development,ENVIRONMENT AGENCY,05/04/2023," 3,269.00 ",PUB,72101500,Building maintenance and repair services
"Department for Levelling Up, Housing and Communities",Homes England,IRON MOUNTAIN-STORAGE,Corporate Resources,IRON MOUNTAIN (UK) LTD,04/04/2023," 5,229.14 ",LAR,78131800,Specialized warehousing and storage
"Department for Levelling Up, Housing and Communities",Homes England,IRON MOUNTAIN-STORAGE,Corporate Resources,IRON MOUNTAIN (UK) LTD,26/04/2023," 1,133.64 ",LAR,78131800,Specialized warehousing and storage
"Department for Levelling Up, Housing and Communities",Homes England,Help to Buy 2 Additions,Investment,DOVER DISTRICT COUNCIL,04/04/2023," 70,000.00 ",PUB,None,Grants
"Department for Levelling Up, Housing and Communities",Homes England,ESTATE GENERAL MAINTENANCE,Development,PETERBOROUGH TREE SERVICES LTD,11/04/2023," 1,440.00 ",SMA,72101500,Building maintenance and repair services
"Department for Levelling Up, Housing and Communities",Homes England,ESTATE GENERAL MAINTENANCE,Development,PETERBOROUGH TREE SERVICES LTD,11/04/2023," 2,016.00 ",SMA,72101500,Building maintenance and repair services
"Department for Levelling Up, Housing and Communities",Homes England,POSTAGE/COURIERS,Chief Operating Officer,MK LONDON LINK,04/04/2023, 342.00 ,SMA,78102200,Postal and small parcel and courier services
"Department for Levelling Up, Housing and Communities",Homes England,TAXATION ADVICE  & PENALTIES,Corporate Resources,RSM UK AUDIT LLP,26/04/2023," 3,120.00 ",LAR,84111800,Taxation issues and preparation
"Department for Levelling Up, Housing and Communities",Homes England,ESTATE GENERAL MAINTENANCE,Development,GROUND CONTROL LIMITED,27/04/2023, 516.64 ,LAR,72101500,Building maintenance and repair services
"Department for Levelling Up, Housing and Communities",Homes England,CAP GRNTS TO LOCAL AUTHORITIES,Investment,CITY OF LINCOLN COUNCIL,11/04/2023," 136,125.00 ",PUB,None,Grants
"Department for Levelling Up, Housing and Communities",Homes England,CAP GRNTS TO LOCAL AUTHORITIES,Investment,CITY OF LINCOLN COUNCIL,11/04/2023," 148,500.00 ",PUB,None,Grants
"Department for Levelling Up, Housing and Communities",Homes England,REV GRNTS TO LOCAL AUTHORITIES,Investment,WEST NORTHAMPTONSHIRE COUNCIL,04/04/2023, 700.00 ,PUB,None,Grants
"Department for Levelling Up, Housing and Communities",Homes England,REV GRNTS TO LOCAL AUTHORITIES,Investment,WEST NORTHAMPTONSHIRE COUNCIL,04/04/2023, 350.00 ,PUB,None,Grants
"Department for Levelling Up, Housing and Communities",Homes England,REV GRNTS TO LOCAL AUTHORITIES,Investment,WEST NORTHAMPTONSHIRE COUNCIL,04/04/2023, 700.00 ,PUB,None,Grants
"Department for Levelling Up, Housing and Communities",Homes England,REV GRNTS TO LOCAL AUTHORITIES,Investment,WEST NORTHAMPTONSHIRE COUNCIL,04/04/2023, 700.00 ,PUB,None,Grants
"Department for Levelling Up, Housing and Communities",Homes England,REV GRNTS TO LOCAL AUTHORITIES,Investment,WEST NORTHAMPTONSHIRE COUNCIL,04/04/2023, 700.00 ,PUB,None,Grants
"Department for Levelling Up, Housing and Communities",Homes England,REV GRNTS TO LOCAL AUTHORITIES,Investment,WEST NORTHAMPTONSHIRE COUNCIL,04/04/2023, 700.00 ,PUB,None,Grants
"Department for Levelling Up, Housing and Communities",Homes England,REV GRNTS TO LOCAL AUTHORITIES,Investment,WEST NORTHAMPTONSHIRE COUNCIL,04/04/2023, 700.00 ,PUB,None,Grants
"Department for Levelling Up, Housing and Communities",Homes England,REV GRNTS TO LOCAL AUTHORITIES,Investment,WEST NORTHAMPTONSHIRE COUNCIL,04/04/2023, 700.00 ,PUB,None,Grants
"Department for Levelling Up, Housing and Communities",Homes England,REV GRNTS TO LOCAL AUTHORITIES,Investment,WEST NORTHAMPTONSHIRE COUNCIL,04/04/2023, 700.00 ,PUB,None,Grants
"Department for Levelling Up, Housing and Communities",Homes England,REV GRNTS TO LOCAL AUTHORITIES,Investment,WEST NORTHAMPTONSHIRE COUNCIL,04/04/2023, 700.00 ,PUB,None,Grants
"Department for Levelling Up, Housing and Communities",Homes England,REV GRNTS TO LOCAL AUTHORITIES,Investment,WEST NORTHAMPTONSHIRE COUNCIL,04/04/2023, 700.00 ,PUB,None,Grants
"Department for Levelling Up, Housing and Communities",Homes England,REV GRNTS TO LOCAL AUTHORITIES,Investment,WEST NORTHAMPTONSHIRE COUNCIL,04/04/2023, 700.00 ,PUB,None,Grants
"Department for Levelling Up, Housing and Communities",Homes England,REV GRNTS TO LOCAL AUTHORITIES,Investment,WEST NORTHAMPTONSHIRE COUNCIL,04/04/2023, 700.00 ,PUB,None,Grants
"Department for Levelling Up, Housing and Communities",Homes England,REV GRNTS TO LOCAL AUTHORITIES,Investment,WEST NORTHAMPTONSHIRE COUNCIL,04/04/2023, 700.00 ,PUB,None,Grants
"Department for Levelling Up, Housing and Communities",Homes England,REV GRNTS TO LOCAL AUTHORITIES,Investment,WEST NORTHAMPTONSHIRE COUNCIL,04/04/2023, 700.00 ,PUB,None,Grants
"Department for Levelling Up, Housing and Communities",Homes England,REV GRNTS TO LOCAL AUTHORITIES,Investment,WEST NORTHAMPTONSHIRE COUNCIL,05/04/2023, 700.00 ,PUB,None,Grants
"Department for Levelling Up, Housing and Communities",Homes England,REV GRNTS TO LOCAL AUTHORITIES,Investment,WEST NORTHAMPTONSHIRE COUNCIL,05/04/2023, 700.00 ,PUB,None,Grants
"Department for Levelling Up, Housing and Communities",Homes England,REV GRNTS TO LOCAL AUTHORITIES,Investment,WEST NORTHAMPTONSHIRE COUNCIL,06/04/2023, 700.00 ,PUB,None,Grants
"Department for Levelling Up, Housing and Communities",Homes England,BUILDINGS-VACANT RATES,Development,WEST NORTHAMPTONSHIRE COUNCIL,28/04/2023," 7,546.55 ",PUB,80131500,Lease and rental of property or building
"Department for Levelling Up, Housing and Communities",Homes England,CAP GRNTS TO LOCAL AUTHORITIES,Investment,THE COUNCIL OF THE  BOROUGH OF HARROGATE,18/04/2023," 23,400.00 ",PUB,None,Grants
"Department for Levelling Up, Housing and Communities",Homes England,CAP GRNTS TO LOCAL AUTHORITIES,Investment,THE COUNCIL OF THE  BOROUGH OF HARROGATE,18/04/2023," 23,600.00 ",PUB,None,Grants
"Department for Levelling Up, Housing and Communities",Homes England,CAP GRNTS TO LOCAL AUTHORITIES,Investment,THE COUNCIL OF THE  BOROUGH OF HARROGATE,18/04/2023," 24,800.00 ",PUB,None,Grants
"Department for Levelling Up, Housing and Communities",Homes England,CAP GRNTS TO LOCAL AUTHORITIES,Investment,THE COUNCIL OF THE  BOROUGH OF HARROGATE,25/04/2023," 25,600.00 ",PUB,None,Grants
"Department for Levelling Up, Housing and Communities",Homes England,CAP GRNTS TO LOCAL AUTHORITIES,Investment,THE COUNCIL OF THE  BOROUGH OF HARROGATE,27/04/2023," 22,800.00 ",PUB,None,Grants
"Department for Levelling Up, Housing and Communities",Homes England,CAP GRNTS TO LOCAL AUTHORITIES,Investment,CUMBRIA COUNTY COUNCIL,28/04/2023," 104,908.43 ",PUB,None,Grants
"Department for Levelling Up, Housing and Communities",Homes England,CAP GRNTS TO LOCAL AUTHORITIES,Investment,CUMBRIA COUNTY COUNCIL,28/04/2023," 149,285.08 ",PUB,None,Grants
"Department for Levelling Up, Housing and Communities",Homes England,CAP GRNTS TO LOCAL AUTHORITIES,Investment,CUMBRIA COUNTY COUNCIL,28/04/2023," 643,199.53 ",PUB,None,Grants
"Department for Levelling Up, Housing and Communities",Homes England,CAP GRNTS TO LOCAL AUTHORITIES,Investment,SEDGEMOOR DISTRICT COUNCIL,25/04/2023," 380,000.00 ",PUB,None,Grants
"Department for Levelling Up, Housing and Communities",Homes England,CAP GRNTS TO LOCAL AUTHORITIES,Investment,SEDGEMOOR DISTRICT COUNCIL,26/04/2023," 332,500.00 ",PUB,None,Grants
"Department for Levelling Up, Housing and Communities",Homes England,CAP GRNTS TO LOCAL AUTHORITIES,Investment,MID SUFFOLK DISTRICT COUNCIL,06/04/2023," 175,000.00 ",PUB,None,Grants
"Department for Levelling Up, Housing and Communities",Homes England,CAP GRNTS TO LOCAL AUTHORITIES,Investment,MID SUFFOLK DISTRICT COUNCIL,06/04/2023," 140,000.00 ",PUB,None,Grants
"Department for Levelling Up, Housing and Communities",Homes England,CAP GRNTS TO LOCAL AUTHORITIES,Investment,MID SUFFOLK DISTRICT COUNCIL,06/04/2023," 40,000.00 ",PUB,None,Grants
"Department for Levelling Up, Housing and Communities",Homes England,CAP GRNTS TO LOCAL AUTHORITIES,Investment,NUNEATON AND BEDWORTH BOROUGH COUNCIL,04/04/2023," 495,000.00 ",PUB,None,Grants
"Department for Levelling Up, Housing and Communities",Homes England,CAPITAL GRANTS TO RPs,Investment,FIRST CHOICE HOMES OLDHAM LIMITED,06/04/2023," 99,500.00 ",LAR,None,Grants
"Department for Levelling Up, Housing and Communities",Homes England,CAPITAL GRANTS TO RPs,Investment,FIRST CHOICE HOMES OLDHAM LIMITED,06/04/2023," 1,260,000.00 ",LAR,None,Grants
"Department for Levelling Up, Housing and Communities",Homes England,CAPITAL GRANTS TO RPs,Investment,FIRST CHOICE HOMES OLDHAM LIMITED,06/04/2023," 55,156.00 ",LAR,None,Grants
"Department for Levelling Up, Housing and Communities",Homes England,CAPITAL GRANTS TO RPs,Investment,FIRST CHOICE HOMES OLDHAM LIMITED,06/04/2023," 282,750.00 ",LAR,None,Grants
"Department for Levelling Up, Housing and Communities",Homes England,CAPITAL GRANTS TO RPs,Investment,FIRST CHOICE HOMES OLDHAM LIMITED,06/04/2023," 87,750.00 ",LAR,None,Grants
"Department for Levelling Up, Housing and Communities",Homes England,CAPITAL GRANTS TO RPs,Investment,FIRST CHOICE HOMES OLDHAM LIMITED,06/04/2023," 152,250.00 ",LAR,None,Grants
"Department for Levelling Up, Housing and Communities",Homes England,CAPITAL GRANTS TO RPs,Investment,FIRST CHOICE HOMES OLDHAM LIMITED,06/04/2023," 78,000.00 ",LAR,None,Grants
"Department for Levelling Up, Housing and Communities",Homes England,REV GRNTS TO LOCAL AUTHORITIES,Investment,ACTION HOUSING AND SUPPORT,06/04/2023," 2,681.00 ",MED,None,Grants
"Department for Levelling Up, Housing and Communities",Homes England,REV GRNTS TO LOCAL AUTHORITIES,Investment,ACTION HOUSING AND SUPPORT,11/04/2023," 2,361.00 ",MED,None,Grants
"Department for Levelling Up, Housing and Communities",Homes England,REV GRNTS TO LOCAL AUTHORITIES,Investment,ACTION HOUSING AND SUPPORT,06/04/2023," 3,055.00 ",MED,None,Grants
"Department for Levelling Up, Housing and Communities",Homes England,REV GRNTS TO LOCAL AUTHORITIES,Investment,ACTION HOUSING AND SUPPORT,06/04/2023," 2,949.00 ",MED,None,Grants
"Department for Levelling Up, Housing and Communities",Homes England,REV GRNTS TO LOCAL AUTHORITIES,Investment,ACTION HOUSING AND SUPPORT,14/04/2023," 1,915.00 ",MED,None,Grants
"Department for Levelling Up, Housing and Communities",Homes England,REV GRNTS TO LOCAL AUTHORITIES,Investment,ACTION HOUSING AND SUPPORT,20/04/2023," 26,654.00 ",MED,None,Grants
"Department for Levelling Up, Housing and Communities",Homes England,REV GRNTS TO LOCAL AUTHORITIES,Investment,ACTION HOUSING AND SUPPORT,25/04/2023," 29,615.00 ",MED,None,Grants
"Department for Levelling Up, Housing and Communities",Homes England,CAPITAL GRANTS TO RPs,Investment,BROMFORD HOME OWNERSHIP LTD,06/04/2023," 9,000.00 ",LAR,None,Grants
"Department for Levelling Up, Housing and Communities",Homes England,CAPITAL GRANTS TO RPs,Investment,BROMFORD HOME OWNERSHIP LTD,06/04/2023," 9,000.00 ",LAR,None,Grants
"Department for Levelling Up, Housing and Communities",Homes England,CAPITAL GRANTS TO RPs,Investment,BROMFORD HOME OWNERSHIP LTD,06/04/2023," 9,000.00 ",LAR,None,Grants
"Department for Levelling Up, Housing and Communities",Homes England,CAPITAL GRANTS TO RPs,Investment,BROMFORD HOME OWNERSHIP LTD,06/04/2023," 11,000.00 ",LAR,None,Grants
"Department for Levelling Up, Housing and Communities",Homes England,CAPITAL GRANTS TO RPs,Investment,BROMFORD HOME OWNERSHIP LTD,06/04/2023," 11,000.00 ",LAR,None,Grants
"Department for Levelling Up, Housing and Communities",Homes England,CAPITAL GRANTS TO RPs,Investment,BROMFORD HOME OWNERSHIP LTD,06/04/2023," 11,000.00 ",LAR,None,Grants
"Department for Levelling Up, Housing and Communities",Homes England,CAPITAL GRANTS TO RPs,Investment,BROMFORD HOME OWNERSHIP LTD,06/04/2023," 16,000.00 ",LAR,None,Grants
"Department for Levelling Up, Housing and Communities",Homes England,CAPITAL GRANTS TO RPs,Investment,BROMFORD HOME OWNERSHIP LTD,06/04/2023," 9,000.00 ",LAR,None,Grants
"Department for Levelling Up, Housing and Communities",Homes England,CAPITAL GRANTS TO RPs,Investment,RED KITE COMMUNITY HOUSING LTD,05/04/2023," 237,000.00 ",MED,None,Grants
"Department for Levelling Up, Housing and Communities",Homes England,REV GRNTS TO LOCAL AUTHORITIES,Investment,HUMANKIND CHARITY,05/04/2023," 2,557.00 ",LAR,None,Grants
"Department for Levelling Up, Housing and Communities",Homes England,REV GRNTS TO LOCAL AUTHORITIES,Investment,KEYSTAGE C.I.C.,04/04/2023," 3,102.00 ",MIC,None,Grants
"Department for Levelling Up, Housing and Communities",Homes England,REV GRNTS TO LOCAL AUTHORITIES,Investment,KEYSTAGE C.I.C.,04/04/2023," 3,102.00 ",MIC,None,Grants
"Department for Levelling Up, Housing and Communities",Homes England,REV GRNTS TO LOCAL AUTHORITIES,Investment,KEYSTAGE C.I.C.,05/04/2023," 5,333.00 ",MIC,None,Grants
"Department for Levelling Up, Housing and Communities",Homes England,REV GRNTS TO LOCAL AUTHORITIES,Investment,KEYSTAGE C.I.C.,05/04/2023," 15,720.00 ",MIC,None,Grants
"Department for Levelling Up, Housing and Communities",Homes England,REV GRNTS TO LOCAL AUTHORITIES,Investment,KEYSTAGE C.I.C.,05/04/2023," 5,333.00 ",MIC,None,Grants
"Department for Levelling Up, Housing and Communities",Homes England,REV GRNTS TO LOCAL AUTHORITIES,Investment,KEYSTAGE C.I.C.,06/04/2023," 27,922.00 ",MIC,None,Grants
"Department for Levelling Up, Housing and Communities",Homes England,REV GRNTS TO LOCAL AUTHORITIES,Investment,KEYSTAGE C.I.C.,06/04/2023," 32,807.00 ",MIC,None,Grants
"Department for Levelling Up, Housing and Communities",Homes England,REV GRNTS TO LOCAL AUTHORITIES,Investment,KEYSTAGE C.I.C.,25/04/2023," 31,024.00 ",MIC,None,Grants
"Department for Levelling Up, Housing and Communities",Homes England,CAPITAL GRANTS TO RPs,Investment,J & M RESIDENTIAL LETTINGS LIMITED,03/04/2023," 9,380.00 ",SMA,None,Grants
"Department for Levelling Up, Housing and Communities",Homes England,CAPITAL GRANTS TO RPs,Investment,J & M RESIDENTIAL LETTINGS LIMITED,06/04/2023," 15,008.00 ",SMA,None,Grants
"Department for Levelling Up, Housing and Communities",Homes England,CAPITAL GRANTS TO RPs,Investment,J & M RESIDENTIAL LETTINGS LIMITED,21/04/2023," 13,132.00 ",SMA,None,Grants
"Department for Levelling Up, Housing and Communities",Homes England,CAPITAL GRANTS TO RPs,Investment,J & M RESIDENTIAL LETTINGS LIMITED,21/04/2023," 13,132.00 ",SMA,None,Grants
"Department for Levelling Up, Housing and Communities",Homes England,CAPITAL GRANTS TO RPs,Investment,HELLENS RESIDENTIAL LTD,03/04/2023," 39,000.00 ",SMA,None,Grants
"Department for Levelling Up, Housing and Communities",Homes England,CAPITAL GRANTS TO RPs,Investment,HELLENS RESIDENTIAL LTD,03/04/2023," 150,000.00 ",SMA,None,Grants
"Department for Levelling Up, Housing and Communities",Homes England,CAPITAL GRANTS TO RPs,Investment,HELLENS RESIDENTIAL LTD,06/04/2023," 150,000.00 ",SMA,None,Grants
"Department for Levelling Up, Housing and Communities",Homes England,CAPITAL GRANTS TO RPs,Investment,HELLENS RESIDENTIAL LTD,11/04/2023," 50,000.00 ",SMA,None,Grants
"Department for Levelling Up, Housing and Communities",Homes England,REV GRNTS TO LOCAL AUTHORITIES,Investment,EMH HOUSING & REGENERATION LTD,05/04/2023," 99,750.00 ",MED,None,Grants
"Department for Levelling Up, Housing and Communities",Homes England,CAPITAL GRANTS TO RPs,Investment,PLATFORM HOUSING GROUP LIMITED,04/04/2023," 26,000.00 ",LAR,None,Grants
"Department for Levelling Up, Housing and Communities",Homes England,CAPITAL GRANTS TO RPs,Investment,PLATFORM HOUSING GROUP LIMITED,04/04/2023," 38,750.00 ",LAR,None,Grants
"Department for Levelling Up, Housing and Communities",Homes England,REV GRNTS TO LOCAL AUTHORITIES,Investment,DEPAUL HOUSING SERVICES,11/04/2023," 2,086.00 ",SMA,None,Grants
"Department for Levelling Up, Housing and Communities",Homes England,REV GRNTS TO LOCAL AUTHORITIES,Investment,DEPAUL HOUSING SERVICES,06/04/2023," 2,086.00 ",SMA,None,Grants
"Department for Levelling Up, Housing and Communities",Homes England,CAPITAL GRANTS TO RPs,Investment,DEVON AND CORNWALL HOUSING LIMITED,03/04/2023," 134,400.00 ",LAR,None,Grants
"Department for Levelling Up, Housing and Communities",Homes England,CAPITAL GRANTS TO RPs,Investment,DEVON AND CORNWALL HOUSING LIMITED,03/04/2023," 326,400.00 ",LAR,None,Grants
"Department for Levelling Up, Housing and Communities",Homes England,CAPITAL GRANTS TO RPs,Investment,DEVON AND CORNWALL HOUSING LIMITED,05/04/2023," 49,000.00 ",LAR,None,Grants
"Department for Levelling Up, Housing and Communities",Homes England,CAPITAL GRANTS TO RPs,Investment,DEVON AND CORNWALL HOUSING LIMITED,05/04/2023," 86,300.00 ",LAR,None,Grants
"Department for Levelling Up, Housing and Communities",Homes England,CAPITAL GRANTS TO RPs,Investment,DEVON AND CORNWALL HOUSING LIMITED,06/04/2023," 45,000.00 ",LAR,None,Grants
"Department for Levelling Up, Housing and Communities",Homes England,REV GRNTS TO LOCAL AUTHORITIES,Investment,SOVEREIGN HOUSING ASSOCIATION LTD,05/04/2023," 23,389.00 ",LAR,None,Grants
"Department for Levelling Up, Housing and Communities",Homes England,REV GRNTS TO LOCAL AUTHORITIES,Investment,SOVEREIGN HOUSING ASSOCIATION LTD,05/04/2023," 14,176.00 ",LAR,None,Grants
"Department for Levelling Up, Housing and Communities",Homes England,REV GRNTS TO LOCAL AUTHORITIES,Investment,SOVEREIGN HOUSING ASSOCIATION LTD,06/04/2023," 30,230.00 ",LAR,None,Grants
"Department for Levelling Up, Housing and Communities",Homes England,REV GRNTS TO LOCAL AUTHORITIES,Investment,SOVEREIGN HOUSING ASSOCIATION LTD,06/04/2023," 15,752.00 ",LAR,None,Grants
"Department for Levelling Up, Housing and Communities",Homes England,REV GRNTS TO LOCAL AUTHORITIES,Investment,SOVEREIGN HOUSING ASSOCIATION LTD,11/04/2023," 22,674.00 ",LAR,None,Grants
"Department for Levelling Up, Housing and Communities",Homes England,REV GRNTS TO LOCAL AUTHORITIES,Investment,SOVEREIGN HOUSING ASSOCIATION LTD,06/04/2023," 20,407.00 ",LAR,None,Grants
"Department for Levelling Up, Housing and Communities",Homes England,REV GRNTS TO LOCAL AUTHORITIES,Investment,SOVEREIGN HOUSING ASSOCIATION LTD,06/04/2023," 25,988.00 ",LAR,None,Grants
"Department for Levelling Up, Housing and Communities",Homes England,REV GRNTS TO LOCAL AUTHORITIES,Investment,SOVEREIGN HOUSING ASSOCIATION LTD,11/04/2023," 33,588.00 ",LAR,None,Grants
"Department for Levelling Up, Housing and Communities",Homes England,CAPITAL GRANTS TO RPs,Investment,SOVEREIGN HOUSING ASSOCIATION LTD,13/04/2023," 89,000.00 ",LAR,None,Grants
"Department for Levelling Up, Housing and Communities",Homes England,CAPITAL GRANTS TO RPs,Investment,SOVEREIGN HOUSING ASSOCIATION LTD,20/04/2023," 85,000.00 ",LAR,None,Grants
"Department for Levelling Up, Housing and Communities",Homes England,CAPITAL GRANTS TO RPs,Investment,SOVEREIGN HOUSING ASSOCIATION LTD,25/04/2023," 89,000.00 ",LAR,None,Grants
"Department for Levelling Up, Housing and Communities",Homes England,CAPITAL GRANTS TO RPs,Investment,KARBON HOMES,06/04/2023," 196,000.00 ",LAR,None,Grants
"Department for Levelling Up, Housing and Communities",Homes England,CAPITAL GRANTS TO RPs,Investment,KARBON HOMES,06/04/2023," 113,750.00 ",LAR,None,Grants
"Department for Levelling Up, Housing and Communities",Homes England,CAPITAL GRANTS TO RPs,Investment,KARBON HOMES,27/04/2023," 9,000.00 ",LAR,None,Grants
"Department for Levelling Up, Housing and Communities",Homes England,REV GRNTS TO LOCAL AUTHORITIES,Investment,VIVID HOUSING LTD,11/04/2023," 4,700.00 ",LAR,None,Grants
"Department for Levelling Up, Housing and Communities",Homes England,REV GRNTS TO LOCAL AUTHORITIES,Investment,VIVID HOUSING LTD,06/04/2023," 4,700.00 ",LAR,None,Grants
"Department for Levelling Up, Housing and Communities",Homes England,CAPITAL GRANTS TO RPs,Investment,MOSSCARE ST VINCENTS HOUSING GROUP LTD,04/04/2023," 9,000.00 ",LAR,None,Grants
"Department for Levelling Up, Housing and Communities",Homes England,CAPITAL GRANTS TO RPs,Investment,CLARION HOUSING ASSOCIATION LIMITED,27/04/2023," 9,000.00 ",LAR,None,Grants
"Department for Levelling Up, Housing and Communities",Homes England,REV GRNTS TO LOCAL AUTHORITIES,Investment,P3 HOUSING LTD,05/04/2023," 2,355.00 ",LAR,None,Grants
"Department for Levelling Up, Housing and Communities",Homes England,CAPITAL GRANTS TO RPs,Investment,TORUS62 LIMITED,05/04/2023," 9,000.00 ",LAR,None,Grants
"Department for Levelling Up, Housing and Communities",Homes England,CAPITAL GRANTS TO RPs,Investment,TORUS62 LIMITED,05/04/2023," 9,000.00 ",LAR,None,Grants
"Department for Levelling Up, Housing and Communities",Homes England,CAPITAL GRANTS TO RPs,Investment,TORUS62 LIMITED,05/04/2023," 9,000.00 ",LAR,None,Grants
"Department for Levelling Up, Housing and Communities",Homes England,CAPITAL GRANTS TO RPs,Investment,TORUS62 LIMITED,05/04/2023," 9,000.00 ",LAR,None,Grants
"Department for Levelling Up, Housing and Communities",Homes England,REV GRNTS TO LOCAL AUTHORITIES,Investment,BCP COUNCIL,04/04/2023," 5,534.00 ",PUB,None,Grants
"Department for Levelling Up, Housing and Communities",Homes England,REV GRNTS TO LOCAL AUTHORITIES,Investment,BCP COUNCIL,04/04/2023," 5,534.00 ",PUB,None,Grants
"Department for Levelling Up, Housing and Communities",Homes England,REV GRNTS TO LOCAL AUTHORITIES,Investment,BCP COUNCIL,04/04/2023," 5,534.00 ",PUB,None,Grants
"Department for Levelling Up, Housing and Communities",Homes England,REV GRNTS TO LOCAL AUTHORITIES,Investment,BCP COUNCIL,11/04/2023," 4,637.00 ",PUB,None,Grants
"Department for Levelling Up, Housing and Communities",Homes England,REV GRNTS TO LOCAL AUTHORITIES,Investment,BCP COUNCIL,11/04/2023," 4,718.00 ",PUB,None,Grants
"Department for Levelling Up, Housing and Communities",Homes England,REV GRNTS TO LOCAL AUTHORITIES,Investment,BCP COUNCIL,06/04/2023," 3,682.00 ",PUB,None,Grants
"Department for Levelling Up, Housing and Communities",Homes England,REV GRNTS TO LOCAL AUTHORITIES,Investment,BCP COUNCIL,06/04/2023," 3,682.00 ",PUB,None,Grants
"Department for Levelling Up, Housing and Communities",Homes England,REV GRNTS TO LOCAL AUTHORITIES,Investment,EAST SUFFOLK COUNCIL,19/04/2023," 25,000.00 ",PUB,None,Grants
"Department for Levelling Up, Housing and Communities",Homes England,CAPITAL GRANTS TO RPs,Investment,CITIZEN HOUSING GROUP LTD,04/04/2023," 45,000.00 ",LAR,None,Grants
"Department for Levelling Up, Housing and Communities",Homes England,REV GRNTS TO LOCAL AUTHORITIES,Investment,CITIZEN HOUSING GROUP LTD,04/04/2023," 26,550.00 ",LAR,None,Grants
"Department for Levelling Up, Housing and Communities",Homes England,REV GRNTS TO LOCAL AUTHORITIES,Investment,CITIZEN HOUSING GROUP LTD,05/04/2023," 29,500.00 ",LAR,None,Grants
"Department for Levelling Up, Housing and Communities",Homes England,CAPITAL GRANTS TO RPs,Investment,CITIZEN HOUSING GROUP LTD,06/04/2023," 45,000.00 ",LAR,None,Grants
"Department for Levelling Up, Housing and Communities",Homes England,CAPITAL GRANTS TO RPs,Investment,CITIZEN HOUSING GROUP LTD,06/04/2023," 22,500.00 ",LAR,None,Grants
"Department for Levelling Up, Housing and Communities",Homes England,CAPITAL GRANTS TO RPs,Investment,CITIZEN HOUSING GROUP LTD,06/04/2023," 27,000.00 ",LAR,None,Grants
"Department for Levelling Up, Housing and Communities",Homes England,CAPITAL GRANTS TO RPs,Investment,CITIZEN HOUSING GROUP LTD,24/04/2023," 10,000.00 ",LAR,None,Grants
"Department for Levelling Up, Housing and Communities",Homes England,CAPITAL GRANTS TO RPs,Investment,CITIZEN HOUSING GROUP LTD,24/04/2023," 10,000.00 ",LAR,None,Grants
"Department for Levelling Up, Housing and Communities",Homes England,REV GRNTS TO LOCAL AUTHORITIES,Investment,SOUTH HAMS DISTRICT COUNCIL,04/04/2023," 7,832.00 ",PUB,None,Grants
"Department for Levelling Up, Housing and Communities",Homes England,REV GRNTS TO LOCAL AUTHORITIES,Investment,SOUTH HAMS DISTRICT COUNCIL,04/04/2023," 7,831.00 ",PUB,None,Grants
"Department for Levelling Up, Housing and Communities",Homes England,REV GRNTS TO LOCAL AUTHORITIES,Investment,SUNDERLAND CITY COUNCIL,05/04/2023," 1,850.00 ",PUB,None,Grants
"Department for Levelling Up, Housing and Communities",Homes England,REV GRNTS TO LOCAL AUTHORITIES,Investment,SUNDERLAND CITY COUNCIL,05/04/2023," 1,750.00 ",PUB,None,Grants
"Department for Levelling Up, Housing and Communities",Homes England,REV GRNTS TO LOCAL AUTHORITIES,Investment,SUNDERLAND CITY COUNCIL,11/04/2023," 6,689.00 ",PUB,None,Grants
"Department for Levelling Up, Housing and Communities",Homes England,REV GRNTS TO LOCAL AUTHORITIES,Investment,SUNDERLAND CITY COUNCIL,11/04/2023, 896.00 ,PUB,None,Grants
"Department for Levelling Up, Housing and Communities",Homes England,REV GRNTS TO LOCAL AUTHORITIES,Investment,SUNDERLAND CITY COUNCIL,11/04/2023," 2,100.00 ",PUB,None,Grants
"Department for Levelling Up, Housing and Communities",Homes England,REV GRNTS TO LOCAL AUTHORITIES,Investment,SUNDERLAND CITY COUNCIL,11/04/2023, 896.00 ,PUB,None,Grants
"Department for Levelling Up, Housing and Communities",Homes England,CAPITAL GRANTS TO RPs,Investment,PREFERRED HOMES LIMITED,28/04/2023," 4,590,000.00 ",SMA,None,Grants
"Department for Levelling Up, Housing and Communities",Homes England,REV GRNTS TO LOCAL AUTHORITIES,Investment,CHELMSFORD CITY COUNCIL,04/04/2023," 11,375.00 ",PUB,None,Grants
"Department for Levelling Up, Housing and Communities",Homes England,REV GRNTS TO LOCAL AUTHORITIES,Investment,DORSET COUNCIL,04/04/2023," 32,500.00 ",PUB,None,Grants
"Department for Levelling Up, Housing and Communities",Homes England,REV GRNTS TO LOCAL AUTHORITIES,Investment,DORSET COUNCIL,06/04/2023," 1,803.00 ",PUB,None,Grants
"Department for Levelling Up, Housing and Communities",Homes England,REV GRNTS TO LOCAL AUTHORITIES,Investment,DORSET COUNCIL,06/04/2023," 12,620.00 ",PUB,None,Grants
"Department for Levelling Up, Housing and Communities",Homes England,REV GRNTS TO LOCAL AUTHORITIES,Investment,DORSET COUNCIL,11/04/2023," 29,250.00 ",PUB,None,Grants
"Department for Levelling Up, Housing and Communities",Homes England,REV GRNTS TO LOCAL AUTHORITIES,Investment,DORSET COUNCIL,28/04/2023," 32,500.00 ",PUB,None,Grants
"Department for Levelling Up, Housing and Communities",Homes England,REV GRNTS TO LOCAL AUTHORITIES,Investment,TELFORD & WREKIN COUNCIL,03/04/2023, 587.00 ,PUB,None,Grants
"Department for Levelling Up, Housing and Communities",Homes England,REV GRNTS TO LOCAL AUTHORITIES,Investment,TELFORD & WREKIN COUNCIL,04/04/2023," 15,750.00 ",PUB,None,Grants
"Department for Levelling Up, Housing and Communities",Homes England,REV GRNTS TO LOCAL AUTHORITIES,Investment,TELFORD & WREKIN COUNCIL,04/04/2023, 588.00 ,PUB,None,Grants
"Department for Levelling Up, Housing and Communities",Homes England,REV GRNTS TO LOCAL AUTHORITIES,Investment,TELFORD & WREKIN COUNCIL,04/04/2023," 15,750.00 ",PUB,None,Grants
"Department for Levelling Up, Housing and Communities",Homes England,REV GRNTS TO LOCAL AUTHORITIES,Investment,TELFORD & WREKIN COUNCIL,05/04/2023," 17,500.00 ",PUB,None,Grants
"Department for Levelling Up, Housing and Communities",Homes England,REV GRNTS TO LOCAL AUTHORITIES,Investment,TELFORD & WREKIN COUNCIL,05/04/2023," 17,500.00 ",PUB,None,Grants
"Department for Levelling Up, Housing and Communities",Homes England,REV GRNTS TO LOCAL AUTHORITIES,Investment,TELFORD & WREKIN COUNCIL,05/04/2023," 15,750.00 ",PUB,None,Grants
"Department for Levelling Up, Housing and Communities",Homes England,REV GRNTS TO LOCAL AUTHORITIES,Investment,TELFORD & WREKIN COUNCIL,06/04/2023," 1,750.00 ",PUB,None,Grants
"Department for Levelling Up, Housing and Communities",Homes England,REV GRNTS TO LOCAL AUTHORITIES,Investment,TELFORD & WREKIN COUNCIL,11/04/2023," 1,750.00 ",PUB,None,Grants
"Department for Levelling Up, Housing and Communities",Homes England,REV GRNTS TO LOCAL AUTHORITIES,Investment,TELFORD & WREKIN COUNCIL,06/04/2023," 17,500.00 ",PUB,None,Grants
"Department for Levelling Up, Housing and Communities",Homes England,REV GRNTS TO LOCAL AUTHORITIES,Investment,TELFORD & WREKIN COUNCIL,06/04/2023," 1,750.00 ",PUB,None,Grants
"Department for Levelling Up, Housing and Communities",Homes England,REV GRNTS TO LOCAL AUTHORITIES,Investment,HEREFORDSHIRE COUNCIL,06/04/2023," 3,528.00 ",PUB,None,Grants
"Department for Levelling Up, Housing and Communities",Homes England,CAPITAL GRANTS TO RPs,Investment,LUMEN HOUSING LIMITED,06/04/2023," 8,750.00 ",SMA,None,Grants
"Department for Levelling Up, Housing and Communities",Homes England,CAPITAL GRANTS TO RPs,Investment,LUMEN HOUSING LIMITED,11/04/2023," 8,000.00 ",SMA,None,Grants
"Department for Levelling Up, Housing and Communities",Homes England,CAPITAL GRANTS TO RPs,Investment,LUMEN HOUSING LIMITED,06/04/2023," 8,750.00 ",SMA,None,Grants
"Department for Levelling Up, Housing and Communities",Homes England,CAPITAL GRANTS TO RPs,Investment,LUMEN HOUSING LIMITED,06/04/2023," 8,750.00 ",SMA,None,Grants
"Department for Levelling Up, Housing and Communities",Homes England,CAPITAL GRANTS TO RPs,Investment,LUMEN HOUSING LIMITED,25/04/2023," 11,988.00 ",SMA,None,Grants
"Department for Levelling Up, Housing and Communities",Homes England,REV GRNTS TO LOCAL AUTHORITIES,Investment,HASTINGS BOROUGH COUNCIL,06/04/2023," 4,837.00 ",PUB,None,Grants
"Department for Levelling Up, Housing and Communities",Homes England,REV GRNTS TO LOCAL AUTHORITIES,Investment,HASTINGS BOROUGH COUNCIL,11/04/2023," 1,613.00 ",PUB,None,Grants
"Department for Levelling Up, Housing and Communities",Homes England,REV GRNTS TO LOCAL AUTHORITIES,Investment,HASTINGS BOROUGH COUNCIL,06/04/2023," 1,613.00 ",PUB,None,Grants
"Department for Levelling Up, Housing and Communities",Homes England,REV GRNTS TO LOCAL AUTHORITIES,Investment,HASTINGS BOROUGH COUNCIL,11/04/2023," 5,101.00 ",PUB,None,Grants
"Department for Levelling Up, Housing and Communities",Homes England,REV GRNTS TO LOCAL AUTHORITIES,Investment,HASTINGS BOROUGH COUNCIL,11/04/2023," 4,837.00 ",PUB,None,Grants
"Department for Levelling Up, Housing and Communities",Homes England,REV GRNTS TO LOCAL AUTHORITIES,Investment,HASTINGS BOROUGH COUNCIL,11/04/2023," 5,101.00 ",PUB,None,Grants
"Department for Levelling Up, Housing and Communities",Homes England,REV GRNTS TO LOCAL AUTHORITIES,Investment,HASTINGS BOROUGH COUNCIL,25/04/2023," 45,911.00 ",PUB,None,Grants
"Department for Levelling Up, Housing and Communities",Homes England,REV GRNTS TO LOCAL AUTHORITIES,Investment,HASTINGS BOROUGH COUNCIL,25/04/2023," 45,911.00 ",PUB,None,Grants
"Department for Levelling Up, Housing and Communities",Homes England,REV GRNTS TO LOCAL AUTHORITIES,Investment,HASTINGS BOROUGH COUNCIL,25/04/2023," 45,911.00 ",PUB,None,Grants
"Department for Levelling Up, Housing and Communities",Homes England,REV GRNTS TO LOCAL AUTHORITIES,Investment,HASTINGS BOROUGH COUNCIL,26/04/2023," 51,013.00 ",PUB,None,Grants
"Department for Levelling Up, Housing and Communities",Homes England,REV GRNTS TO LOCAL AUTHORITIES,Investment,HASTINGS BOROUGH COUNCIL,26/04/2023," 51,013.00 ",PUB,None,Grants
"Department for Levelling Up, Housing and Communities",Homes England,REV GRNTS TO LOCAL AUTHORITIES,Investment,HASTINGS BOROUGH COUNCIL,26/04/2023," 51,013.00 ",PUB,None,Grants
"Department for Levelling Up, Housing and Communities",Homes England,REV GRNTS TO LOCAL AUTHORITIES,Investment,ROTHER DISTRICT COUNCIL,11/04/2023," 48,882.00 ",PUB,None,Grants
"Department for Levelling Up, Housing and Communities",Homes England,REV GRNTS TO LOCAL AUTHORITIES,Investment,ROTHER DISTRICT COUNCIL,11/04/2023," 48,882.00 ",PUB,None,Grants
"Department for Levelling Up, Housing and Communities",Homes England,REV GRNTS TO LOCAL AUTHORITIES,Investment,ROTHER DISTRICT COUNCIL,06/04/2023," 43,993.00 ",PUB,None,Grants
"Department for Levelling Up, Housing and Communities",Homes England,REV GRNTS TO LOCAL AUTHORITIES,Investment,ROTHER DISTRICT COUNCIL,06/04/2023," 43,993.00 ",PUB,None,Grants
"Department for Levelling Up, Housing and Communities",Homes England,REV GRNTS TO LOCAL AUTHORITIES,Investment,WEST NORTHAMPTONSHIRE COUNCIL,04/04/2023," 1,132.00 ",PUB,None,Grants
"Department for Levelling Up, Housing and Communities",Homes England,REV GRNTS TO LOCAL AUTHORITIES,Investment,WEST NORTHAMPTONSHIRE COUNCIL,04/04/2023," 37,500.00 ",PUB,None,Grants
"Department for Levelling Up, Housing and Communities",Homes England,REV GRNTS TO LOCAL AUTHORITIES,Investment,WEST NORTHAMPTONSHIRE COUNCIL,04/04/2023," 27,500.00 ",PUB,None,Grants
"Department for Levelling Up, Housing and Communities",Homes England,REV GRNTS TO LOCAL AUTHORITIES,Investment,WEST NORTHAMPTONSHIRE COUNCIL,04/04/2023," 1,050.00 ",PUB,None,Grants
"Department for Levelling Up, Housing and Communities",Homes England,REV GRNTS TO LOCAL AUTHORITIES,Investment,WEST NORTHAMPTONSHIRE COUNCIL,04/04/2023," 1,791.00 ",PUB,None,Grants
"Department for Levelling Up, Housing and Communities",Homes England,REV GRNTS TO LOCAL AUTHORITIES,Investment,WEST NORTHAMPTONSHIRE COUNCIL,04/04/2023," 37,500.00 ",PUB,None,Grants
"Department for Levelling Up, Housing and Communities",Homes England,REV GRNTS TO LOCAL AUTHORITIES,Investment,WEST NORTHAMPTONSHIRE COUNCIL,04/04/2023," 1,154.00 ",PUB,None,Grants
"Department for Levelling Up, Housing and Communities",Homes England,REV GRNTS TO LOCAL AUTHORITIES,Investment,WEST NORTHAMPTONSHIRE COUNCIL,04/04/2023," 37,500.00 ",PUB,None,Grants
"Department for Levelling Up, Housing and Communities",Homes England,REV GRNTS TO LOCAL AUTHORITIES,Investment,WEST NORTHAMPTONSHIRE COUNCIL,04/04/2023," 27,500.00 ",PUB,None,Grants
"Department for Levelling Up, Housing and Communities",Homes England,REV GRNTS TO LOCAL AUTHORITIES,Investment,WEST NORTHAMPTONSHIRE COUNCIL,04/04/2023," 1,051.00 ",PUB,None,Grants
"Department for Levelling Up, Housing and Communities",Homes England,REV GRNTS TO LOCAL AUTHORITIES,Investment,WEST NORTHAMPTONSHIRE COUNCIL,04/04/2023," 37,500.00 ",PUB,None,Grants
"Department for Levelling Up, Housing and Communities",Homes England,REV GRNTS TO LOCAL AUTHORITIES,Investment,WEST NORTHAMPTONSHIRE COUNCIL,04/04/2023," 27,500.00 ",PUB,None,Grants
"Department for Levelling Up, Housing and Communities",Homes England,REV GRNTS TO LOCAL AUTHORITIES,Investment,WEST NORTHAMPTONSHIRE COUNCIL,04/04/2023," 3,750.00 ",PUB,None,Grants
"Department for Levelling Up, Housing and Communities",Homes England,REV GRNTS TO LOCAL AUTHORITIES,Investment,WEST NORTHAMPTONSHIRE COUNCIL,04/04/2023," 1,050.00 ",PUB,None,Grants
"Department for Levelling Up, Housing and Communities",Homes England,REV GRNTS TO LOCAL AUTHORITIES,Investment,WEST NORTHAMPTONSHIRE COUNCIL,04/04/2023," 27,500.00 ",PUB,None,Grants
"Department for Levelling Up, Housing and Communities",Homes England,REV GRNTS TO LOCAL AUTHORITIES,Investment,WEST NORTHAMPTONSHIRE COUNCIL,04/04/2023," 1,050.00 ",PUB,None,Grants
"Department for Levelling Up, Housing and Communities",Homes England,REV GRNTS TO LOCAL AUTHORITIES,Investment,WEST NORTHAMPTONSHIRE COUNCIL,04/04/2023, 988.00 ,PUB,None,Grants
"Department for Levelling Up, Housing and Communities",Homes England,REV GRNTS TO LOCAL AUTHORITIES,Investment,WEST NORTHAMPTONSHIRE COUNCIL,05/04/2023," 2,750.00 ",PUB,None,Grants
"Department for Levelling Up, Housing and Communities",Homes England,REV GRNTS TO LOCAL AUTHORITIES,Investment,WEST NORTHAMPTONSHIRE COUNCIL,05/04/2023," 3,750.00 ",PUB,None,Grants
"Department for Levelling Up, Housing and Communities",Homes England,REV GRNTS TO LOCAL AUTHORITIES,Investment,WEST NORTHAMPTONSHIRE COUNCIL,05/04/2023," 3,750.00 ",PUB,None,Grants
"Department for Levelling Up, Housing and Communities",Homes England,REV GRNTS TO LOCAL AUTHORITIES,Investment,WEST NORTHAMPTONSHIRE COUNCIL,05/04/2023," 3,750.00 ",PUB,None,Grants
"Department for Levelling Up, Housing and Communities",Homes England,REV GRNTS TO LOCAL AUTHORITIES,Investment,WEST NORTHAMPTONSHIRE COUNCIL,05/04/2023," 2,750.00 ",PUB,None,Grants
"Department for Levelling Up, Housing and Communities",Homes England,REV GRNTS TO LOCAL AUTHORITIES,Investment,WEST NORTHAMPTONSHIRE COUNCIL,05/04/2023," 3,750.00 ",PUB,None,Grants
"Department for Levelling Up, Housing and Communities",Homes England,REV GRNTS TO LOCAL AUTHORITIES,Investment,WEST NORTHAMPTONSHIRE COUNCIL,06/04/2023," 2,750.00 ",PUB,None,Grants
"Department for Levelling Up, Housing and Communities",Homes England,REV GRNTS TO LOCAL AUTHORITIES,Investment,WEST NORTHAMPTONSHIRE COUNCIL,06/04/2023," 2,750.00 ",PUB,None,Grants
"Department for Levelling Up, Housing and Communities",Homes England,REV GRNTS TO LOCAL AUTHORITIES,Investment,BURNLEY BOROUGH COUNCIL,06/04/2023," 1,949.00 ",PUB,None,Grants
"Department for Levelling Up, Housing and Communities",Homes England,REV GRNTS TO LOCAL AUTHORITIES,Investment,BURNLEY BOROUGH COUNCIL,21/04/2023," 1,949.00 ",PUB,None,Grants
"Department for Levelling Up, Housing and Communities",Homes England,AGENCY STAFF,Chief Operating Officer,ADECCO UK LTD,11/04/2023, 813.12 ,LAR,80111600,Temporary personnel services
"Department for Levelling Up, Housing and Communities",Homes England,AGENCY STAFF,Chief Operating Officer,ADECCO UK LTD,19/04/2023, 569.18 ,LAR,80111600,Temporary personnel services
"Department for Levelling Up, Housing and Communities",Homes England,AGENCY STAFF,Chief Operating Officer,ADECCO UK LTD,24/04/2023, 650.50 ,LAR,80111600,Temporary personnel services
"Department for Levelling Up, Housing and Communities",Homes England,ENGINEERING FEES,Development,ALUN GRIFFITHS (CONTRACTORS) LTD,17/04/2023," 34,800.00 ",LAR,81101500,Civil Engineering
"Department for Levelling Up, Housing and Communities",Homes England,ENGINEERING FEES,"Markets, Partners & Places",ATKINS LTD,04/04/2023," 9,000.00 ",LAR,81101500,Civil Engineering
"Department for Levelling Up, Housing and Communities",Homes England,PLANNING APPLICATIONS,Development,ATKINS LTD,04/04/2023," 3,600.00 ",LAR,80131800,Real estate management services
"Department for Levelling Up, Housing and Communities",Homes England,MASTERPLANNING FEES,Development,ATKINS LTD,26/04/2023," 15,900.00 ",LAR,81101500,Civil Engineering
"Department for Levelling Up, Housing and Communities",Homes England,OTHER PROFESSIONAL FEES,Development,ATKINS LTD,26/04/2023," 56,185.20 ",LAR,80131800,Real estate management services
"Department for Levelling Up, Housing and Communities",Homes England,MISC PROFESSIONAL FEES,Development,ADAM ARCHITECTURE LTD,17/04/2023," 5,760.00 ",SMA,81101500,Civil Engineering
"Department for Levelling Up, Housing and Communities",Homes England,OTHER PROFESSIONAL FEES,Development,ASHLEY HELME ASSOCIATES LTD,27/04/2023, 593.40 ,SMA,81101500,Civil Engineering
"Department for Levelling Up, Housing and Communities",Homes England,CAR LEASING - HIRE CHARGES,Development,LEASEPLAN UK LIMITED,13/04/2023," 3,520.81 ",LAR,25101500,Passenger motor vehicles
"Department for Levelling Up, Housing and Communities",Homes England,CAR LEASING - HIRE CHARGES,Development,LEASEPLAN UK LIMITED,13/04/2023," 4,456.81 ",LAR,25101500,Passenger motor vehicles
"Department for Levelling Up, Housing and Communities",Homes England,LUHBF Loans Additions,Investment,ASCOT HOMES (D'URTON) LTD,25/04/2023," 336,374.00 ",MIC,None,Loans
"Department for Levelling Up, Housing and Communities",Homes England,CAR LEASING - HIRE CHARGES,Development,ALPHABET (GB) LTD,13/04/2023, 233.42 ,LAR,25101500,Passenger motor vehicles
"Department for Levelling Up, Housing and Communities",Homes England,CAR LEASING - HIRE CHARGES,Development,ALPHABET (GB) LTD,13/04/2023, 298.91 ,LAR,25101500,Passenger motor vehicles
"Department for Levelling Up, Housing and Communities",Homes England,CAR LEASING - HIRE CHARGES,Investment,ALPHABET (GB) LTD,20/04/2023, 195.30 ,LAR,25101500,Passenger motor vehicles
"Department for Levelling Up, Housing and Communities",Homes England,CAR LEASING - HIRE CHARGES,Investment,ALPHABET (GB) LTD,20/04/2023, 279.37 ,LAR,25101500,Passenger motor vehicles
"Department for Levelling Up, Housing and Communities",Homes England,LUHBF Loans Additions,Investment,AKKERI DEVELOPMENTS (KILHAM) LTD,25/04/2023," 567,696.26 ",MIC,None,Loans
"Department for Levelling Up, Housing and Communities",Homes England,MISC PROFESSIONAL FEES,Chief Customer Office,ALEXANDER MANN SOLUTIONS LIMITED,03/04/2023," 3,465.30 ",LAR,80111600,Temporary personnel services
"Department for Levelling Up, Housing and Communities",Homes England,BESPOKE DEVELOPMENT SUPPORT,Cido,ALEXANDER MANN SOLUTIONS LIMITED,04/04/2023," 2,772.24 ",LAR,80111600,Temporary personnel services
"Department for Levelling Up, Housing and Communities",Homes England,STAFF RECRUITMENT COSTS,Chief Customer Office,ALEXANDER MANN SOLUTIONS LIMITED,05/04/2023," 3,980.88 ",LAR,80111600,Temporary personnel services
"Department for Levelling Up, Housing and Communities",Homes England,STAFF RECRUITMENT COSTS,Chief Customer Office,ALEXANDER MANN SOLUTIONS LIMITED,05/04/2023," 3,980.88 ",LAR,80111600,Temporary personnel services
"Department for Levelling Up, Housing and Communities",Homes England,AGENCY STAFF,Cido,ALEXANDER MANN SOLUTIONS LIMITED,12/04/2023," 6,476.52 ",LAR,80111600,Temporary personnel services
"Department for Levelling Up, Housing and Communities",Homes England,AGENCY STAFF,Investment,ALEXANDER MANN SOLUTIONS LIMITED,12/04/2023," 1,496.30 ",LAR,80111600,Temporary personnel services
"Department for Levelling Up, Housing and Communities",Homes England,AGENCY STAFF,Chief Risk Officer,ALEXANDER MANN SOLUTIONS LIMITED,12/04/2023," 9,716.28 ",LAR,80111600,Temporary personnel services
"Department for Levelling Up, Housing and Communities",Homes England,AGENCY STAFF,Cido,ALEXANDER MANN SOLUTIONS LIMITED,12/04/2023," 14,316.62 ",LAR,80111600,Temporary personnel services
"Department for Levelling Up, Housing and Communities",Homes England,AGENCY STAFF,Cido,ALEXANDER MANN SOLUTIONS LIMITED,12/04/2023," 6,476.52 ",LAR,80111600,Temporary personnel services
"Department for Levelling Up, Housing and Communities",Homes England,STAFF RECRUITMENT COSTS,Chief Customer Office,ALEXANDER MANN SOLUTIONS LIMITED,12/04/2023," 9,819.55 ",LAR,80111600,Temporary personnel services
"Department for Levelling Up, Housing and Communities",Homes England,AGENCY STAFF,Chief Operating Officer,ALEXANDER MANN SOLUTIONS LIMITED,12/04/2023," 3,465.30 ",LAR,80111600,Temporary personnel services
"Department for Levelling Up, Housing and Communities",Homes England,AGENCY STAFF,Cido,ALEXANDER MANN SOLUTIONS LIMITED,12/04/2023," 13,421.28 ",LAR,80111600,Temporary personnel services
"Department for Levelling Up, Housing and Communities",Homes England,AGENCY STAFF,Cido,ALEXANDER MANN SOLUTIONS LIMITED,12/04/2023," 3,749.58 ",LAR,80111600,Temporary personnel services
"Department for Levelling Up, Housing and Communities",Homes England,AGENCY STAFF,Cido,ALEXANDER MANN SOLUTIONS LIMITED,12/04/2023," 9,373.96 ",LAR,80111600,Temporary personnel services
"Department for Levelling Up, Housing and Communities",Homes England,AGENCY STAFF,Cido,ALEXANDER MANN SOLUTIONS LIMITED,12/04/2023," 4,260.90 ",LAR,80111600,Temporary personnel services
"Department for Levelling Up, Housing and Communities",Homes England,BESPOKE DEVELOPMENT SUPPORT,Cido,ALEXANDER MANN SOLUTIONS LIMITED,12/04/2023," 3,748.86 ",LAR,80111600,Temporary personnel services
"Department for Levelling Up, Housing and Communities",Homes England,BESPOKE DEVELOPMENT SUPPORT,Cido,ALEXANDER MANN SOLUTIONS LIMITED,12/04/2023," 3,459.00 ",LAR,80111600,Temporary personnel services
"Department for Levelling Up, Housing and Communities",Homes England,STAFF RECRUITMENT COSTS,Chief Customer Office,ALEXANDER MANN SOLUTIONS LIMITED,12/04/2023," 1,990.44 ",LAR,80111600,Temporary personnel services
"Department for Levelling Up, Housing and Communities",Homes England,AGENCY STAFF,Chief Operating Officer,ALEXANDER MANN SOLUTIONS LIMITED,14/04/2023," 3,780.36 ",LAR,80111600,Temporary personnel services
"Department for Levelling Up, Housing and Communities",Homes England,BESPOKE DEVELOPMENT SUPPORT,Cido,ALEXANDER MANN SOLUTIONS LIMITED,14/04/2023," 3,780.36 ",LAR,80111600,Temporary personnel services
"Department for Levelling Up, Housing and Communities",Homes England,BESPOKE DEVELOPMENT SUPPORT,Cido,ALEXANDER MANN SOLUTIONS LIMITED,14/04/2023," 4,725.42 ",LAR,80111600,Temporary personnel services
"Department for Levelling Up, Housing and Communities",Homes England,AGENCY STAFF,Chief Operating Officer,ALEXANDER MANN SOLUTIONS LIMITED,17/04/2023," 7,132.44 ",LAR,80111600,Temporary personnel services
"Department for Levelling Up, Housing and Communities",Homes England,STAFF RECRUITMENT COSTS,Chief Customer Office,ALEXANDER MANN SOLUTIONS LIMITED,17/04/2023," 3,780.36 ",LAR,80111600,Temporary personnel services
"Department for Levelling Up, Housing and Communities",Homes England,BESPOKE DEVELOPMENT SUPPORT,Cido,ALEXANDER MANN SOLUTIONS LIMITED,17/04/2023," 3,465.30 ",LAR,80111600,Temporary personnel services
"Department for Levelling Up, Housing and Communities",Homes England,BESPOKE DEVELOPMENT SUPPORT,Cido,ALEXANDER MANN SOLUTIONS LIMITED,17/04/2023," 2,772.24 ",LAR,80111600,Temporary personnel services
"Department for Levelling Up, Housing and Communities",Homes England,AGENCY STAFF,Investment,ALEXANDER MANN SOLUTIONS LIMITED,17/04/2023, 997.54 ,LAR,80111600,Temporary personnel services
"Department for Levelling Up, Housing and Communities",Homes England,AGENCY STAFF,Chief Risk Officer,ALEXANDER MANN SOLUTIONS LIMITED,17/04/2023," 7,773.02 ",LAR,80111600,Temporary personnel services
"Department for Levelling Up, Housing and Communities",Homes England,AGENCY STAFF,Chief Operating Officer,ALEXANDER MANN SOLUTIONS LIMITED,17/04/2023," 3,024.29 ",LAR,80111600,Temporary personnel services
"Department for Levelling Up, Housing and Communities",Homes England,STAFF RECRUITMENT COSTS,Chief Customer Office,ALEXANDER MANN SOLUTIONS LIMITED,17/04/2023," 3,682.33 ",LAR,80111600,Temporary personnel services
"Department for Levelling Up, Housing and Communities",Homes England,AGENCY STAFF,Chief Operating Officer,ALEXANDER MANN SOLUTIONS LIMITED,17/04/2023," 5,670.54 ",LAR,80111600,Temporary personnel services
"Department for Levelling Up, Housing and Communities",Homes England,AGENCY STAFF,Chief Operating Officer,ALEXANDER MANN SOLUTIONS LIMITED,17/04/2023," 2,772.24 ",LAR,80111600,Temporary personnel services
"Department for Levelling Up, Housing and Communities",Homes England,AGENCY STAFF,Chief Operating Officer,ALEXANDER MANN SOLUTIONS LIMITED,17/04/2023," 5,705.95 ",LAR,80111600,Temporary personnel services
"Department for Levelling Up, Housing and Communities",Homes England,STAFF RECRUITMENT COSTS,Chief Customer Office,ALEXANDER MANN SOLUTIONS LIMITED,17/04/2023," 3,024.29 ",LAR,80111600,Temporary personnel services
"Department for Levelling Up, Housing and Communities",Homes England,BESPOKE DEVELOPMENT SUPPORT,Cido,ALEXANDER MANN SOLUTIONS LIMITED,17/04/2023," 2,999.09 ",LAR,80111600,Temporary personnel services
"Department for Levelling Up, Housing and Communities",Homes England,BESPOKE DEVELOPMENT SUPPORT,Cido,ALEXANDER MANN SOLUTIONS LIMITED,17/04/2023," 3,024.29 ",LAR,80111600,Temporary personnel services
"Department for Levelling Up, Housing and Communities",Homes England,BESPOKE DEVELOPMENT SUPPORT,Cido,ALEXANDER MANN SOLUTIONS LIMITED,17/04/2023," 2,767.20 ",LAR,80111600,Temporary personnel services
"Department for Levelling Up, Housing and Communities",Homes England,AGENCY STAFF,Cido,ALEXANDER MANN SOLUTIONS LIMITED,17/04/2023," 5,036.72 ",LAR,80111600,Temporary personnel services
"Department for Levelling Up, Housing and Communities",Homes England,BESPOKE DEVELOPMENT SUPPORT,Chief Operating Officer,ALEXANDER MANN SOLUTIONS LIMITED,17/04/2023, 504.05 ,LAR,80111600,Temporary personnel services
"Department for Levelling Up, Housing and Communities",Homes England,BESPOKE DEVELOPMENT SUPPORT,Cido,ALEXANDER MANN SOLUTIONS LIMITED,17/04/2023," 3,780.34 ",LAR,80111600,Temporary personnel services
"Department for Levelling Up, Housing and Communities",Homes England,BESPOKE DEVELOPMENT SUPPORT,Cido,ALEXANDER MANN SOLUTIONS LIMITED,17/04/2023," 1,134.11 ",LAR,80111600,Temporary personnel services
"Department for Levelling Up, Housing and Communities",Homes England,MISC PROFESSIONAL FEES,Chief Customer Office,ALEXANDER MANN SOLUTIONS LIMITED,18/04/2023," 3,465.30 ",LAR,80111600,Temporary personnel services
"Department for Levelling Up, Housing and Communities",Homes England,STAFF RECRUITMENT COSTS,Chief Customer Office,ALEXANDER MANN SOLUTIONS LIMITED,18/04/2023," 2,771.70 ",LAR,80111600,Temporary personnel services
"Department for Levelling Up, Housing and Communities",Homes England,AGENCY STAFF,Chief Operating Officer,ALEXANDER MANN SOLUTIONS LIMITED,18/04/2023," 8,052.16 ",LAR,80111600,Temporary personnel services
"Department for Levelling Up, Housing and Communities",Homes England,MISC PROFESSIONAL FEES,Chief Customer Office,ALEXANDER MANN SOLUTIONS LIMITED,18/04/2023," 2,772.24 ",LAR,80111600,Temporary personnel services
"Department for Levelling Up, Housing and Communities",Homes England,STAFF RECRUITMENT COSTS,Chief Customer Office,ALEXANDER MANN SOLUTIONS LIMITED,18/04/2023," 2,217.36 ",LAR,80111600,Temporary personnel services
"Department for Levelling Up, Housing and Communities",Homes England,AGENCY STAFF,Cido,ALEXANDER MANN SOLUTIONS LIMITED,19/04/2023," 4,090.46 ",LAR,80111600,Temporary personnel services
"Department for Levelling Up, Housing and Communities",Homes England,AGENCY STAFF,Cido,ALEXANDER MANN SOLUTIONS LIMITED,20/04/2023," 2,590.61 ",LAR,80111600,Temporary personnel services
"Department for Levelling Up, Housing and Communities",Homes England,AGENCY STAFF,Cido,ALEXANDER MANN SOLUTIONS LIMITED,20/04/2023," 2,658.82 ",LAR,80111600,Temporary personnel services
"Department for Levelling Up, Housing and Communities",Homes England,AGENCY STAFF,Cido,ALEXANDER MANN SOLUTIONS LIMITED,20/04/2023," 2,999.66 ",LAR,80111600,Temporary personnel services
"Department for Levelling Up, Housing and Communities",Homes England,AGENCY STAFF,Cido,ALEXANDER MANN SOLUTIONS LIMITED,20/04/2023," 3,408.72 ",LAR,80111600,Temporary personnel services
"Department for Levelling Up, Housing and Communities",Homes England,MISC PROFESSIONAL FEES,Chief Customer Office,ALEXANDER MANN SOLUTIONS LIMITED,24/04/2023," 2,079.18 ",LAR,80111600,Temporary personnel services
"Department for Levelling Up, Housing and Communities",Homes England,AGENCY STAFF,Cido,ALEXANDER MANN SOLUTIONS LIMITED,24/04/2023," 4,090.46 ",LAR,80111600,Temporary personnel services
"Department for Levelling Up, Housing and Communities",Homes England,STAFF RECRUITMENT COSTS,Chief Customer Office,ALEXANDER MANN SOLUTIONS LIMITED,24/04/2023," 1,990.44 ",LAR,80111600,Temporary personnel services
"Department for Levelling Up, Housing and Communities",Homes England,STAFF RECRUITMENT COSTS,Chief Customer Office,ALEXANDER MANN SOLUTIONS LIMITED,24/04/2023," 2,217.36 ",LAR,80111600,Temporary personnel services
"Department for Levelling Up, Housing and Communities",Homes England,AGENCY STAFF,Chief Operating Officer,ALEXANDER MANN SOLUTIONS LIMITED,24/04/2023," 2,520.24 ",LAR,80111600,Temporary personnel services
"Department for Levelling Up, Housing and Communities",Homes England,AGENCY STAFF,Chief Operating Officer,ALEXANDER MANN SOLUTIONS LIMITED,24/04/2023," 6,237.54 ",LAR,80111600,Temporary personnel services
"Department for Levelling Up, Housing and Communities",Homes England,AGENCY STAFF,Chief Operating Officer,ALEXANDER MANN SOLUTIONS LIMITED,24/04/2023," 5,705.95 ",LAR,80111600,Temporary personnel services
"Department for Levelling Up, Housing and Communities",Homes England,STAFF RECRUITMENT COSTS,Chief Customer Office,ALEXANDER MANN SOLUTIONS LIMITED,24/04/2023," 3,024.29 ",LAR,80111600,Temporary personnel services
"Department for Levelling Up, Housing and Communities",Homes England,AGENCY STAFF,Cido,ALEXANDER MANN SOLUTIONS LIMITED,24/04/2023," 3,024.29 ",LAR,80111600,Temporary personnel services
"Department for Levelling Up, Housing and Communities",Homes England,BESPOKE DEVELOPMENT SUPPORT,Cido,ALEXANDER MANN SOLUTIONS LIMITED,24/04/2023," 3,024.29 ",LAR,80111600,Temporary personnel services
"Department for Levelling Up, Housing and Communities",Homes England,BESPOKE DEVELOPMENT SUPPORT,Cido,ALEXANDER MANN SOLUTIONS LIMITED,24/04/2023," 2,767.20 ",LAR,80111600,Temporary personnel services
"Department for Levelling Up, Housing and Communities",Homes England,AGENCY STAFF,Cido,ALEXANDER MANN SOLUTIONS LIMITED,24/04/2023," 2,878.13 ",LAR,80111600,Temporary personnel services
"Department for Levelling Up, Housing and Communities",Homes England,BESPOKE DEVELOPMENT SUPPORT,Chief Operating Officer,ALEXANDER MANN SOLUTIONS LIMITED,24/04/2023," 1,008.10 ",LAR,80111600,Temporary personnel services
"Department for Levelling Up, Housing and Communities",Homes England,BESPOKE DEVELOPMENT SUPPORT,Cido,ALEXANDER MANN SOLUTIONS LIMITED,24/04/2023," 3,780.34 ",LAR,80111600,Temporary personnel services
"Department for Levelling Up, Housing and Communities",Homes England,MISC PROFESSIONAL FEES,Chief Customer Office,ALEXANDER MANN SOLUTIONS LIMITED,24/04/2023," 6,390.64 ",LAR,80111600,Temporary personnel services
"Department for Levelling Up, Housing and Communities",Homes England,STAFF RECRUITMENT COSTS,Chief Customer Office,ALEXANDER MANN SOLUTIONS LIMITED,24/04/2023," 3,715.49 ",LAR,80111600,Temporary personnel services
"Department for Levelling Up, Housing and Communities",Homes England,AGENCY STAFF,Investment,ALEXANDER MANN SOLUTIONS LIMITED,25/04/2023," 1,496.30 ",LAR,80111600,Temporary personnel services
"Department for Levelling Up, Housing and Communities",Homes England,AGENCY STAFF,Cido,ALEXANDER MANN SOLUTIONS LIMITED,25/04/2023," 2,590.61 ",LAR,80111600,Temporary personnel services
"Department for Levelling Up, Housing and Communities",Homes England,AGENCY STAFF,Cido,ALEXANDER MANN SOLUTIONS LIMITED,25/04/2023," 3,545.09 ",LAR,80111600,Temporary personnel services
"Department for Levelling Up, Housing and Communities",Homes England,AGENCY STAFF,Cido,ALEXANDER MANN SOLUTIONS LIMITED,25/04/2023," 2,999.66 ",LAR,80111600,Temporary personnel services
"Department for Levelling Up, Housing and Communities",Homes England,AGENCY STAFF,Cido,ALEXANDER MANN SOLUTIONS LIMITED,25/04/2023," 3,408.72 ",LAR,80111600,Temporary personnel services
"Department for Levelling Up, Housing and Communities",Homes England,BESPOKE DEVELOPMENT SUPPORT,Cido,ALEXANDER MANN SOLUTIONS LIMITED,25/04/2023," 2,999.09 ",LAR,80111600,Temporary personnel services
"Department for Levelling Up, Housing and Communities",Homes England,AGENCY STAFF,Chief Risk Officer,ALEXANDER MANN SOLUTIONS LIMITED,26/04/2023," 7,773.02 ",LAR,80111600,Temporary personnel services
"Department for Levelling Up, Housing and Communities",Homes England,AGENCY STAFF,Chief Operating Officer,ALEXANDER MANN SOLUTIONS LIMITED,26/04/2023," 3,578.74 ",LAR,80111600,Temporary personnel services
"Department for Levelling Up, Housing and Communities",Homes England,BESPOKE DEVELOPMENT SUPPORT,Cido,ALEXANDER MANN SOLUTIONS LIMITED,28/04/2023," 5,544.48 ",LAR,80111600,Temporary personnel services
"Department for Levelling Up, Housing and Communities",Homes England,BESPOKE DEVELOPMENT SUPPORT,Cido,ALEXANDER MANN SOLUTIONS LIMITED,28/04/2023," 1,199.62 ",LAR,80111600,Temporary personnel services
"Department for Levelling Up, Housing and Communities",Homes England,BESPOKE DEVELOPMENT SUPPORT,Cido,ALEXANDER MANN SOLUTIONS LIMITED,28/04/2023," 5,197.96 ",LAR,80111600,Temporary personnel services
"Department for Levelling Up, Housing and Communities",Homes England,ESTATE GENERAL MAINTENANCE,Development,AGA GROUP ENVIRO-FIX LIMITED,11/04/2023, 900.00 ,SMA,72101500,Building maintenance and repair services
"Department for Levelling Up, Housing and Communities",Homes England,CAR LEASING - HIRE CHARGES,"Markets, Partners & Places",ARVAL UK LIMITED,12/04/2023, 118.15 ,LAR,25101500,Passenger motor vehicles
"Department for Levelling Up, Housing and Communities",Homes England,CAR LEASING - HIRE CHARGES,"Markets, Partners & Places",ARVAL UK LIMITED,12/04/2023, 175.03 ,LAR,25101500,Passenger motor vehicles
"Department for Levelling Up, Housing and Communities",Homes England,CAR LEASING - HIRE CHARGES,Development,ARVAL UK LIMITED,12/04/2023, 194.22 ,LAR,25101500,Passenger motor vehicles
"Department for Levelling Up, Housing and Communities",Homes England,CAR LEASING - HIRE CHARGES,Development,ARVAL UK LIMITED,12/04/2023, 244.33 ,LAR,25101500,Passenger motor vehicles
"Department for Levelling Up, Housing and Communities",Homes England,CAR LEASING - HIRE CHARGES,Development,ARVAL UK LIMITED,12/04/2023, 202.83 ,LAR,25101500,Passenger motor vehicles
"Department for Levelling Up, Housing and Communities",Homes England,CAR LEASING - HIRE CHARGES,Development,ARVAL UK LIMITED,12/04/2023, 264.23 ,LAR,25101500,Passenger motor vehicles
"Department for Levelling Up, Housing and Communities",Homes England,CAR LEASING - HIRE CHARGES,Development,ARVAL UK LIMITED,13/04/2023, 175.79 ,LAR,25101500,Passenger motor vehicles
"Department for Levelling Up, Housing and Communities",Homes England,CAR LEASING - HIRE CHARGES,Development,ARVAL UK LIMITED,13/04/2023, 262.61 ,LAR,25101500,Passenger motor vehicles
"Department for Levelling Up, Housing and Communities",Homes England,CAR LEASING - HIRE CHARGES,Investment,ARVAL UK LIMITED,13/04/2023, 183.53 ,LAR,25101500,Passenger motor vehicles
"Department for Levelling Up, Housing and Communities",Homes England,CAR LEASING - HIRE CHARGES,Investment,ARVAL UK LIMITED,13/04/2023, 243.37 ,LAR,25101500,Passenger motor vehicles
"Department for Levelling Up, Housing and Communities",Homes England,CAR LEASING - HIRE CHARGES,Development,ARVAL UK LIMITED,13/04/2023, 135.08 ,LAR,25101500,Passenger motor vehicles
"Department for Levelling Up, Housing and Communities",Homes England,CAR LEASING - HIRE CHARGES,Development,ARVAL UK LIMITED,13/04/2023, 190.28 ,LAR,25101500,Passenger motor vehicles
"Department for Levelling Up, Housing and Communities",Homes England,CAR LEASING - HIRE CHARGES,Corporate Allocations,ARVAL UK LIMITED,14/04/2023, 250.64 ,LAR,25101500,Passenger motor vehicles
"Department for Levelling Up, Housing and Communities",Homes England,CAR LEASING - HIRE CHARGES,Corporate Allocations,ARVAL UK LIMITED,14/04/2023, 322.31 ,LAR,25101500,Passenger motor vehicles
"Department for Levelling Up, Housing and Communities",Homes England,CAR LEASING - HIRE CHARGES,Investment,ARVAL UK LIMITED,17/04/2023, 182.99 ,LAR,25101500,Passenger motor vehicles
"Department for Levelling Up, Housing and Communities",Homes England,CAR LEASING - HIRE CHARGES,Investment,ARVAL UK LIMITED,17/04/2023, 242.97 ,LAR,25101500,Passenger motor vehicles
"Department for Levelling Up, Housing and Communities",Homes England,CAR LEASING - HIRE CHARGES,Investment,ARVAL UK LIMITED,17/04/2023, 185.75 ,LAR,25101500,Passenger motor vehicles
"Department for Levelling Up, Housing and Communities",Homes England,CAR LEASING - HIRE CHARGES,Investment,ARVAL UK LIMITED,17/04/2023, 231.29 ,LAR,25101500,Passenger motor vehicles
"Department for Levelling Up, Housing and Communities",Homes England,CAR LEASING - HIRE CHARGES,"Markets, Partners & Places",ARVAL UK LIMITED,18/04/2023, 116.65 ,LAR,25101500,Passenger motor vehicles
"Department for Levelling Up, Housing and Communities",Homes England,CAR LEASING - HIRE CHARGES,"Markets, Partners & Places",ARVAL UK LIMITED,18/04/2023, 155.42 ,LAR,25101500,Passenger motor vehicles
"Department for Levelling Up, Housing and Communities",Homes England,CAR LEASING - HIRE CHARGES,Investment,ARVAL UK LIMITED,19/04/2023, 126.64 ,LAR,25101500,Passenger motor vehicles
"Department for Levelling Up, Housing and Communities",Homes England,CAR LEASING - HIRE CHARGES,Investment,ARVAL UK LIMITED,19/04/2023, 208.60 ,LAR,25101500,Passenger motor vehicles
"Department for Levelling Up, Housing and Communities",Homes England,CAR LEASING - HIRE CHARGES,Corporate Allocations,ARVAL UK LIMITED,19/04/2023, 128.76 ,LAR,25101500,Passenger motor vehicles
"Department for Levelling Up, Housing and Communities",Homes England,CAR LEASING - HIRE CHARGES,Corporate Allocations,ARVAL UK LIMITED,19/04/2023, 202.43 ,LAR,25101500,Passenger motor vehicles
"Department for Levelling Up, Housing and Communities",Homes England,CAR LEASING - HIRE CHARGES,Development,ARVAL UK LIMITED,19/04/2023, 202.81 ,LAR,25101500,Passenger motor vehicles
"Department for Levelling Up, Housing and Communities",Homes England,CAR LEASING - HIRE CHARGES,Development,ARVAL UK LIMITED,19/04/2023, 231.12 ,LAR,25101500,Passenger motor vehicles
"Department for Levelling Up, Housing and Communities",Homes England,CAR LEASING - HIRE CHARGES,"Markets, Partners & Places",ARVAL UK LIMITED,20/04/2023, 196.84 ,LAR,25101500,Passenger motor vehicles
"Department for Levelling Up, Housing and Communities",Homes England,CAR LEASING - HIRE CHARGES,"Markets, Partners & Places",ARVAL UK LIMITED,20/04/2023, 262.05 ,LAR,25101500,Passenger motor vehicles
"Department for Levelling Up, Housing and Communities",Homes England,CAR LEASING - HIRE CHARGES,Investment,ARVAL UK LIMITED,20/04/2023, 203.28 ,LAR,25101500,Passenger motor vehicles
"Department for Levelling Up, Housing and Communities",Homes England,CAR LEASING - HIRE CHARGES,Investment,ARVAL UK LIMITED,20/04/2023, 269.45 ,LAR,25101500,Passenger motor vehicles
"Department for Levelling Up, Housing and Communities",Homes England,CAR LEASING - HIRE CHARGES,Corporate Allocations,ARVAL UK LIMITED,21/04/2023, 108.71 ,LAR,25101500,Passenger motor vehicles
"Department for Levelling Up, Housing and Communities",Homes England,CAR LEASING - HIRE CHARGES,Corporate Allocations,ARVAL UK LIMITED,21/04/2023, 161.63 ,LAR,25101500,Passenger motor vehicles
"Department for Levelling Up, Housing and Communities",Homes England,CAR LEASING - HIRE CHARGES,Corporate Allocations,ARVAL UK LIMITED,24/04/2023, 140.42 ,LAR,25101500,Passenger motor vehicles
"Department for Levelling Up, Housing and Communities",Homes England,CAR LEASING - HIRE CHARGES,Corporate Allocations,ARVAL UK LIMITED,24/04/2023, 197.92 ,LAR,25101500,Passenger motor vehicles
"Department for Levelling Up, Housing and Communities",Homes England,CAR LEASING - HIRE CHARGES,Corporate Allocations,ARVAL UK LIMITED,28/04/2023, 202.46 ,LAR,25101500,Passenger motor vehicles
"Department for Levelling Up, Housing and Communities",Homes England,CAR LEASING - HIRE CHARGES,Corporate Allocations,ARVAL UK LIMITED,28/04/2023, 262.45 ,LAR,25101500,Passenger motor vehicles
"Department for Levelling Up, Housing and Communities",Homes England,EXTERNAL BUILDING MAINTENANCE,"Markets, Partners & Places",ALLIUM ENVIRONMENTAL LTD,04/04/2023, 288.00 ,SMA,72101500,Building maintenance and repair services
"Department for Levelling Up, Housing and Communities",Homes England,ESTATE GENERAL MAINTENANCE,Development,ALBEN LANDSCAPES LIMITED,06/04/2023, 401.11 ,SMA,72101500,Building maintenance and repair services
"Department for Levelling Up, Housing and Communities",Homes England,LANDSCAPE MAINT-BUILT ESTATE,Development,ALBEN LANDSCAPES LIMITED,06/04/2023," 1,442.38 ",SMA,72102900,Facility maintenance and repair services
"Department for Levelling Up, Housing and Communities",Homes England,LANDSCAPE MAINT-BUILT ESTATE,Development,ALBEN LANDSCAPES LIMITED,06/04/2023," 1,569.60 ",SMA,72102900,Facility maintenance and repair services
"Department for Levelling Up, Housing and Communities",Homes England,ESTATE GENERAL MAINTENANCE,Development,ALBEN LANDSCAPES LIMITED,20/04/2023, 401.11 ,SMA,72101500,Building maintenance and repair services
"Department for Levelling Up, Housing and Communities",Homes England,AGENCY STAFF,Cido,ALLEN LANE LIMITED,04/04/2023," 2,484.00 ",SMA,80111600,Temporary personnel services
"Department for Levelling Up, Housing and Communities",Homes England,AGENCY STAFF,Chief Customer Office,ALLEN LANE LIMITED,05/04/2023," 4,650.00 ",SMA,80111600,Temporary personnel services
"Department for Levelling Up, Housing and Communities",Homes England,AGENCY STAFF,Chief Customer Office,ALLEN LANE LIMITED,05/04/2023," 3,415.50 ",SMA,80111600,Temporary personnel services
"Department for Levelling Up, Housing and Communities",Homes England,AGENCY STAFF,Chief Customer Office,ALLEN LANE LIMITED,05/04/2023," 7,260.00 ",SMA,80111600,Temporary personnel services
"Department for Levelling Up, Housing and Communities",Homes England,AGENCY STAFF,Chief Customer Office,ALLEN LANE LIMITED,05/04/2023, 349.54 ,SMA,80111600,Temporary personnel services
"Department for Levelling Up, Housing and Communities",Homes England,AGENCY STAFF,Chief Customer Office,ALLEN LANE LIMITED,05/04/2023," 1,168.46 ",SMA,80111600,Temporary personnel services
"Department for Levelling Up, Housing and Communities",Homes England,AGENCY STAFF,Chief Customer Office,ALLEN LANE LIMITED,05/04/2023," 3,630.00 ",SMA,80111600,Temporary personnel services
"Department for Levelling Up, Housing and Communities",Homes England,AGENCY STAFF,Chief Customer Office,ALLEN LANE LIMITED,05/04/2023," 7,260.00 ",SMA,80111600,Temporary personnel services
"Department for Levelling Up, Housing and Communities",Homes England,AGENCY STAFF,Chief Customer Office,ALLEN LANE LIMITED,05/04/2023," 4,290.00 ",SMA,80111600,Temporary personnel services
"Department for Levelling Up, Housing and Communities",Homes England,AGENCY STAFF,Cido,ALLEN LANE LIMITED,05/04/2023," 3,600.00 ",SMA,80111600,Temporary personnel services
"Department for Levelling Up, Housing and Communities",Homes England,AGENCY STAFF,Chief Customer Office,ALLEN LANE LIMITED,05/04/2023," 3,795.00 ",SMA,80111600,Temporary personnel services
"Department for Levelling Up, Housing and Communities",Homes England,AGENCY STAFF,Cido,ALLEN LANE LIMITED,12/04/2023," 2,484.00 ",SMA,80111600,Temporary personnel services
"Department for Levelling Up, Housing and Communities",Homes England,AGENCY STAFF,Chief Customer Office,ALLEN LANE LIMITED,13/04/2023," 3,036.00 ",SMA,80111600,Temporary personnel services
"Department for Levelling Up, Housing and Communities",Homes England,AGENCY STAFF,Chief Customer Office,ALLEN LANE LIMITED,13/04/2023," 2,178.00 ",SMA,80111600,Temporary personnel services
"Department for Levelling Up, Housing and Communities",Homes England,AGENCY STAFF,Chief Customer Office,ALLEN LANE LIMITED,13/04/2023," 7,722.00 ",SMA,80111600,Temporary personnel services
"Department for Levelling Up, Housing and Communities",Homes England,AGENCY STAFF,Chief Customer Office,ALLEN LANE LIMITED,13/04/2023," 2,640.00 ",SMA,80111600,Temporary personnel services
"Department for Levelling Up, Housing and Communities",Homes England,AGENCY STAFF,Cido,ALLEN LANE LIMITED,14/04/2023," 2,880.00 ",SMA,80111600,Temporary personnel services
"Department for Levelling Up, Housing and Communities",Homes England,AGENCY STAFF,Cido,ALLEN LANE LIMITED,20/04/2023," 2,484.00 ",SMA,80111600,Temporary personnel services
"Department for Levelling Up, Housing and Communities",Homes England,AGENCY STAFF,Chief Customer Office,ALLEN LANE LIMITED,21/04/2023," 6,072.00 ",SMA,80111600,Temporary personnel services
"Department for Levelling Up, Housing and Communities",Homes England,AGENCY STAFF,Chief Customer Office,ALLEN LANE LIMITED,21/04/2023," 1,518.00 ",SMA,80111600,Temporary personnel services
"Department for Levelling Up, Housing and Communities",Homes England,AGENCY STAFF,Chief Customer Office,ALLEN LANE LIMITED,21/04/2023," 2,904.00 ",SMA,80111600,Temporary personnel services
"Department for Levelling Up, Housing and Communities",Homes England,AGENCY STAFF,Chief Customer Office,ALLEN LANE LIMITED,21/04/2023," 3,432.00 ",SMA,80111600,Temporary personnel services
"Department for Levelling Up, Housing and Communities",Homes England,AGENCY STAFF,Chief Customer Office,ALLEN LANE LIMITED,21/04/2023," 3,036.00 ",SMA,80111600,Temporary personnel services
"Department for Levelling Up, Housing and Communities",Homes England,AGENCY STAFF,Cido,ALLEN LANE LIMITED,21/04/2023," 2,880.00 ",SMA,80111600,Temporary personnel services
"Department for Levelling Up, Housing and Communities",Homes England,AGENCY STAFF,Cido,ALLEN LANE LIMITED,27/04/2023," 2,484.00 ",SMA,80111600,Temporary personnel services
"Department for Levelling Up, Housing and Communities",Homes England,AGENCY STAFF,Cido,ALLEN LANE LIMITED,27/04/2023," 3,600.00 ",SMA,80111600,Temporary personnel services
"Department for Levelling Up, Housing and Communities",Homes England,ESTATE GENERAL MAINTENANCE,Development,AIREDALE FORESTRY,11/04/2023, 436.07 ,SMA,72101500,Building maintenance and repair services
"Department for Levelling Up, Housing and Communities",Homes England,ESTATE GENERAL MAINTENANCE,Development,AIREDALE FORESTRY,11/04/2023," 8,574.00 ",SMA,72101500,Building maintenance and repair services
"Department for Levelling Up, Housing and Communities",Homes England,ESTATE GENERAL MAINTENANCE,Development,AIREDALE FORESTRY,11/04/2023, 407.40 ,SMA,72101500,Building maintenance and repair services
"Department for Levelling Up, Housing and Communities",Homes England,ESTATE GENERAL MAINTENANCE,Development,AIREDALE FORESTRY,11/04/2023, 426.94 ,SMA,72101500,Building maintenance and repair services
"Department for Levelling Up, Housing and Communities",Homes England,ESTATE GENERAL MAINTENANCE,Development,AIREDALE FORESTRY,25/04/2023," 1,200.00 ",SMA,72101500,Building maintenance and repair services
"Department for Levelling Up, Housing and Communities",Homes England,LUHBF Loans Additions,Investment,APPERLEY VIEW LTD,18/04/2023," 71,324.01 ",MIC,None,Loans
"Department for Levelling Up, Housing and Communities",Homes England,ST FUND LOANS ADDITIONS,Investment,ANSTEYS COVE DEVELOPMENT LLP,28/04/2023," 251,749.88 ",MED,None,Loans
"Department for Levelling Up, Housing and Communities",Homes England,CONTRACT WORKS,Investment,ASHFORDS,03/04/2023," 14,103.60 ",LAR,80121600,Business law services
"Department for Levelling Up, Housing and Communities",Homes England,PROF FEES LOANS CAPITALISED,Investment,ASHFORDS,04/04/2023, 15.00 ,LAR,80121600,Business law services
"Department for Levelling Up, Housing and Communities",Homes England,PROF FEES LOANS CAPITALISED,Investment,ASHFORDS,04/04/2023," 16,038.00 ",LAR,80121600,Business law services
"Department for Levelling Up, Housing and Communities",Homes England,CONTRACT WORKS,Investment,ASHFORDS,06/04/2023," 1,056.00 ",LAR,80121600,Business law services
"Department for Levelling Up, Housing and Communities",Homes England,CONTRACT WORKS,Investment,ASHFORDS,06/04/2023," 11,305.20 ",LAR,80121600,Business law services
"Department for Levelling Up, Housing and Communities",Homes England,LEGAL FEES (PROGRAMME - CDEL),Investment,ASHFORDS,11/04/2023, 30.00 ,LAR,80121600,Business law services
"Department for Levelling Up, Housing and Communities",Homes England,LEGAL FEES (PROGRAMME - CDEL),Investment,ASHFORDS,11/04/2023," 11,880.00 ",LAR,80121600,Business law services
"Department for Levelling Up, Housing and Communities",Homes England,LEGAL FEES (PROGRAMME - RDEL),Development,ASHFORDS,11/04/2023," 2,460.00 ",LAR,80121600,Business law services
"Department for Levelling Up, Housing and Communities",Homes England,CONTRACT WORKS,Investment,ASHFORDS,24/04/2023," 3,811.20 ",LAR,80121600,Business law services
"Department for Levelling Up, Housing and Communities",Homes England,LEGAL FEES (PROGRAMME - CDEL),Investment,ASHFORDS,25/04/2023, 638.40 ,LAR,80121600,Business law services
"Department for Levelling Up, Housing and Communities",Homes England,SECURITY,Development,ATLAS CONTRACTORS LIMITED,13/04/2023," 1,020.00 ",MIC,92121500,Guard services
"Department for Levelling Up, Housing and Communities",Homes England,SECURITY,Development,ATLAS CONTRACTORS LIMITED,13/04/2023, 780.00 ,MIC,92121500,Guard services
"Department for Levelling Up, Housing and Communities",Homes England,BUILDINGS-WATER,"Markets, Partners & Places",ANGLIAN WATER,17/04/2023,-500.43 ,LAR,83101500,Water and sewer utilities
"Department for Levelling Up, Housing and Communities",Homes England,BUILDINGS-WATER,"Markets, Partners & Places",ANGLIAN WATER,17/04/2023," 1,782.82 ",LAR,83101500,Water and sewer utilities
"Department for Levelling Up, Housing and Communities",Homes England,BUILDINGS-WATER,"Markets, Partners & Places",ANGLIAN WATER,24/04/2023," 1,351.02 ",LAR,83101500,Water and sewer utilities
"Department for Levelling Up, Housing and Communities",Homes England,CAR LEASING - HIRE CHARGES,Development,ARNOLD CLARK FINANCE LIMITED,06/04/2023," 2,698.92 ",LAR,25101500,Passenger motor vehicles
"Department for Levelling Up, Housing and Communities",Homes England,CAR LEASING - HIRE CHARGES,Development,ARNOLD CLARK FINANCE LIMITED,06/04/2023," 3,365.50 ",LAR,25101500,Passenger motor vehicles
"Department for Levelling Up, Housing and Communities",Homes England,CAR LEASING - HIRE CHARGES,Investment,ARNOLD CLARK FINANCE LIMITED,06/04/2023, 222.13 ,LAR,25101500,Passenger motor vehicles
"Department for Levelling Up, Housing and Communities",Homes England,CAR LEASING - HIRE CHARGES,Investment,ARNOLD CLARK FINANCE LIMITED,06/04/2023, 280.80 ,LAR,25101500,Passenger motor vehicles
"Department for Levelling Up, Housing and Communities",Homes England,CAR LEASING - HIRE CHARGES,"Markets, Partners & Places",ARNOLD CLARK FINANCE LIMITED,06/04/2023, 117.76 ,LAR,25101500,Passenger motor vehicles
"Department for Levelling Up, Housing and Communities",Homes England,CAR LEASING - HIRE CHARGES,"Markets, Partners & Places",ARNOLD CLARK FINANCE LIMITED,06/04/2023, 163.33 ,LAR,25101500,Passenger motor vehicles
"Department for Levelling Up, Housing and Communities",Homes England,CAR LEASING - HIRE CHARGES,Development,ARNOLD CLARK FINANCE LIMITED,06/04/2023, 221.28 ,LAR,25101500,Passenger motor vehicles
"Department for Levelling Up, Housing and Communities",Homes England,CAR LEASING - HIRE CHARGES,Development,ARNOLD CLARK FINANCE LIMITED,06/04/2023, 264.16 ,LAR,25101500,Passenger motor vehicles
"Department for Levelling Up, Housing and Communities",Homes England,CAR LEASING - HIRE CHARGES,Investment,ARNOLD CLARK FINANCE LIMITED,06/04/2023, 164.14 ,LAR,25101500,Passenger motor vehicles
"Department for Levelling Up, Housing and Communities",Homes England,CAR LEASING - HIRE CHARGES,Investment,ARNOLD CLARK FINANCE LIMITED,06/04/2023, 204.81 ,LAR,25101500,Passenger motor vehicles
"Department for Levelling Up, Housing and Communities",Homes England,CAR LEASING - HIRE CHARGES,"Markets, Partners & Places",ARNOLD CLARK FINANCE LIMITED,11/04/2023, 185.03 ,LAR,25101500,Passenger motor vehicles
"Department for Levelling Up, Housing and Communities",Homes England,CAR LEASING - HIRE CHARGES,"Markets, Partners & Places",ARNOLD CLARK FINANCE LIMITED,11/04/2023, 280.19 ,LAR,25101500,Passenger motor vehicles
"Department for Levelling Up, Housing and Communities",Homes England,CAR LEASING - HIRE CHARGES,"Markets, Partners & Places",ARNOLD CLARK FINANCE LIMITED,11/04/2023, 180.98 ,LAR,25101500,Passenger motor vehicles
"Department for Levelling Up, Housing and Communities",Homes England,CAR LEASING - HIRE CHARGES,"Markets, Partners & Places",ARNOLD CLARK FINANCE LIMITED,11/04/2023, 211.71 ,LAR,25101500,Passenger motor vehicles
"Department for Levelling Up, Housing and Communities",Homes England,CAR LEASING - HIRE CHARGES,Development,ARNOLD CLARK FINANCE LIMITED,11/04/2023, 157.64 ,LAR,25101500,Passenger motor vehicles
"Department for Levelling Up, Housing and Communities",Homes England,CAR LEASING - HIRE CHARGES,Development,ARNOLD CLARK FINANCE LIMITED,11/04/2023, 175.86 ,LAR,25101500,Passenger motor vehicles
"Department for Levelling Up, Housing and Communities",Homes England,CAR LEASING - HIRE CHARGES,"Markets, Partners & Places",ARNOLD CLARK FINANCE LIMITED,11/04/2023, 137.38 ,LAR,25101500,Passenger motor vehicles
"Department for Levelling Up, Housing and Communities",Homes England,CAR LEASING - HIRE CHARGES,"Markets, Partners & Places",ARNOLD CLARK FINANCE LIMITED,11/04/2023, 174.91 ,LAR,25101500,Passenger motor vehicles
"Department for Levelling Up, Housing and Communities",Homes England,CAR LEASING - HIRE CHARGES,Development,ARNOLD CLARK FINANCE LIMITED,12/04/2023,-301.99 ,LAR,25101500,Passenger motor vehicles
"Department for Levelling Up, Housing and Communities",Homes England,CAR LEASING - HIRE CHARGES,Development,ARNOLD CLARK FINANCE LIMITED,12/04/2023,-238.91 ,LAR,25101500,Passenger motor vehicles
"Department for Levelling Up, Housing and Communities",Homes England,CAR LEASING - HIRE CHARGES,"Markets, Partners & Places",ARNOLD CLARK FINANCE LIMITED,12/04/2023, 268.67 ,LAR,25101500,Passenger motor vehicles
"Department for Levelling Up, Housing and Communities",Homes England,CAR LEASING - HIRE CHARGES,"Markets, Partners & Places",ARNOLD CLARK FINANCE LIMITED,12/04/2023, 354.99 ,LAR,25101500,Passenger motor vehicles
"Department for Levelling Up, Housing and Communities",Homes England,CAR LEASING - HIRE CHARGES,Development,ARNOLD CLARK FINANCE LIMITED,17/04/2023, 209.14 ,LAR,25101500,Passenger motor vehicles
"Department for Levelling Up, Housing and Communities",Homes England,CAR LEASING - HIRE CHARGES,Development,ARNOLD CLARK FINANCE LIMITED,17/04/2023, 237.27 ,LAR,25101500,Passenger motor vehicles
"Department for Levelling Up, Housing and Communities",Homes England,CAR LEASING - HIRE CHARGES,Investment,ARNOLD CLARK FINANCE LIMITED,17/04/2023, 187.50 ,LAR,25101500,Passenger motor vehicles
"Department for Levelling Up, Housing and Communities",Homes England,CAR LEASING - HIRE CHARGES,Investment,ARNOLD CLARK FINANCE LIMITED,17/04/2023, 257.12 ,LAR,25101500,Passenger motor vehicles
"Department for Levelling Up, Housing and Communities",Homes England,CAR LEASING - HIRE CHARGES,Development,ARNOLD CLARK FINANCE LIMITED,18/04/2023, 182.60 ,LAR,25101500,Passenger motor vehicles
"Department for Levelling Up, Housing and Communities",Homes England,CAR LEASING - HIRE CHARGES,Development,ARNOLD CLARK FINANCE LIMITED,18/04/2023, 203.54 ,LAR,25101500,Passenger motor vehicles
"Department for Levelling Up, Housing and Communities",Homes England,DISPOSAL FEES - LEGAL,Development,BERWIN LEIGHTON PAISNER,12/04/2023," 34,800.00 ",LAR,80121600,Business law services
"Department for Levelling Up, Housing and Communities",Homes England,DISPOSAL FEES - LEGAL,"Markets, Partners & Places",BERWIN LEIGHTON PAISNER,19/04/2023," 1,306.80 ",LAR,80121600,Business law services
"Department for Levelling Up, Housing and Communities",Homes England,LEGAL FEES (PROGRAMME - RDEL),Development,BERWIN LEIGHTON PAISNER,19/04/2023, 712.80 ,LAR,80121600,Business law services
"Department for Levelling Up, Housing and Communities",Homes England,DISPOSAL FEES - LEGAL,Development,BERWIN LEIGHTON PAISNER,21/04/2023," 24,000.00 ",LAR,80121600,Business law services
"Department for Levelling Up, Housing and Communities",Homes England,DISPOSAL FEES - LEGAL,Development,BERWIN LEIGHTON PAISNER,21/04/2023," 2,760.96 ",LAR,80121600,Business law services
"Department for Levelling Up, Housing and Communities",Homes England,LEGAL FEES (PROGRAMME - RDEL),Investment,BERWIN LEIGHTON PAISNER,26/04/2023," 10,800.00 ",LAR,80121600,Business law services
"Department for Levelling Up, Housing and Communities",Homes England,LEGAL FEES (PROGRAMME - RDEL),Investment,BERWIN LEIGHTON PAISNER,27/04/2023," 6,000.00 ",LAR,80121600,Business law services
"Department for Levelling Up, Housing and Communities",Homes England,MISC PROFESSIONAL FEES,Development,BROWNE JACOBSON LLP,03/04/2023," 13,800.00 ",LAR,80121600,Business law services
"Department for Levelling Up, Housing and Communities",Homes England,LEGAL FEES (PROGRAMME - CDEL),Development,BROWNE JACOBSON LLP,03/04/2023," 11,064.00 ",LAR,80121600,Business law services
"Department for Levelling Up, Housing and Communities",Homes England,MISC PROFESSIONAL FEES,Development,BROWNE JACOBSON LLP,03/04/2023," 20,742.00 ",LAR,80121600,Business law services
"Department for Levelling Up, Housing and Communities",Homes England,DISPOSAL FEES - LEGAL,"Markets, Partners & Places",BROWNE JACOBSON LLP,06/04/2023," 3,731.48 ",LAR,80121600,Business law services
"Department for Levelling Up, Housing and Communities",Homes England,LEGAL FEES (PROGRAMME - RDEL),Investment,BROWNE JACOBSON LLP,11/04/2023," 1,200.00 ",LAR,80121600,Business law services
"Department for Levelling Up, Housing and Communities",Homes England,DISPOSAL FEES - LEGAL,"Markets, Partners & Places",BROWNE JACOBSON LLP,11/04/2023," 14,463.60 ",LAR,80121600,Business law services
"Department for Levelling Up, Housing and Communities",Homes England,LEGAL FEES (PROGRAMME - CDEL),Investment,BROWNE JACOBSON LLP,11/04/2023," 5,091.00 ",LAR,80121600,Business law services
"Department for Levelling Up, Housing and Communities",Homes England,LEGAL FEES (PROGRAMME - RDEL),Development,BROWNE JACOBSON LLP,14/04/2023," 5,260.32 ",LAR,80121600,Business law services
"Department for Levelling Up, Housing and Communities",Homes England,LEGAL FEES (PROGRAMME - RDEL),Development,BROWNE JACOBSON LLP,17/04/2023," 15,300.00 ",LAR,80121600,Business law services
"Department for Levelling Up, Housing and Communities",Homes England,LEGAL FEES (PROGRAMME - CDEL),Development,BROWNE JACOBSON LLP,18/04/2023," 46,554.00 ",LAR,80121600,Business law services
"Department for Levelling Up, Housing and Communities",Homes England,LEGAL FEES (PROGRAMME - RDEL),"Markets, Partners & Places",BROWNE JACOBSON LLP,18/04/2023, 960.00 ,LAR,80121600,Business law services
"Department for Levelling Up, Housing and Communities",Homes England,MISC PROFESSIONAL FEES,Development,BROWNE JACOBSON LLP,18/04/2023," 4,500.00 ",LAR,80121600,Business law services
"Department for Levelling Up, Housing and Communities",Homes England,LEGAL FEES (PROGRAMME - RDEL),"Markets, Partners & Places",BROWNE JACOBSON LLP,19/04/2023," 3,868.80 ",LAR,80121600,Business law services
"Department for Levelling Up, Housing and Communities",Homes England,LEGAL FEES (PROGRAMME - RDEL),Development,BROWNE JACOBSON LLP,19/04/2023," 8,700.00 ",LAR,80121600,Business law services
"Department for Levelling Up, Housing and Communities",Homes England,DISPOSAL FEES - LEGAL,Development,BROWNE JACOBSON LLP,19/04/2023," 1,200.00 ",LAR,80121600,Business law services
"Department for Levelling Up, Housing and Communities",Homes England,LEGAL FEES (PROGRAMME - RDEL),Development,BROWNE JACOBSON LLP,19/04/2023," 4,800.00 ",LAR,80121600,Business law services
"Department for Levelling Up, Housing and Communities",Homes England,LEGAL FEES (PROGRAMME - RDEL),"Markets, Partners & Places",BROWNE JACOBSON LLP,19/04/2023," 3,363.60 ",LAR,80121600,Business law services
"Department for Levelling Up, Housing and Communities",Homes England,LEGAL FEES (PROGRAMME - RDEL),Development,BROWNE JACOBSON LLP,19/04/2023," 8,330.40 ",LAR,80121600,Business law services
"Department for Levelling Up, Housing and Communities",Homes England,LEGAL FEES (PROGRAMME - CDEL),Investment,BROWNE JACOBSON LLP,20/04/2023," 53,485.80 ",LAR,80121600,Business law services
"Department for Levelling Up, Housing and Communities",Homes England,LEGAL FEES (PROGRAMME - CDEL),Development,BROWNE JACOBSON LLP,20/04/2023," 1,200.00 ",LAR,80121600,Business law services
"Department for Levelling Up, Housing and Communities",Homes England,LEGAL FEES (PROGRAMME - RDEL),Development,BROWNE JACOBSON LLP,21/04/2023," 1,200.00 ",LAR,80121600,Business law services
"Department for Levelling Up, Housing and Communities",Homes England,LEGAL FEES (PROGRAMME - CDEL),Development,BROWNE JACOBSON LLP,21/04/2023," 2,400.00 ",LAR,80121600,Business law services
"Department for Levelling Up, Housing and Communities",Homes England,LEGAL FEES (PROGRAMME - CDEL),Development,BROWNE JACOBSON LLP,21/04/2023," 2,262.60 ",LAR,80121600,Business law services
"Department for Levelling Up, Housing and Communities",Homes England,LEGAL FEES (PROGRAMME - CDEL),Development,BROWNE JACOBSON LLP,21/04/2023," 1,206.00 ",LAR,80121600,Business law services
"Department for Levelling Up, Housing and Communities",Homes England,LEGAL FEES (PROGRAMME - CDEL),Development,BROWNE JACOBSON LLP,21/04/2023, 755.40 ,LAR,80121600,Business law services
"Department for Levelling Up, Housing and Communities",Homes England,LEGAL FEES (PROGRAMME - RDEL),"Markets, Partners & Places",BROWNE JACOBSON LLP,24/04/2023, 960.00 ,LAR,80121600,Business law services
"Department for Levelling Up, Housing and Communities",Homes England,LEGAL FEES (PROGRAMME - CDEL),Development,BROWNE JACOBSON LLP,24/04/2023," 19,155.17 ",LAR,80121600,Business law services
"Department for Levelling Up, Housing and Communities",Homes England,LEGAL FEES (PROGRAMME - RDEL),"Markets, Partners & Places",BROWNE JACOBSON LLP,24/04/2023," 1,099.80 ",LAR,80121600,Business law services
"Department for Levelling Up, Housing and Communities",Homes England,LEGAL FEES (PROGRAMME - CDEL),"Markets, Partners & Places",BROWNE JACOBSON LLP,24/04/2023," 16,800.00 ",LAR,80121600,Business law services
"Department for Levelling Up, Housing and Communities",Homes England,LEGAL FEES (PROGRAMME - CDEL),Investment,BROWNE JACOBSON LLP,25/04/2023," 1,140.00 ",LAR,80121600,Business law services
"Department for Levelling Up, Housing and Communities",Homes England,LEGAL FEES (PROGRAMME - RDEL),Investment,BROWNE JACOBSON LLP,25/04/2023," 1,140.00 ",LAR,80121600,Business law services
"Department for Levelling Up, Housing and Communities",Homes England,LEGAL FEES (PROGRAMME - CDEL),Development,BROWNE JACOBSON LLP,25/04/2023, 582.60 ,LAR,80121600,Business law services
"Department for Levelling Up, Housing and Communities",Homes England,LEGAL FEES (PROGRAMME - RDEL),"Markets, Partners & Places",BROWNE JACOBSON LLP,26/04/2023," 1,200.00 ",LAR,80121600,Business law services
"Department for Levelling Up, Housing and Communities",Homes England,DISPOSAL FEES - LEGAL,"Markets, Partners & Places",BROWNE JACOBSON LLP,26/04/2023," 1,299.29 ",LAR,80121600,Business law services
"Department for Levelling Up, Housing and Communities",Homes England,LEGAL FEES (PROGRAMME - CDEL),Development,BROWNE JACOBSON LLP,26/04/2023," 6,163.34 ",LAR,80121600,Business law services
"Department for Levelling Up, Housing and Communities",Homes England,LEGAL FEES (PROGRAMME - CDEL),"Markets, Partners & Places",BROWNE JACOBSON LLP,26/04/2023," 1,688.28 ",LAR,80121600,Business law services
"Department for Levelling Up, Housing and Communities",Homes England,LEGAL FEES (PROGRAMME - RDEL),"Markets, Partners & Places",BROWNE JACOBSON LLP,27/04/2023, 840.00 ,LAR,80121600,Business law services
"Department for Levelling Up, Housing and Communities",Homes England,DISPOSAL FEES - LEGAL,Development,BROWNE JACOBSON LLP,27/04/2023," 18,000.00 ",LAR,80121600,Business law services
"Department for Levelling Up, Housing and Communities",Homes England,RI - MONIITORING SURVEYOR FEES,Investment,BUILDING DESIGN PARTNERSHIP,06/04/2023," 2,112.00 ",LAR,81101500,Civil Engineering
"Department for Levelling Up, Housing and Communities",Homes England,RI - MONIITORING SURVEYOR FEES,Investment,BUILDING DESIGN PARTNERSHIP,06/04/2023," 2,760.00 ",LAR,81101500,Civil Engineering
"Department for Levelling Up, Housing and Communities",Homes England,RI - MONIITORING SURVEYOR FEES,Investment,BUILDING DESIGN PARTNERSHIP,06/04/2023," 2,310.00 ",LAR,81101500,Civil Engineering
"Department for Levelling Up, Housing and Communities",Homes England,MASTERPLANNING FEES,Development,BUILDING DESIGN PARTNERSHIP,25/04/2023," 39,093.24 ",LAR,81101500,Civil Engineering
"Department for Levelling Up, Housing and Communities",Homes England,REV GRNTS TO LOCAL AUTHORITIES,Investment,BUCKINGHAMSHIRE COUNTY COUNCIL,03/04/2023," 289,223.40 ",PUB,None,Grants
"Department for Levelling Up, Housing and Communities",Homes England,MISC PROFESSIONAL FEES,Development,DESIGN WEST,05/04/2023," 1,200.00 ",SMA,80101500,Business and corporate management consultation services
"Department for Levelling Up, Housing and Communities",Homes England,MISC PROFESSIONAL FEES,Chief Customer Office,THE BOSTON CONSULTING GROUP UK LLP,20/04/2023," 212,400.00 ",LAR,80101500,Business and Corporate Management Consultation Services
"Department for Levelling Up, Housing and Communities",Homes England,LUHBF Loans Additions,Investment,BLUEOAK ESTATES (CHESHIRE) LIMITED,25/04/2023," 295,007.10 ",MIC,None,Loans
"Department for Levelling Up, Housing and Communities",Homes England,ENGINEERING CONSULTANTS,"Markets, Partners & Places",STANTEC UK LIMITED,24/04/2023, 640.08 ,LAR,81101500,Civil Engineering
"Department for Levelling Up, Housing and Communities",Homes England,ENGINEERING CONSULTANTS,"Markets, Partners & Places",STANTEC UK LIMITED,24/04/2023," 1,173.00 ",LAR,81101500,Civil Engineering
"Department for Levelling Up, Housing and Communities",Homes England,PLANNING APPLICATIONS,"Markets, Partners & Places",STANTEC UK LIMITED,26/04/2023," 61,954.32 ",LAR,80131800,Real estate management services
"Department for Levelling Up, Housing and Communities",Homes England,AGENCY STAFF,Cido,BADENOCH & CLARK,14/04/2023," 1,478.40 ",LAR,80111600,Temporary personnel services
"Department for Levelling Up, Housing and Communities",Homes England,AGENCY STAFF,Cido,BADENOCH & CLARK,14/04/2023," 1,182.72 ",LAR,80111600,Temporary personnel services
"Department for Levelling Up, Housing and Communities",Homes England,AGENCY STAFF,Cido,BADENOCH & CLARK,18/04/2023," 4,114.26 ",LAR,80111600,Temporary personnel services
"Department for Levelling Up, Housing and Communities",Homes England,AGENCY STAFF,Cido,BADENOCH & CLARK,18/04/2023," 3,291.41 ",LAR,80111600,Temporary personnel services
"Department for Levelling Up, Housing and Communities",Homes England,AGENCY STAFF,Cido,BADENOCH & CLARK,20/04/2023," 3,291.41 ",LAR,80111600,Temporary personnel services
"Department for Levelling Up, Housing and Communities",Homes England,MISC PROFESSIONAL FEES,Chief Customer Office,BADENOCH & CLARK,24/04/2023," 4,638.00 ",LAR,80111600,Temporary personnel services
"Department for Levelling Up, Housing and Communities",Homes England,MISC PROFESSIONAL FEES,Chief Customer Office,BADENOCH & CLARK,24/04/2023," 4,638.00 ",LAR,80111600,Temporary personnel services
"Department for Levelling Up, Housing and Communities",Homes England,MISC PROFESSIONAL FEES,Chief Customer Office,BADENOCH & CLARK,24/04/2023," 3,710.40 ",LAR,80111600,Temporary personnel services
"Department for Levelling Up, Housing and Communities",Homes England,MISC PROFESSIONAL FEES,Chief Customer Office,BADENOCH & CLARK,24/04/2023," 4,638.00 ",LAR,80111600,Temporary personnel services
"Department for Levelling Up, Housing and Communities",Homes England,MISC PROFESSIONAL FEES,Chief Customer Office,BADENOCH & CLARK,24/04/2023," 4,638.00 ",LAR,80111600,Temporary personnel services
"Department for Levelling Up, Housing and Communities",Homes England,MISC PROFESSIONAL FEES,Chief Customer Office,BADENOCH & CLARK,24/04/2023," 4,638.00 ",LAR,80111600,Temporary personnel services
"Department for Levelling Up, Housing and Communities",Homes England,MISC PROFESSIONAL FEES,Chief Customer Office,BADENOCH & CLARK,24/04/2023," 4,638.00 ",LAR,80111600,Temporary personnel services
"Department for Levelling Up, Housing and Communities",Homes England,MISC PROFESSIONAL FEES,Chief Customer Office,BADENOCH & CLARK,24/04/2023," 4,638.00 ",LAR,80111600,Temporary personnel services
"Department for Levelling Up, Housing and Communities",Homes England,MISC PROFESSIONAL FEES,Chief Customer Office,BADENOCH & CLARK,24/04/2023," 4,638.00 ",LAR,80111600,Temporary personnel services
"Department for Levelling Up, Housing and Communities",Homes England,MISC PROFESSIONAL FEES,Chief Customer Office,BADENOCH & CLARK,24/04/2023," 4,638.00 ",LAR,80111600,Temporary personnel services
"Department for Levelling Up, Housing and Communities",Homes England,MISC PROFESSIONAL FEES,Chief Customer Office,BADENOCH & CLARK,24/04/2023," 4,638.00 ",LAR,80111600,Temporary personnel services
"Department for Levelling Up, Housing and Communities",Homes England,MISC PROFESSIONAL FEES,Chief Customer Office,BADENOCH & CLARK,24/04/2023," 4,638.00 ",LAR,80111600,Temporary personnel services
"Department for Levelling Up, Housing and Communities",Homes England,MISC PROFESSIONAL FEES,Chief Customer Office,BADENOCH & CLARK,24/04/2023," 4,638.00 ",LAR,80111600,Temporary personnel services
"Department for Levelling Up, Housing and Communities",Homes England,MISC PROFESSIONAL FEES,Chief Customer Office,BADENOCH & CLARK,24/04/2023," 4,638.00 ",LAR,80111600,Temporary personnel services
"Department for Levelling Up, Housing and Communities",Homes England,MISC PROFESSIONAL FEES,Chief Customer Office,BADENOCH & CLARK,24/04/2023," 4,638.00 ",LAR,80111600,Temporary personnel services
"Department for Levelling Up, Housing and Communities",Homes England,MISC PROFESSIONAL FEES,Chief Customer Office,BADENOCH & CLARK,24/04/2023," 3,710.40 ",LAR,80111600,Temporary personnel services
"Department for Levelling Up, Housing and Communities",Homes England,MISC PROFESSIONAL FEES,Chief Customer Office,BADENOCH & CLARK,24/04/2023," 3,710.40 ",LAR,80111600,Temporary personnel services
"Department for Levelling Up, Housing and Communities",Homes England,AGENCY STAFF,Cido,BADENOCH & CLARK,26/04/2023," 4,114.26 ",LAR,80111600,Temporary personnel services
"Department for Levelling Up, Housing and Communities",Homes England,AGENCY STAFF,Cido,BADENOCH & CLARK,27/04/2023," 1,182.72 ",LAR,80111600,Temporary personnel services
"Department for Levelling Up, Housing and Communities",Homes England,AGENCY STAFF,Cido,BADENOCH & CLARK,27/04/2023," 1,478.40 ",LAR,80111600,Temporary personnel services
"Department for Levelling Up, Housing and Communities",Homes England,DISPOSAL FEES - PROPERTY AGENT,"Markets, Partners & Places",RIDER LEVETT BUCKNALL UK LTD,04/04/2023," 1,440.00 ",LAR,80131600,Sale of property and building
"Department for Levelling Up, Housing and Communities",Homes England,RI - MONIITORING SURVEYOR FEES,Investment,RIDER LEVETT BUCKNALL UK LTD,05/04/2023," 1,449.60 ",LAR,81101500,Civil Engineering
"Department for Levelling Up, Housing and Communities",Homes England,RI - MONIITORING SURVEYOR FEES,Investment,RIDER LEVETT BUCKNALL UK LTD,05/04/2023," 1,569.60 ",LAR,81101500,Civil Engineering
"Department for Levelling Up, Housing and Communities",Homes England,RI - MONIITORING SURVEYOR FEES,Investment,RIDER LEVETT BUCKNALL UK LTD,06/04/2023," 1,680.00 ",LAR,81101500,Civil Engineering
"Department for Levelling Up, Housing and Communities",Homes England,RI - MONIITORING SURVEYOR FEES,Investment,RIDER LEVETT BUCKNALL UK LTD,06/04/2023," 1,170.00 ",LAR,81101500,Civil Engineering
"Department for Levelling Up, Housing and Communities",Homes England,RI - MONIITORING SURVEYOR FEES,Investment,RIDER LEVETT BUCKNALL UK LTD,12/04/2023," 1,170.00 ",LAR,81101500,Civil Engineering
"Department for Levelling Up, Housing and Communities",Homes England,RI - MONIITORING SURVEYOR FEES,Investment,RIDER LEVETT BUCKNALL UK LTD,14/04/2023," 1,260.00 ",LAR,81101500,Civil Engineering
"Department for Levelling Up, Housing and Communities",Homes England,RI - MONIITORING SURVEYOR FEES,Investment,RIDER LEVETT BUCKNALL UK LTD,14/04/2023," 2,520.00 ",LAR,81101500,Civil Engineering
"Department for Levelling Up, Housing and Communities",Homes England,PROF FEES LOANS CAPITALISED,Investment,RIDER LEVETT BUCKNALL UK LTD,14/04/2023," 2,940.00 ",LAR,81101500,Civil Engineering
"Department for Levelling Up, Housing and Communities",Homes England,RI - MONIITORING SURVEYOR FEES,Investment,RIDER LEVETT BUCKNALL UK LTD,25/04/2023," 2,880.00 ",LAR,81101500,Civil Engineering
"Department for Levelling Up, Housing and Communities",Homes England,PROF FEES LOANS CAPITALISED,Investment,RIDER LEVETT BUCKNALL UK LTD,27/04/2023," 1,380.00 ",LAR,81101500,Civil Engineering
"Department for Levelling Up, Housing and Communities",Homes England,RI - MONIITORING SURVEYOR FEES,Investment,RIDER LEVETT BUCKNALL UK LTD,28/04/2023," 1,170.00 ",LAR,81101500,Civil Engineering
"Department for Levelling Up, Housing and Communities",Homes England,PRINTING & STATIONERY,Chief Operating Officer,BANNER,26/04/2023, 279.38 ,LAR,44121600,Desk supplies
"Department for Levelling Up, Housing and Communities",Homes England,PRINTING & STATIONERY,Chief Operating Officer,BANNER,26/04/2023, 236.64 ,LAR,44121600,Desk supplies
"Department for Levelling Up, Housing and Communities",Homes England,ST FUND LOANS ADDITIONS,Investment,BALLYMORE DEANSTON LIMITED,04/04/2023," 1,749,563.15 ",SMA,None,Loans
"Department for Levelling Up, Housing and Communities",Homes England,PROMOTIONAL EVENTS,Chief Operating Officer,BNETWORK,13/04/2023,-768.73 ,MED,80141600,Sales and business promotion activities
"Department for Levelling Up, Housing and Communities",Homes England,CONTRACT INSURANCE,Development,BROWNE JACOBSON,24/04/2023," 5,400.00 ",LAR,84131500,Insurance services for structures and property and possessions
"Department for Levelling Up, Housing and Communities",Homes England,PROPERTY SERVICES,Development,BALFOUR BEATTY,12/04/2023," 4,025.42 ",LAR,80131800,Real estate management services
"Department for Levelling Up, Housing and Communities",Homes England,OTHER PROFESSIONAL FEES,Development,BSG ECOLOGY,05/04/2023, 660.00 ,MED,77101500,Environmental auditing
"Department for Levelling Up, Housing and Communities",Homes England,OTHER LTF LOAN ADDITIONS,Investment,BRITISH LAND,26/04/2023," 248,339.97 ",SMA,None,Loans
"Department for Levelling Up, Housing and Communities",Homes England,PROPERTY SERVICES,Development,Beckland Property Consultancy,03/04/2023," 2,030.40 ",MIC,80131800,Real estate management services
"Department for Levelling Up, Housing and Communities",Homes England,LUHBF Loans Additions,Investment,BARCLAYS BANK PLC,14/04/2023," 192,459.10 ",LAR,None,Loans
"Department for Levelling Up, Housing and Communities",Homes England,PACKAGE MAINTENANCE & SUBSCRIP,Cido,BYTES SOFTWARE SERVICES LTD,28/04/2023," 75,759.96 ",LAR,43231500,Business function specific software
"Department for Levelling Up, Housing and Communities",Homes England,MISC PROFESSIONAL FEES,Chief Customer Office,BOSTON HALE LTD,26/04/2023," 52,031.04 ",SMA,80111600,Temporary personnel services
"Department for Levelling Up, Housing and Communities",Homes England,MISC PROFESSIONAL FEES,Chief Customer Office,BOSTON HALE LTD,26/04/2023," 59,114.56 ",SMA,80111600,Temporary personnel services
"Department for Levelling Up, Housing and Communities",Homes England,LUHBF Loans Additions,Investment,BROADFIELD ROCHESTER DEVELOPMENT LIMITED,06/04/2023," 148,334.41 ",LAR,None,Loans
"Department for Levelling Up, Housing and Communities",Homes England,RI - MONIITORING SURVEYOR FEES,Investment,BNP PARIBAS REAL ESTATE,04/04/2023," 4,720.80 ",LAR,81101500,Civil Engineering
"Department for Levelling Up, Housing and Communities",Homes England,RI - MONIITORING SURVEYOR FEES,Investment,BNP PARIBAS REAL ESTATE,06/04/2023," 1,080.00 ",LAR,81101500,Civil Engineering
"Department for Levelling Up, Housing and Communities",Homes England,DISPOSAL FEES - PROPERTY AGENT,"Markets, Partners & Places",BNP PARIBAS REAL ESTATE,11/04/2023, 600.00 ,LAR,80131600,Sale of property and building
"Department for Levelling Up, Housing and Communities",Homes England,PROF FEES LOANS CAPITALISED,Investment,BNP PARIBAS REAL ESTATE,24/04/2023," 1,200.00 ",LAR,80131800,Real estate management services
"Department for Levelling Up, Housing and Communities",Homes England,RI - MONIITORING SURVEYOR FEES,Investment,BNP PARIBAS REAL ESTATE,25/04/2023, 840.00 ,LAR,81101500,Civil Engineering
"Department for Levelling Up, Housing and Communities",Homes England,RI - MONIITORING SURVEYOR FEES,Investment,BNP PARIBAS REAL ESTATE,25/04/2023, 840.00 ,LAR,81101500,Civil Engineering
"Department for Levelling Up, Housing and Communities",Homes England,RI - MONIITORING SURVEYOR FEES,Investment,BNP PARIBAS REAL ESTATE,27/04/2023, 840.00 ,LAR,81101500,Civil Engineering
"Department for Levelling Up, Housing and Communities",Homes England,RI - MONIITORING SURVEYOR FEES,Investment,BNP PARIBAS REAL ESTATE,27/04/2023, 840.00 ,LAR,81101500,Civil Engineering
"Department for Levelling Up, Housing and Communities",Homes England,ESTATE GENERAL MAINTENANCE,Development,BROOKFIELD CONTRACTING & FARMING LTD,14/04/2023, 286.99 ,SMA,72101500,Building maintenance and repair services
"Department for Levelling Up, Housing and Communities",Homes England,ESTATE GENERAL MAINTENANCE,"Markets, Partners & Places",BROOKFIELD CONTRACTING & FARMING LTD,14/04/2023, 575.70 ,SMA,72101500,Building maintenance and repair services
"Department for Levelling Up, Housing and Communities",Homes England,MANAGEMENT COSTS,Development,BROOKFIELD CONTRACTING & FARMING LTD,26/04/2023," 9,703.20 ",SMA,80131800,Real estate management services
"Department for Levelling Up, Housing and Communities",Homes England,MISC PROFESSIONAL FEES,Chief Customer Office,BOND DICKINSON LLP,04/04/2023," 9,747.60 ",LAR,80121600,Business law services
"Department for Levelling Up, Housing and Communities",Homes England,MISC PROFESSIONAL FEES,Chief Customer Office,BOND DICKINSON LLP,04/04/2023," 3,772.20 ",LAR,80121600,Business law services
"Department for Levelling Up, Housing and Communities",Homes England,LEGAL FEES (PROGRAMME - CDEL),Investment,BOND DICKINSON LLP,04/04/2023," 1,632.00 ",LAR,80121600,Business law services
"Department for Levelling Up, Housing and Communities",Homes England,DISPOSAL FEES - LEGAL,Development,BOND DICKINSON LLP,05/04/2023," 2,496.00 ",LAR,80121600,Business law services
"Department for Levelling Up, Housing and Communities",Homes England,MISC PROFESSIONAL FEES,Investment,BOND DICKINSON LLP,12/04/2023," 1,800.00 ",LAR,80121600,Business law services
"Department for Levelling Up, Housing and Communities",Homes England,MISC PROFESSIONAL FEES,Chief Customer Office,BOND DICKINSON LLP,12/04/2023," 11,056.80 ",LAR,80121600,Business law services
"Department for Levelling Up, Housing and Communities",Homes England,LEGAL FEES (PROGRAMME - RDEL),Investment,BOND DICKINSON LLP,13/04/2023," 1,800.00 ",LAR,80121600,Business law services
"Department for Levelling Up, Housing and Communities",Homes England,LEGAL FEES (PROGRAMME - RDEL),Investment,BOND DICKINSON LLP,13/04/2023," 2,978.40 ",LAR,80121600,Business law services
"Department for Levelling Up, Housing and Communities",Homes England,LEGAL FEES (PROGRAMME - RDEL),"Markets, Partners & Places",BOND DICKINSON LLP,14/04/2023," 15,605.40 ",LAR,80121600,Business law services
"Department for Levelling Up, Housing and Communities",Homes England,AHP HOMEBUY AGENTS FEES,Investment,BOND DICKINSON LLP,20/04/2023," 6,120.00 ",LAR,80121600,Business law services
"Department for Levelling Up, Housing and Communities",Homes England,AHP HOMEBUY AGENTS FEES,Investment,BOND DICKINSON LLP,20/04/2023," 6,120.00 ",LAR,80121600,Business law services
"Department for Levelling Up, Housing and Communities",Homes England,LEGAL FEES (PROGRAMME - RDEL),Investment,BOND DICKINSON LLP,26/04/2023," 3,389.40 ",LAR,80121600,Business law services
"Department for Levelling Up, Housing and Communities",Homes England,LEGAL FEES (PROGRAMME - RDEL),Investment,BOND DICKINSON LLP,28/04/2023, 22.00 ,LAR,80121600,Business law services
"Department for Levelling Up, Housing and Communities",Homes England,LEGAL FEES (PROGRAMME - RDEL),Investment,BOND DICKINSON LLP,28/04/2023," 5,995.20 ",LAR,80121600,Business law services
"Department for Levelling Up, Housing and Communities",Homes England,LANDSCAPE MAINT-BUILT ESTATE,Development,G BURLEY & SONS LTD,11/04/2023, 480.00 ,LAR,72102900,Facility maintenance and repair services
"Department for Levelling Up, Housing and Communities",Homes England,ESTATE GENERAL MAINTENANCE,Development,G BURLEY & SONS LTD,11/04/2023, 624.00 ,LAR,72101500,Building maintenance and repair services
"Department for Levelling Up, Housing and Communities",Homes England,EXTERNAL BUILDING MAINTENANCE,"Markets, Partners & Places",BERRYS,27/04/2023," 2,616.00 ",MED,72101500,Building maintenance and repair services
"Department for Levelling Up, Housing and Communities",Homes England,CAP GRNTS TO PRIVATE SECTOR,Investment,HARPER STONE PROPERTIES LTD,04/04/2023," 1,642,313.98 ",SMA,None,Grants
"Department for Levelling Up, Housing and Communities",Homes England,CAP GRNTS PUB SECTOR EXCL L A,Investment,STEPHENSON HOUSE MANAGEMENT COMPANY 2015 LTD,06/04/2023," 233,763.52 ",MIC,None,Grants
"Department for Levelling Up, Housing and Communities",Homes England,CAP GRNTS TO PRIVATE SECTOR,Investment,REVOLUTION PROPERTY MANAGEMENT LTD,24/04/2023," 197,751.26 ",SMA,None,Grants
"Department for Levelling Up, Housing and Communities",Homes England,CAP GRNTS TO PRIVATE SECTOR,Investment,NATIONWIDE MANAGERS LLP,17/04/2023," 1,692,859.81 ",MIC,None,Grants
"Department for Levelling Up, Housing and Communities",Homes England,CAP GRNTS TO PRIVATE SECTOR,Investment,ADVENT 2 AND 3 MANAGEMENT CO LTD,26/04/2023," 1,005,839.00 ",MIC,None,Grants
"Department for Levelling Up, Housing and Communities",Homes England,CAP GRNTS TO PRIVATE SECTOR,Investment,ANDREWS & LETTINGS MANAGEMENT,06/04/2023," 591,719.00 ",MED,None,Grants
"Department for Levelling Up, Housing and Communities",Homes England,CAP GRNTS TO PRIVATE SECTOR,Investment,RESIDENTIAL MANAGEMENT GROUP LTD,25/04/2023," 499,352.12 ",LAR,None,Grants
"Department for Levelling Up, Housing and Communities",Homes England,CAP GRNTS TO PRIVATE SECTOR,Investment,ADVENT 1 MANAGEMENT COMPANY LIMITED,14/04/2023," 2,524,302.32 ",SMA,None,Grants
"Department for Levelling Up, Housing and Communities",Homes England,CAP GRNTS TO PRIVATE SECTOR,Investment,TRINITY ESTATES PROPERTY MANAGEMENT LIMITED,17/04/2023," 171,632.34 ",MED,None,Grants
"Department for Levelling Up, Housing and Communities",Homes England,CAP GRNTS TO PRIVATE SECTOR,Investment,LIVERPOOL QUAYS MANAGEMENT LIMITED,11/04/2023," 2,916,046.70 ",SMA,None,Grants
"Department for Levelling Up, Housing and Communities",Homes England,CAP GRNTS TO PRIVATE SECTOR,Investment,LANDSWOOD DE COY,04/04/2023," 537,822.50 ",MIC,None,Grants
"Department for Levelling Up, Housing and Communities",Homes England,EXTERNAL ROOM BOOKINGS,Cido,COMPASS SERVICES,27/04/2023, 409.86 ,MIC,90111600,Meeting facilities
"Department for Levelling Up, Housing and Communities",Homes England,STAMP DUTY,"Markets, Partners & Places",CLARKE WILMOTT SOLICITORS,13/04/2023," 27,281.00 ",LAR,None,Acquisition
"Department for Levelling Up, Housing and Communities",Homes England,RI - MONIITORING SURVEYOR FEES,Investment,CAMPBELL REITH,03/04/2023," 1,320.00 ",MED,81101500,Civil Engineering
"Department for Levelling Up, Housing and Communities",Homes England,RI - MONIITORING SURVEYOR FEES,Investment,CAMPBELL REITH,05/04/2023," 1,740.00 ",MED,81101500,Civil Engineering
"Department for Levelling Up, Housing and Communities",Homes England,ENGINEERING FEES,Development,CAMPBELL REITH,11/04/2023,"-1,200.00 ",MED,81101500,Civil Engineering
"Department for Levelling Up, Housing and Communities",Homes England,MISC PROFESSIONAL FEES,Development,CAMPBELL REITH,11/04/2023," 1,200.00 ",MED,77101500,Environmental auditing
"Department for Levelling Up, Housing and Communities",Homes England,OTHER PROFESSIONAL FEES,Development,CAMPBELL REITH,11/04/2023," 2,400.00 ",MED,81101500,Civil Engineering
"Department for Levelling Up, Housing and Communities",Homes England,MASTERPLANNING FEES,"Markets, Partners & Places",CAMPBELL REITH,11/04/2023," 299,186.53 ",MED,81101500,Civil Engineering
"Department for Levelling Up, Housing and Communities",Homes England,MASTERPLANNING FEES,"Markets, Partners & Places",CAMPBELL REITH,11/04/2023," 17,588.63 ",MED,81101500,Civil Engineering
"Department for Levelling Up, Housing and Communities",Homes England,OTHER PROFESSIONAL FEES,"Markets, Partners & Places",CAMPBELL REITH,12/04/2023, 628.07 ,MED,81101500,Civil Engineering
"Department for Levelling Up, Housing and Communities",Homes England,PLANNING APPLICATIONS,"Markets, Partners & Places",CAMPBELL REITH,12/04/2023," 10,288.80 ",MED,80131800,Real estate management services
"Department for Levelling Up, Housing and Communities",Homes England,ENGINEERING FEES,Development,CAMPBELL REITH,13/04/2023," 1,200.00 ",MED,81101500,Civil Engineering
"Department for Levelling Up, Housing and Communities",Homes England,MISC PROFESSIONAL FEES,"Markets, Partners & Places",CAMPBELL REITH,19/04/2023," 10,800.00 ",MED,81101500,Civil Engineering
"Department for Levelling Up, Housing and Communities",Homes England,PROPERTY SERVICES,"Markets, Partners & Places",CAMPBELL REITH,24/04/2023," 11,878.80 ",MED,80131800,Real estate management services
"Department for Levelling Up, Housing and Communities",Homes England,RI - MONIITORING SURVEYOR FEES,Investment,CAMPBELL REITH,24/04/2023," 2,280.00 ",MED,81101500,Civil Engineering
"Department for Levelling Up, Housing and Communities",Homes England,MISC PROFESSIONAL FEES,"Markets, Partners & Places",CAMPBELL REITH,26/04/2023," 1,260.00 ",MED,77101500,Environmental auditing
"Department for Levelling Up, Housing and Communities",Homes England,MISC PROFESSIONAL FEES,"Markets, Partners & Places",CAMPBELL REITH,26/04/2023," 1,500.00 ",MED,77101500,Environmental auditing
"Department for Levelling Up, Housing and Communities",Homes England,OTHER PROFESSIONAL FEES,Development,CAMPBELL REITH,27/04/2023, 387.46 ,MED,81101500,Civil Engineering
"Department for Levelling Up, Housing and Communities",Homes England,PROPERTY SERVICES,"Markets, Partners & Places",CARTER JONAS,20/04/2023, 709.12 ,LAR,80131800,Real estate management services
"Department for Levelling Up, Housing and Communities",Homes England,PROPERTY SERVICES,Development,CARTER JONAS,26/04/2023," 2,400.00 ",LAR,80131800,Real estate management services
"Department for Levelling Up, Housing and Communities",Homes England,MISC PROFESSIONAL FEES,Cido,CARTER JONAS,27/04/2023," 5,448.00 ",LAR,80131800,Real estate management services
"Department for Levelling Up, Housing and Communities",Homes England,BUILDINGS-GAS,Development,CORONA ENERGY,14/04/2023, 596.98 ,LAR,83101600,Oil and gas utilities
"Department for Levelling Up, Housing and Communities",Homes England,BUILDINGS-GAS,"Markets, Partners & Places",CORONA ENERGY,20/04/2023, 421.84 ,LAR,83101600,Oil and gas utilities
"Department for Levelling Up, Housing and Communities",Homes England,BUILDINGS-GAS,Development,CORONA ENERGY,20/04/2023, 442.23 ,LAR,83101600,Oil and gas utilities
"Department for Levelling Up, Housing and Communities",Homes England,BUILDINGS-GAS,Development,CORONA ENERGY,27/04/2023, 990.41 ,LAR,83101600,Oil and gas utilities
"Department for Levelling Up, Housing and Communities",Homes England,BUILDINGS-GAS,Development,CORONA ENERGY,27/04/2023, 847.36 ,LAR,83101600,Oil and gas utilities
"Department for Levelling Up, Housing and Communities",Homes England,ESTATE GENERAL MAINTENANCE,Development,C A STAMP GROUNDS & AGRICULTURE,11/04/2023, 600.00 ,SMA,72101500,Building maintenance and repair services
"Department for Levelling Up, Housing and Communities",Homes England,ESTATE GENERAL MAINTENANCE,"Markets, Partners & Places",C A STAMP GROUNDS & AGRICULTURE,18/04/2023, 864.00 ,SMA,72101500,Building maintenance and repair services
"Department for Levelling Up, Housing and Communities",Homes England,ST FUND LOANS REPAYMENTS,Investment,CREATE DEVELOPMENTS (LONGRIDGE) LTD,28/04/2023," 1,578.36 ",LAR,None,Loans
"Department for Levelling Up, Housing and Communities",Homes England,DATA CENTRE,Cido,CROWN HOSTING DATA CENTRES LIMITED,06/04/2023," 2,719.41 ",SMA,81112000,Data Services
"Department for Levelling Up, Housing and Communities",Homes England,SUBS TO OTHER BODIES,Corporate Resources,BOTTOMLINE TECHNOLOGIES,12/04/2023," 5,978.27 ",LAR,94101600,Professional associations
"Department for Levelling Up, Housing and Communities",Homes England,ST FUND LOANS REPAYMENTS,Investment,C&M CONTRACTORS (MANCHESTER) LTD,03/04/2023," 2,577.36 ",SMA,None,Loans
"Department for Levelling Up, Housing and Communities",Homes England,RI - MONIITORING SURVEYOR FEES,Investment,COLLIERS INTERNATIONAL PROPERTY CONSULTANTS,14/04/2023, 810.00 ,LAR,81101500,Civil Engineering
"Department for Levelling Up, Housing and Communities",Homes England,PROF FEES LOANS CAPITALISED,Investment,COLLIERS INTERNATIONAL PROPERTY CONSULTANTS,14/04/2023," 2,430.00 ",LAR,81101500,Civil Engineering
"Department for Levelling Up, Housing and Communities",Homes England,PROF FEES LOANS CAPITALISED,Investment,COLLIERS INTERNATIONAL PROPERTY CONSULTANTS,14/04/2023," 2,430.00 ",LAR,81101500,Civil Engineering
"Department for Levelling Up, Housing and Communities",Homes England,RI - MONIITORING SURVEYOR FEES,Investment,COLLIERS INTERNATIONAL PROPERTY CONSULTANTS,21/04/2023, 840.00 ,LAR,81101500,Civil Engineering
"Department for Levelling Up, Housing and Communities",Homes England,RI - MONIITORING SURVEYOR FEES,Investment,COLLIERS INTERNATIONAL PROPERTY CONSULTANTS,21/04/2023, 840.00 ,LAR,81101500,Civil Engineering
"Department for Levelling Up, Housing and Communities",Homes England,RI - MONIITORING SURVEYOR FEES,Investment,COLLIERS INTERNATIONAL PROPERTY CONSULTANTS,21/04/2023, 840.00 ,LAR,81101500,Civil Engineering
"Department for Levelling Up, Housing and Communities",Homes England,RI - MONIITORING SURVEYOR FEES,Investment,COLLIERS INTERNATIONAL PROPERTY CONSULTANTS,21/04/2023, 840.00 ,LAR,81101500,Civil Engineering
"Department for Levelling Up, Housing and Communities",Homes England,RI - MONIITORING SURVEYOR FEES,Investment,COLLIERS INTERNATIONAL PROPERTY CONSULTANTS,21/04/2023, 840.00 ,LAR,81101500,Civil Engineering
"Department for Levelling Up, Housing and Communities",Homes England,RI - MONIITORING SURVEYOR FEES,Investment,COLLIERS INTERNATIONAL PROPERTY CONSULTANTS,21/04/2023, 840.00 ,LAR,81101500,Civil Engineering
"Department for Levelling Up, Housing and Communities",Homes England,CONTRACT WORKS,"Markets, Partners & Places",COGNITION LAND & WATER,24/04/2023," 110,474.90 ",SMA,72141500,Land preparation services
"Department for Levelling Up, Housing and Communities",Homes England,LEGAL FEES (PROGRAMME - RDEL),Development,CLARKE WILLMOTT LLP,03/04/2023," 3,330.00 ",LAR,80121600,Business law services
"Department for Levelling Up, Housing and Communities",Homes England,LEGAL FEES (PROGRAMME - RDEL),Investment,CLARKE WILLMOTT LLP,04/04/2023," 1,800.00 ",LAR,80121600,Business law services
"Department for Levelling Up, Housing and Communities",Homes England,LEGAL FEES (PROGRAMME - RDEL),Investment,CLARKE WILLMOTT LLP,04/04/2023, 900.00 ,LAR,80121600,Business law services
"Department for Levelling Up, Housing and Communities",Homes England,LEGAL FEES (PROGRAMME - RDEL),Investment,CLARKE WILLMOTT LLP,13/04/2023, 960.00 ,LAR,80121600,Business law services
"Department for Levelling Up, Housing and Communities",Homes England,LEGAL FEES (PROGRAMME - RDEL),Development,CLARKE WILLMOTT LLP,17/04/2023," 3,679.20 ",LAR,80121600,Business law services
"Department for Levelling Up, Housing and Communities",Homes England,LEGAL FEES (PROGRAMME - CDEL),Investment,CLARKE WILLMOTT LLP,18/04/2023, 720.00 ,LAR,80121600,Business law services
"Department for Levelling Up, Housing and Communities",Homes England,CLEANING,Chief Operating Officer,CHURCHILL CONTRACT SERVICES LTD,12/04/2023," 2,182.21 ",SMA,76111500,General building and office cleaining and maintenance services
"Department for Levelling Up, Housing and Communities",Homes England,CLEANING,Chief Operating Officer,CHURCHILL CONTRACT SERVICES LTD,24/04/2023, 836.16 ,SMA,76111500,General building and office cleaining and maintenance services
"Department for Levelling Up, Housing and Communities",Homes England,SECURITY,Development,C.M.A. (NEMESIS) LTD,19/04/2023, 390.00 ,SMA,92121500,Guard services
"Department for Levelling Up, Housing and Communities",Homes England,LUHBF Loans Additions,Investment,94 CHINBROOK ROAD LIMITED,06/04/2023," 66,588.50 ",MIC,None,Loans
"Department for Levelling Up, Housing and Communities",Homes England,OTHER PROFESSIONAL FEES,Development,CWC GROUP,18/04/2023," 920,972.90 ",MED,72103300,Infrastructure maintenance and repair services
"Department for Levelling Up, Housing and Communities",Homes England,DRAINS & SEWERS,Development,C-ELECT ASSOCIATES LIMITED,14/04/2023, 817.50 ,SMA,72101500,Building maintenance and repair services
"Department for Levelling Up, Housing and Communities",Homes England,DRAINS & SEWERS,Development,C-ELECT ASSOCIATES LIMITED,19/04/2023, 817.50 ,SMA,72101500,Building maintenance and repair services
"Department for Levelling Up, Housing and Communities",Homes England,EXTERNAL BUILDING MAINTENANCE,"Markets, Partners & Places",C-ELECT ASSOCIATES LIMITED,24/04/2023, 277.25 ,SMA,72101500,Building maintenance and repair services
"Department for Levelling Up, Housing and Communities",Homes England,MISC PROFESSIONAL FEES,Development,ANDREW CAMERON & ASSOCIATES,03/04/2023, 718.56 ,MIC,81101500,Civil Engineering
"Department for Levelling Up, Housing and Communities",Homes England,MISC PROFESSIONAL FEES,Development,ANDREW CAMERON & ASSOCIATES,04/04/2023," 1,178.88 ",MIC,81101500,Civil Engineering
"Department for Levelling Up, Housing and Communities",Homes England,EXTERNAL BUILDING MAINTENANCE,"Markets, Partners & Places",CHESTER & NEWMAN PLUMBING & HEATING SERVICES,28/04/2023, 960.00 ,SMA,72101500,Building maintenance and repair services
"Department for Levelling Up, Housing and Communities",Homes England,EXTERNAL BUILDING MAINTENANCE,"Markets, Partners & Places",CHESTER & NEWMAN PLUMBING & HEATING SERVICES,28/04/2023," 1,838.40 ",SMA,72101500,Building maintenance and repair services
"Department for Levelling Up, Housing and Communities",Homes England,EXTERNAL BUILDING MAINTENANCE,"Markets, Partners & Places",CHESTER & NEWMAN PLUMBING & HEATING SERVICES,28/04/2023, 312.00 ,SMA,72101500,Building maintenance and repair services
"Department for Levelling Up, Housing and Communities",Homes England,BUILDINGS-VACANT RATES,"Markets, Partners & Places",Cumberland Council,27/04/2023," 8,526.68 ",PUB,80131500,Lease and rental of property or building
"Department for Levelling Up, Housing and Communities",Homes England,MISC PROFESSIONAL FEES,Development,CB RICHARD ELLIS,05/04/2023," 6,000.00 ",LAR,80101500,Business and corporate management consultation services
"Department for Levelling Up, Housing and Communities",Homes England,OTHER PROFESSIONAL FEES,Development,CB RICHARD ELLIS,05/04/2023," 4,875.00 ",LAR,81101500,Civil Engineering
"Department for Levelling Up, Housing and Communities",Homes England,RI - SITE VALUATION FEES,Investment,CB RICHARD ELLIS,05/04/2023," 24,000.00 ",LAR,80131800,Real estate management services
"Department for Levelling Up, Housing and Communities",Homes England,VALUATION FEES,"Markets, Partners & Places",CB RICHARD ELLIS,12/04/2023," 11,940.00 ",LAR,80131800,Real estate management services
"Department for Levelling Up, Housing and Communities",Homes England,PROPERTY SERVICES,"Markets, Partners & Places",CB RICHARD ELLIS,28/04/2023," 5,400.00 ",LAR,80131800,Real estate management services
"Department for Levelling Up, Housing and Communities",Homes England,MANAGEMENT COSTS,Development,COLLIERS INTERNATIONAL,20/04/2023, 527.52 ,LAR,80131800,Real estate management services
"Department for Levelling Up, Housing and Communities",Homes England,MANAGEMENT COSTS,Development,COLLIERS INTERNATIONAL,20/04/2023, 983.45 ,LAR,80131800,Real estate management services
"Department for Levelling Up, Housing and Communities",Homes England,MANAGEMENT COSTS,Development,COLLIERS INTERNATIONAL,20/04/2023," 1,115.99 ",LAR,80131800,Real estate management services
"Department for Levelling Up, Housing and Communities",Homes England,MANAGEMENT COSTS,Development,COLLIERS INTERNATIONAL,20/04/2023," 2,110.59 ",LAR,80131800,Real estate management services
"Department for Levelling Up, Housing and Communities",Homes England,ESTATE GENERAL MAINTENANCE,Development,CGM GROUP LTD,11/04/2023, 806.35 ,MED,72101500,Building maintenance and repair services
"Department for Levelling Up, Housing and Communities",Homes England,LUHBF Loans Additions,Investment,CLL (BARTON) LTD,24/04/2023," 141,426.90 ",SMA,None,Loans
"Department for Levelling Up, Housing and Communities",Homes England,OTHER PROFESSIONAL FEES,Investment,C A TELECOM UK LTD,03/04/2023," 134,773.97 ",SMA,72103300,Infrastructure maintenance and repair services
"Department for Levelling Up, Housing and Communities",Homes England,OTHER PROFESSIONAL FEES,Investment,C A TELECOM UK LTD,11/04/2023," 267,356.92 ",SMA,72103300,Infrastructure maintenance and repair services
"Department for Levelling Up, Housing and Communities",Homes England,OTHER PROFESSIONAL FEES,Investment,C A TELECOM UK LTD,11/04/2023," 579,704.08 ",SMA,72103300,Infrastructure maintenance and repair services
"Department for Levelling Up, Housing and Communities",Homes England,ESTATE GENERAL MAINTENANCE,Development,CHANNEL ENGINEERING LTD,05/04/2023, 247.20 ,SMA,72101500,Building maintenance and repair services
"Department for Levelling Up, Housing and Communities",Homes England,ESTATE GENERAL MAINTENANCE,Development,CHANNEL ENGINEERING LTD,05/04/2023," 1,200.00 ",SMA,72101500,Building maintenance and repair services
"Department for Levelling Up, Housing and Communities",Homes England,ESTATE GENERAL MAINTENANCE,"Markets, Partners & Places",CHANNEL ENGINEERING LTD,05/04/2023, 166.80 ,SMA,72101500,Building maintenance and repair services
"Department for Levelling Up, Housing and Communities",Homes England,ESTATE GENERAL MAINTENANCE,"Markets, Partners & Places",CHANNEL ENGINEERING LTD,05/04/2023, 606.00 ,SMA,72101500,Building maintenance and repair services
"Department for Levelling Up, Housing and Communities",Homes England,ESTATE GENERAL MAINTENANCE,Development,CHANNEL ENGINEERING LTD,05/04/2023, 270.00 ,SMA,72101500,Building maintenance and repair services
"Department for Levelling Up, Housing and Communities",Homes England,EXTERNAL BUILDING MAINTENANCE,"Markets, Partners & Places",CHANNEL ENGINEERING LTD,05/04/2023, 93.60 ,SMA,72101500,Building maintenance and repair services
"Department for Levelling Up, Housing and Communities",Homes England,EXTERNAL BUILDING MAINTENANCE,"Markets, Partners & Places",CHANNEL ENGINEERING LTD,05/04/2023, 384.00 ,SMA,72101500,Building maintenance and repair services
"Department for Levelling Up, Housing and Communities",Homes England,ESTATE GENERAL MAINTENANCE,Development,CHANNEL ENGINEERING LTD,05/04/2023, 638.40 ,SMA,72101500,Building maintenance and repair services
"Department for Levelling Up, Housing and Communities",Homes England,ESTATE GENERAL MAINTENANCE,Development,CHANNEL ENGINEERING LTD,05/04/2023," 1,416.00 ",SMA,72101500,Building maintenance and repair services
"Department for Levelling Up, Housing and Communities",Homes England,EXTERNAL BUILDING MAINTENANCE,"Markets, Partners & Places",CHANNEL ENGINEERING LTD,19/04/2023, 372.00 ,SMA,72101500,Building maintenance and repair services
"Department for Levelling Up, Housing and Communities",Homes England,EXTERNAL BUILDING MAINTENANCE,"Markets, Partners & Places",CHANNEL ENGINEERING LTD,19/04/2023," 1,164.00 ",SMA,72101500,Building maintenance and repair services
"Department for Levelling Up, Housing and Communities",Homes England,FENCE MAINTENANCE,Development,CHANNEL ENGINEERING LTD,19/04/2023, 240.00 ,SMA,72102900,Facility maintenance and repair services
"Department for Levelling Up, Housing and Communities",Homes England,FENCE MAINTENANCE,Development,CHANNEL ENGINEERING LTD,19/04/2023, 270.00 ,SMA,72102900,Facility maintenance and repair services
"Department for Levelling Up, Housing and Communities",Homes England,EXTERNAL BUILDING MAINTENANCE,"Markets, Partners & Places",CHANNEL ENGINEERING LTD,19/04/2023, 235.20 ,SMA,72101500,Building maintenance and repair services
"Department for Levelling Up, Housing and Communities",Homes England,EXTERNAL BUILDING MAINTENANCE,"Markets, Partners & Places",CHANNEL ENGINEERING LTD,19/04/2023, 750.00 ,SMA,72101500,Building maintenance and repair services
"Department for Levelling Up, Housing and Communities",Homes England,FENCE MAINTENANCE,"Markets, Partners & Places",CHANNEL ENGINEERING LTD,19/04/2023," 8,825.72 ",SMA,72102900,Facility maintenance and repair services
"Department for Levelling Up, Housing and Communities",Homes England,ESTATE GENERAL MAINTENANCE,Development,CHANNEL ENGINEERING LTD,26/04/2023, 630.00 ,SMA,72101500,Building maintenance and repair services
"Department for Levelling Up, Housing and Communities",Homes England,ESTATE GENERAL MAINTENANCE,Development,CHANNEL ENGINEERING LTD,26/04/2023, 709.80 ,SMA,72101500,Building maintenance and repair services
"Department for Levelling Up, Housing and Communities",Homes England,EXTERNAL BUILDING MAINTENANCE,"Markets, Partners & Places",CHANNEL ENGINEERING LTD,26/04/2023, 269.76 ,SMA,72101500,Building maintenance and repair services
"Department for Levelling Up, Housing and Communities",Homes England,EXTERNAL BUILDING MAINTENANCE,"Markets, Partners & Places",CHANNEL ENGINEERING LTD,26/04/2023," 1,212.00 ",SMA,72101500,Building maintenance and repair services
"Department for Levelling Up, Housing and Communities",Homes England,ESTATE GENERAL MAINTENANCE,"Markets, Partners & Places",CHANNEL ENGINEERING LTD,26/04/2023, 360.00 ,SMA,72101500,Building maintenance and repair services
"Department for Levelling Up, Housing and Communities",Homes England,ESTATE GENERAL MAINTENANCE,"Markets, Partners & Places",CHANNEL ENGINEERING LTD,26/04/2023, 540.00 ,SMA,72101500,Building maintenance and repair services
"Department for Levelling Up, Housing and Communities",Homes England,ROADS AND CAR PARKS,Development,CHANNEL ENGINEERING LTD,26/04/2023, 252.00 ,SMA,72101500,Building maintenance and repair services
"Department for Levelling Up, Housing and Communities",Homes England,ROADS AND CAR PARKS,Development,CHANNEL ENGINEERING LTD,26/04/2023, 810.00 ,SMA,72101500,Building maintenance and repair services
"Department for Levelling Up, Housing and Communities",Homes England,MANAGEMENT COSTS,Development,COLLIERS BUILDING CONSULTANCY LIMITED,19/04/2023," 5,400.00 ",LAR,80131800,Real estate management services
"Department for Levelling Up, Housing and Communities",Homes England,PLANNED PREVENTATIVE MAINT CON,Chief Operating Officer,EQUANS FM LIMITED,06/04/2023," 4,395.41 ",LAR,72102900,Facility maintenance and repair services
"Department for Levelling Up, Housing and Communities",Homes England,PLANNED PREVENTATIVE MAINT CON,Chief Operating Officer,EQUANS FM LIMITED,06/04/2023," 4,024.24 ",LAR,72102900,Facility maintenance and repair services
"Department for Levelling Up, Housing and Communities",Homes England,PLANNED PREVENTATIVE MAINT CON,Chief Operating Officer,EQUANS FM LIMITED,06/04/2023, 801.94 ,LAR,72102900,Facility maintenance and repair services
"Department for Levelling Up, Housing and Communities",Homes England,PLANNED PREVENTATIVE MAINT CON,Chief Operating Officer,EQUANS FM LIMITED,06/04/2023," 1,418.66 ",LAR,72102900,Facility maintenance and repair services
"Department for Levelling Up, Housing and Communities",Homes England,PLANNED PREVENTATIVE MAINT CON,Chief Operating Officer,EQUANS FM LIMITED,06/04/2023, 385.57 ,LAR,72102900,Facility maintenance and repair services
"Department for Levelling Up, Housing and Communities",Homes England,PLANNED PREVENTATIVE MAINT CON,Chief Operating Officer,EQUANS FM LIMITED,06/04/2023, 695.66 ,LAR,72102900,Facility maintenance and repair services
"Department for Levelling Up, Housing and Communities",Homes England,CLEANING,Chief Operating Officer,EQUANS FM LIMITED,25/04/2023, 544.32 ,LAR,76111500,General building and office cleaining and maintenance services
"Department for Levelling Up, Housing and Communities",Homes England,CLEANING,Chief Operating Officer,EQUANS FM LIMITED,25/04/2023," 1,875.00 ",LAR,76111500,General building and office cleaining and maintenance services
"Department for Levelling Up, Housing and Communities",Homes England,LEGAL FEES (PROGRAMME - CDEL),Investment,MILLS & REEVE,03/04/2023," 1,500.00 ",LAR,80121600,Business law services
"Department for Levelling Up, Housing and Communities",Homes England,LEGAL FEES (PROGRAMME - RDEL),Investment,MILLS & REEVE,06/04/2023," 2,514.10 ",LAR,80121600,Business law services
"Department for Levelling Up, Housing and Communities",Homes England,LEGAL FEES (PROGRAMME - RDEL),Investment,MILLS & REEVE,06/04/2023," 4,696.85 ",LAR,80121600,Business law services
"Department for Levelling Up, Housing and Communities",Homes England,LEGAL FEES (PROGRAMME - RDEL),Investment,MILLS & REEVE,11/04/2023, 834.00 ,LAR,80121600,Business law services
"Department for Levelling Up, Housing and Communities",Homes England,LEGAL FEES (PROGRAMME - CDEL),Investment,MILLS & REEVE,11/04/2023," 2,241.60 ",LAR,80121600,Business law services
"Department for Levelling Up, Housing and Communities",Homes England,LEGAL FEES (PROGRAMME - RDEL),Investment,MILLS & REEVE,13/04/2023," 1,368.00 ",LAR,80121600,Business law services
"Department for Levelling Up, Housing and Communities",Homes England,LEGAL FEES (PROGRAMME - RDEL),Investment,MILLS & REEVE,13/04/2023," 1,200.00 ",LAR,80121600,Business law services
"Department for Levelling Up, Housing and Communities",Homes England,PROF FEES LOANS CAPITALISED,Investment,MILLS & REEVE,18/04/2023, 903.77 ,LAR,80121600,Business law services
"Department for Levelling Up, Housing and Communities",Homes England,LEGAL FEES (PROGRAMME - RDEL),Investment,MILLS & REEVE,18/04/2023," 4,920.00 ",LAR,80121600,Business law services
"Department for Levelling Up, Housing and Communities",Homes England,LEGAL FEES (PROGRAMME - RDEL),Investment,MILLS & REEVE,19/04/2023," 10,088.46 ",LAR,80121600,Business law services
"Department for Levelling Up, Housing and Communities",Homes England,LEGAL FEES (PROGRAMME - RDEL),Investment,MILLS & REEVE,24/04/2023," 2,964.00 ",LAR,80121600,Business law services
"Department for Levelling Up, Housing and Communities",Homes England,LEGAL FEES (PROGRAMME - RDEL),"Markets, Partners & Places",MILLS & REEVE,24/04/2023, 345.12 ,LAR,80121600,Business law services
"Department for Levelling Up, Housing and Communities",Homes England,DATA CENTRE,Cido,OASIS UK NORTH LIMITED,13/04/2023, 929.18 ,LAR,43231500,Business function specific software
"Department for Levelling Up, Housing and Communities",Homes England,LEGAL FEES (PROGRAMME - RDEL),Chief Customer Office,DRIVERS JONAS DELOITTE,04/04/2023," 760,682.40 ",LAR,80121600,Business law services
"Department for Levelling Up, Housing and Communities",Homes England,MISC PROFESSIONAL FEES,"Markets, Partners & Places",DRIVERS JONAS DELOITTE,06/04/2023," 81,884.02 ",LAR,80101500,Business and corporate management consultation services
"Department for Levelling Up, Housing and Communities",Homes England,PLANNING FEES,Investment,DRIVERS JONAS DELOITTE,13/04/2023," 69,533.10 ",LAR,80131800,Real estate management services
"Department for Levelling Up, Housing and Communities",Homes England,PLANNING FEES,Investment,DRIVERS JONAS DELOITTE,13/04/2023," 51,737.32 ",LAR,80131800,Real estate management services
"Department for Levelling Up, Housing and Communities",Homes England,MISC PROFESSIONAL FEES,Chief Operating Officer,DELOITTE & TOUCHE,04/04/2023," 62,760.00 ",LAR,80101500,Business and Corporate Management Consultation Services
"Department for Levelling Up, Housing and Communities",Homes England,RI - MONIITORING SURVEYOR FEES,Investment,CUSHMAN & WAKEFIELD DEBENHAM TIE LEUNG,04/04/2023," 1,080.00 ",LAR,81101500,Civil Engineering
"Department for Levelling Up, Housing and Communities",Homes England,RI - MONIITORING SURVEYOR FEES,Investment,CUSHMAN & WAKEFIELD DEBENHAM TIE LEUNG,04/04/2023, 960.00 ,LAR,81101500,Civil Engineering
"Department for Levelling Up, Housing and Communities",Homes England,RI - MONIITORING SURVEYOR FEES,Investment,CUSHMAN & WAKEFIELD DEBENHAM TIE LEUNG,04/04/2023, 900.00 ,LAR,81101500,Civil Engineering
"Department for Levelling Up, Housing and Communities",Homes England,RI - MONIITORING SURVEYOR FEES,Investment,CUSHMAN & WAKEFIELD DEBENHAM TIE LEUNG,04/04/2023, 840.00 ,LAR,81101500,Civil Engineering
"Department for Levelling Up, Housing and Communities",Homes England,PROF FEES LOANS CAPITALISED,Investment,CUSHMAN & WAKEFIELD DEBENHAM TIE LEUNG,04/04/2023, 900.00 ,LAR,81101500,Civil Engineering
"Department for Levelling Up, Housing and Communities",Homes England,RI - MONIITORING SURVEYOR FEES,Investment,CUSHMAN & WAKEFIELD DEBENHAM TIE LEUNG,04/04/2023, 960.00 ,LAR,81101500,Civil Engineering
"Department for Levelling Up, Housing and Communities",Homes England,RI - MONIITORING SURVEYOR FEES,Investment,CUSHMAN & WAKEFIELD DEBENHAM TIE LEUNG,04/04/2023, 960.00 ,LAR,81101500,Civil Engineering
"Department for Levelling Up, Housing and Communities",Homes England,RI - SITE VALUATION FEES,Investment,CUSHMAN & WAKEFIELD DEBENHAM TIE LEUNG,05/04/2023," 2,400.00 ",LAR,80131800,Real estate management services
"Department for Levelling Up, Housing and Communities",Homes England,VALUATION FEES,Development,CUSHMAN & WAKEFIELD DEBENHAM TIE LEUNG,05/04/2023," 5,100.00 ",LAR,80131800,Real estate management services
"Department for Levelling Up, Housing and Communities",Homes England,PROPERTY SERVICES,Development,CUSHMAN & WAKEFIELD DEBENHAM TIE LEUNG,06/04/2023," 3,048.00 ",LAR,80131800,Real estate management services
"Department for Levelling Up, Housing and Communities",Homes England,RI - MONIITORING SURVEYOR FEES,Investment,CUSHMAN & WAKEFIELD DEBENHAM TIE LEUNG,11/04/2023," 3,120.00 ",LAR,81101500,Civil Engineering
"Department for Levelling Up, Housing and Communities",Homes England,RI - MONIITORING SURVEYOR FEES,Investment,CUSHMAN & WAKEFIELD DEBENHAM TIE LEUNG,11/04/2023, 960.00 ,LAR,81101500,Civil Engineering
"Department for Levelling Up, Housing and Communities",Homes England,PROPERTY SERVICES,"Markets, Partners & Places",CUSHMAN & WAKEFIELD DEBENHAM TIE LEUNG,12/04/2023," 1,020.00 ",LAR,80131800,Real estate management services
"Department for Levelling Up, Housing and Communities",Homes England,MISC PROFESSIONAL FEES,Investment,CUSHMAN & WAKEFIELD DEBENHAM TIE LEUNG,12/04/2023," 3,223.20 ",LAR,80131800,Real estate management services
"Department for Levelling Up, Housing and Communities",Homes England,RI - MONIITORING SURVEYOR FEES,Investment,CUSHMAN & WAKEFIELD DEBENHAM TIE LEUNG,18/04/2023, 900.00 ,LAR,81101500,Civil Engineering
"Department for Levelling Up, Housing and Communities",Homes England,PROPERTY SERVICES,Development,CUSHMAN & WAKEFIELD DEBENHAM TIE LEUNG,24/04/2023," 1,159.20 ",LAR,80131800,Real estate management services
"Department for Levelling Up, Housing and Communities",Homes England,PROPERTY SERVICES,"Markets, Partners & Places",CUSHMAN & WAKEFIELD DEBENHAM TIE LEUNG,25/04/2023," 3,900.00 ",LAR,80131800,Real estate management services
"Department for Levelling Up, Housing and Communities",Homes England,MISC PROFESSIONAL FEES,Development,CUSHMAN & WAKEFIELD DEBENHAM TIE LEUNG,26/04/2023," 1,020.00 ",LAR,80131800,Real estate management services
"Department for Levelling Up, Housing and Communities",Homes England,CONTRACT WORKS,Development,DSM DEMOLITION LIMITED,25/04/2023," 239,157.11 ",MED,72141500,Land preparation services
"Department for Levelling Up, Housing and Communities",Homes England,RENT PAYABLE,Development,DERBY CITY COUNCIL,18/04/2023, 930.00 ,PUB,80131500,Lease and rental of property or building
"Department for Levelling Up, Housing and Communities",Homes England,RENT PAYABLE,Development,DERBY CITY COUNCIL,18/04/2023, 362.50 ,PUB,80131500,Lease and rental of property or building
"Department for Levelling Up, Housing and Communities",Homes England,DISPOSAL FEES - LEGAL,Development,DWF LLP,14/04/2023," 2,026.80 ",LAR,80121600,Business law services
"Department for Levelling Up, Housing and Communities",Homes England,LEGAL FEES (PROGRAMME - RDEL),Development,DWF LLP,27/04/2023," 1,651.20 ",LAR,80121600,Business law services
"Department for Levelling Up, Housing and Communities",Homes England,LEGAL FEES (PROGRAMME - CDEL),Development,DWF LLP,27/04/2023," 1,928.40 ",LAR,80121600,Business law services
"Department for Levelling Up, Housing and Communities",Homes England,BUILDINGS-VACANT RATES,Development,DERBY CITY COUNCIL,28/04/2023,"-9,689.49 ",PUB,80131500,Lease and rental of property or building
"Department for Levelling Up, Housing and Communities",Homes England,MISC PROFESSIONAL FEES,Development,DATARA MANAGEMENT SOLUTIONS LIMITED,12/04/2023," 11,400.00 ",MIC,80101500,Business and Corporate Management Consultation Services
"Department for Levelling Up, Housing and Communities",Homes England,MANAGEMENT COSTS,Development,DATARA MANAGEMENT SOLUTIONS LIMITED,19/04/2023," 3,060.00 ",MIC,80131800,Real estate management services
"Department for Levelling Up, Housing and Communities",Homes England,MANAGEMENT COSTS,Development,DATARA MANAGEMENT SOLUTIONS LIMITED,19/04/2023," 4,080.00 ",MIC,80131800,Real estate management services
"Department for Levelling Up, Housing and Communities",Homes England,STAFF RECRUITMENT COSTS,Chief Operating Officer,DDC LTD,11/04/2023, 734.84 ,MIC,80111700,Personnel Recruitment
"Department for Levelling Up, Housing and Communities",Homes England,STAFF RECRUITMENT COSTS,Chief Operating Officer,DDC LTD,11/04/2023, 198.00 ,MIC,80111700,Personnel Recruitment
"Department for Levelling Up, Housing and Communities",Homes England,STAFF RECRUITMENT COSTS,Chief Operating Officer,DDC LTD,11/04/2023, 656.40 ,MIC,80111700,Personnel Recruitment
"Department for Levelling Up, Housing and Communities",Homes England,STAFF RECRUITMENT COSTS,Chief Operating Officer,DDC LTD,11/04/2023, 216.00 ,MIC,80111700,Personnel Recruitment
"Department for Levelling Up, Housing and Communities",Homes England,STAFF RECRUITMENT COSTS,Chief Operating Officer,DDC LTD,11/04/2023, 849.11 ,MIC,80111700,Personnel Recruitment
"Department for Levelling Up, Housing and Communities",Homes England,STAFF RECRUITMENT COSTS,Chief Operating Officer,DDC LTD,11/04/2023, 601.00 ,MIC,80111700,Personnel Recruitment
"Department for Levelling Up, Housing and Communities",Homes England,STAFF RECRUITMENT COSTS,Chief Operating Officer,DDC LTD,11/04/2023," 3,409.20 ",MIC,80111700,Personnel Recruitment
"Department for Levelling Up, Housing and Communities",Homes England,STAFF RECRUITMENT COSTS,Chief Operating Officer,DDC LTD,11/04/2023, 122.00 ,MIC,80111700,Personnel Recruitment
"Department for Levelling Up, Housing and Communities",Homes England,STAFF RECRUITMENT COSTS,Chief Operating Officer,DDC LTD,11/04/2023, 472.80 ,MIC,80111700,Personnel Recruitment
"Department for Levelling Up, Housing and Communities",Homes England,NETWORKS,Cido,DAISY CORPORATE SERVICES TRADING LIMITED,14/04/2023," 6,941.09 ",LAR,81112100,Internet Services
"Department for Levelling Up, Housing and Communities",Homes England,MANAGEMENT COSTS,Development,DYNAMICS SECURITY SERVICES UK LTD,18/04/2023," 1,065.30 ",MIC,80131800,Real estate management services
"Department for Levelling Up, Housing and Communities",Homes England,MANAGEMENT COSTS,Development,DYNAMICS SECURITY SERVICES UK LTD,18/04/2023," 1,065.30 ",MIC,80131800,Real estate management services
"Department for Levelling Up, Housing and Communities",Homes England,MANAGEMENT COSTS,Development,DYNAMICS SECURITY SERVICES UK LTD,18/04/2023," 1,065.30 ",MIC,80131800,Real estate management services
"Department for Levelling Up, Housing and Communities",Homes England,MANAGEMENT COSTS,Development,DYNAMICS SECURITY SERVICES UK LTD,18/04/2023, 355.10 ,MIC,80131800,Real estate management services
"Department for Levelling Up, Housing and Communities",Homes England,MANAGEMENT COSTS,Development,DYNAMICS SECURITY SERVICES UK LTD,18/04/2023," 1,597.95 ",MIC,80131800,Real estate management services
"Department for Levelling Up, Housing and Communities",Homes England,LEGAL FEES (PROGRAMME - CDEL),Development,DWF LAW LLP,03/04/2023," 1,060.80 ",LAR,80121600,Business law services
"Department for Levelling Up, Housing and Communities",Homes England,AGENCY STAFF,Chief Operating Officer,DWF LAW LLP,03/04/2023, 600.00 ,LAR,80121600,Business law services
"Department for Levelling Up, Housing and Communities",Homes England,LEGAL FEES (PROGRAMME - RDEL),Development,DWF LAW LLP,03/04/2023," 1,090.20 ",LAR,80121600,Business law services
"Department for Levelling Up, Housing and Communities",Homes England,AGENCY STAFF,Corporate Resources,DWF LAW LLP,03/04/2023," 21,420.00 ",LAR,80121600,Business law services
"Department for Levelling Up, Housing and Communities",Homes England,LEGAL FEES (ADMIN ONLY),Development,DWF LAW LLP,03/04/2023, 600.00 ,LAR,80121600,Business law services
"Department for Levelling Up, Housing and Communities",Homes England,LEGAL FEES (ADMIN ONLY),Development,DWF LAW LLP,03/04/2023, 600.00 ,LAR,80121600,Business law services
"Department for Levelling Up, Housing and Communities",Homes England,LEGAL FEES (PROGRAMME - CDEL),Development,DWF LAW LLP,03/04/2023," 3,318.24 ",LAR,80121600,Business law services
"Department for Levelling Up, Housing and Communities",Homes England,LEGAL FEES (PROGRAMME - CDEL),Development,DWF LAW LLP,04/04/2023," 1,324.92 ",LAR,80121600,Business law services
"Department for Levelling Up, Housing and Communities",Homes England,LEGAL FEES (PROGRAMME - RDEL),Development,DWF LAW LLP,04/04/2023," 7,681.20 ",LAR,80121600,Business law services
"Department for Levelling Up, Housing and Communities",Homes England,LEGAL FEES (ADMIN ONLY),Corporate Resources,DWF LAW LLP,05/04/2023, 600.00 ,LAR,80121600,Business law services
"Department for Levelling Up, Housing and Communities",Homes England,LEGAL FEES (ADMIN ONLY),Cido,DWF LAW LLP,06/04/2023, 600.00 ,LAR,80121600,Business law services
"Department for Levelling Up, Housing and Communities",Homes England,LEGAL FEES (ADMIN ONLY),Cido,DWF LAW LLP,06/04/2023, 600.00 ,LAR,80121600,Business law services
"Department for Levelling Up, Housing and Communities",Homes England,LEGAL FEES (ADMIN ONLY),Cido,DWF LAW LLP,06/04/2023, 600.00 ,LAR,80121600,Business law services
"Department for Levelling Up, Housing and Communities",Homes England,LEGAL FEES (ADMIN ONLY),Cido,DWF LAW LLP,06/04/2023, 420.00 ,LAR,80121600,Business law services
"Department for Levelling Up, Housing and Communities",Homes England,LEGAL FEES (ADMIN ONLY),Cido,DWF LAW LLP,06/04/2023, 600.00 ,LAR,80121600,Business law services
"Department for Levelling Up, Housing and Communities",Homes England,DISPOSAL FEES - LEGAL,Development,DWF LAW LLP,12/04/2023," 1,857.60 ",LAR,80121600,Business law services
"Department for Levelling Up, Housing and Communities",Homes England,DISPOSAL FEES - LEGAL,Development,DWF LAW LLP,14/04/2023, 856.80 ,LAR,80121600,Business law services
"Department for Levelling Up, Housing and Communities",Homes England,AGENCY STAFF,Chief Operating Officer,DWF LAW LLP,14/04/2023, 600.00 ,LAR,80121600,Business law services
"Department for Levelling Up, Housing and Communities",Homes England,DISPOSAL FEES - LEGAL,Development,DWF LAW LLP,14/04/2023,"-13,440.00 ",LAR,80121600,Business law services
"Department for Levelling Up, Housing and Communities",Homes England,PROF FEES LOANS CAPITALISED,Investment,DWF LAW LLP,14/04/2023," 12,463.80 ",LAR,80121600,Business law services
"Department for Levelling Up, Housing and Communities",Homes England,DISPOSAL FEES - LEGAL,Development,DWF LAW LLP,18/04/2023," 9,057.60 ",LAR,80121600,Business law services
"Department for Levelling Up, Housing and Communities",Homes England,LEGAL FEES (PROGRAMME - RDEL),Development,DWF LAW LLP,18/04/2023, 41.00 ,LAR,80121600,Business law services
"Department for Levelling Up, Housing and Communities",Homes England,LEGAL FEES (PROGRAMME - RDEL),Development,DWF LAW LLP,18/04/2023," 4,738.61 ",LAR,80121600,Business law services
"Department for Levelling Up, Housing and Communities",Homes England,LEGAL FEES (PROGRAMME - CDEL),Development,DWF LAW LLP,19/04/2023," 1,117.98 ",LAR,80121600,Business law services
"Department for Levelling Up, Housing and Communities",Homes England,MISC PROFESSIONAL FEES,"Markets, Partners & Places",DWF LAW LLP,20/04/2023," 1,106.40 ",LAR,80121600,Business law services
"Department for Levelling Up, Housing and Communities",Homes England,LEGAL FEES (PROGRAMME - RDEL),Investment,DWF LAW LLP,20/04/2023," 4,200.00 ",LAR,80121600,Business law services
"Department for Levelling Up, Housing and Communities",Homes England,AGENCY STAFF,Chief Customer Office,DWF LAW LLP,21/04/2023, 600.00 ,LAR,80121600,Business law services
"Department for Levelling Up, Housing and Communities",Homes England,DISPOSAL FEES - LEGAL,Development,DWF LAW LLP,21/04/2023," 1,798.20 ",LAR,80121600,Business law services
"Department for Levelling Up, Housing and Communities",Homes England,LEGAL FEES (PROGRAMME - RDEL),Investment,DWF LAW LLP,25/04/2023, 417.60 ,LAR,80121600,Business law services
"Department for Levelling Up, Housing and Communities",Homes England,LEGAL FEES (PROGRAMME - RDEL),Development,DWF LAW LLP,26/04/2023," 1,080.00 ",LAR,80121600,Business law services
"Department for Levelling Up, Housing and Communities",Homes England,LEGAL FEES (PROGRAMME - CDEL),Development,DWF LAW LLP,26/04/2023," 1,825.80 ",LAR,80121600,Business law services
"Department for Levelling Up, Housing and Communities",Homes England,LEGAL FEES (PROGRAMME - CDEL),Development,DWF LAW LLP,26/04/2023," 1,019.40 ",LAR,80121600,Business law services
"Department for Levelling Up, Housing and Communities",Homes England,LEGAL FEES (PROGRAMME - RDEL),Investment,DWF LAW LLP,27/04/2023," 4,303.68 ",LAR,80121600,Business law services
"Department for Levelling Up, Housing and Communities",Homes England,DISPOSAL FEES - LEGAL,"Markets, Partners & Places",DWF LAW LLP,27/04/2023," 1,500.00 ",LAR,80121600,Business law services
"Department for Levelling Up, Housing and Communities",Homes England,LEGAL FEES (PROGRAMME - RDEL),Development,DWF LAW LLP,27/04/2023," 2,934.24 ",LAR,80121600,Business law services
"Department for Levelling Up, Housing and Communities",Homes England,MISC PROFESSIONAL FEES,Cido,DWF LAW LLP,28/04/2023, 540.00 ,LAR,80121600,Business law services
"Department for Levelling Up, Housing and Communities",Homes England,LEGAL FEES (PROGRAMME - RDEL),Development,DWF LAW LLP,28/04/2023," 2,103.42 ",LAR,80121600,Business law services
"Department for Levelling Up, Housing and Communities",Homes England,LEGAL FEES (PROGRAMME - RDEL),Development,DWF LAW LLP,28/04/2023," 3,072.00 ",LAR,80121600,Business law services
"Department for Levelling Up, Housing and Communities",Homes England,LEGAL FEES (PROGRAMME - RDEL),"Markets, Partners & Places",DWF LAW LLP,28/04/2023," 1,499.40 ",LAR,80121600,Business law services
"Department for Levelling Up, Housing and Communities",Homes England,DISPOSAL FEES - LEGAL,Development,DWF LAW LLP,28/04/2023," 1,167.00 ",LAR,80121600,Business law services
"Department for Levelling Up, Housing and Communities",Homes England,LEGAL FEES (PROGRAMME - CDEL),"Markets, Partners & Places",DWF LAW LLP,28/04/2023," 1,395.00 ",LAR,80121600,Business law services
"Department for Levelling Up, Housing and Communities",Homes England,PACKAGE MAINTENANCE & SUBSCRIP,Cido,DB GROUP LTD T/A ESUASIVE,12/04/2023," 4,819.50 ",SMA,43231500,Business function specific software
"Department for Levelling Up, Housing and Communities",Homes England,L&OD STRATEGIC - HR USE ONLY,Chief Operating Officer,ERNST & YOUNG,11/04/2023, 883.20 ,LAR,86101800,In service training and manpower development
"Department for Levelling Up, Housing and Communities",Homes England,L&OD STRATEGIC - HR USE ONLY,Chief Operating Officer,ERNST & YOUNG,19/04/2023," 1,393.20 ",LAR,86101800,In service training and manpower development
"Department for Levelling Up, Housing and Communities",Homes England,L&OD STRATEGIC - HR USE ONLY,Chief Operating Officer,ERNST & YOUNG,28/04/2023, 441.60 ,LAR,86101800,In service training and manpower development
"Department for Levelling Up, Housing and Communities",Homes England,REWARD & EXCELLENCE,Chief Operating Officer,EDENRED (UK GROUP) LTD,05/04/2023," 5,875.00 ",LAR,80111500,Human resource development
"Department for Levelling Up, Housing and Communities",Homes England,MISC PROFESSIONAL FEES,"Markets, Partners & Places",ENVIRONMENTAL RESOURCES MANAGEMENT,24/04/2023," 6,000.00 ",LAR,77101500,Environmental auditing
"Department for Levelling Up, Housing and Communities",Homes England,L&OD STRATEGIC - HR USE ONLY,Chief Operating Officer,EC COUNCIL INTERNATIONAL LIMITED,24/04/2023," 1,066.48 ",LAR,86101800,In service training and manpower development
"Department for Levelling Up, Housing and Communities",Homes England,DISPOSAL FEES - LEGAL,"Markets, Partners & Places",EVERSHEDS CLIENT ACCOUNT,05/04/2023," 48,014.40 ",LAR,80121600,Business law services
"Department for Levelling Up, Housing and Communities",Homes England,LEGAL FEES (PROGRAMME - RDEL),"Markets, Partners & Places",EVERSHEDS CLIENT ACCOUNT,05/04/2023, 708.00 ,LAR,80121600,Business law services
"Department for Levelling Up, Housing and Communities",Homes England,LEGAL FEES (PROGRAMME - RDEL),"Markets, Partners & Places",EVERSHEDS CLIENT ACCOUNT,05/04/2023," 89,277.78 ",LAR,80121600,Business law services
"Department for Levelling Up, Housing and Communities",Homes England,LEGAL FEES (PROGRAMME - RDEL),Development,EVERSHEDS CLIENT ACCOUNT,11/04/2023," 54,445.87 ",LAR,80121600,Business law services
"Department for Levelling Up, Housing and Communities",Homes England,LEGAL FEES (PROGRAMME - RDEL),Investment,EVERSHEDS CLIENT ACCOUNT,13/04/2023," 2,592.00 ",LAR,80121600,Business law services
"Department for Levelling Up, Housing and Communities",Homes England,MISC PROFESSIONAL FEES,Investment,EVERSHEDS CLIENT ACCOUNT,24/04/2023," 5,462.40 ",LAR,80121600,Business law services
"Department for Levelling Up, Housing and Communities",Homes England,LEGAL FEES (PROGRAMME - RDEL),Investment,EVERSHEDS CLIENT ACCOUNT,24/04/2023," 2,400.00 ",LAR,80121600,Business law services
"Department for Levelling Up, Housing and Communities",Homes England,LEGAL FEES (PROGRAMME - RDEL),Investment,EVERSHEDS CLIENT ACCOUNT,24/04/2023," 4,698.00 ",LAR,80121600,Business law services
"Department for Levelling Up, Housing and Communities",Homes England,DISPOSAL FEES - LEGAL,"Markets, Partners & Places",EVERSHEDS CLIENT ACCOUNT,24/04/2023," 10,440.00 ",LAR,80121600,Business law services
"Department for Levelling Up, Housing and Communities",Homes England,DISPOSAL FEES - LEGAL,"Markets, Partners & Places",EVERSHEDS CLIENT ACCOUNT,25/04/2023," 11,791.30 ",LAR,80121600,Business law services
"Department for Levelling Up, Housing and Communities",Homes England,LEGAL FEES (PROGRAMME - RDEL),"Markets, Partners & Places",EVERSHEDS CLIENT ACCOUNT,26/04/2023," 13,726.92 ",LAR,80121600,Business law services
"Department for Levelling Up, Housing and Communities",Homes England,LEGAL FEES (PROGRAMME - RDEL),Investment,EVERSHEDS CLIENT ACCOUNT,26/04/2023," 26,433.60 ",LAR,80121600,Business law services
"Department for Levelling Up, Housing and Communities",Homes England,LEGAL FEES (PROGRAMME - RDEL),Investment,EVERSHEDS CLIENT ACCOUNT,27/04/2023, 873.60 ,LAR,80121600,Business law services
"Department for Levelling Up, Housing and Communities",Homes England,LEGAL FEES (PROGRAMME - RDEL),Investment,EVERSHEDS CLIENT ACCOUNT,27/04/2023," 2,083.20 ",LAR,80121600,Business law services
"Department for Levelling Up, Housing and Communities",Homes England,LEGAL FEES (PROGRAMME - RDEL),Development,EVERSHEDS CLIENT ACCOUNT,27/04/2023," 3,840.00 ",LAR,80121600,Business law services
"Department for Levelling Up, Housing and Communities",Homes England,LEGAL FEES (ADMIN ONLY),Chief Customer Office,EVERSHEDS CLIENT ACCOUNT,27/04/2023," 10,803.60 ",LAR,80121600,Business law services
"Department for Levelling Up, Housing and Communities",Homes England,PLANNING APPLICATIONS,Development,EAST RIDING OF YORKSHIRE COUNCIL,28/04/2023," 2,000.00 ",PUB,80131800,Real estate management services
"Department for Levelling Up, Housing and Communities",Homes England,INVESTMENT IN ASSOC JV ADDITIO,Investment,ECF (GENERAL PARTNER) LTD,20/04/2023," 416,200.00 ",MED,None,Loans
"Department for Levelling Up, Housing and Communities",Homes England,EXTERNAL BUILDING MAINTENANCE,Development,ENIGMA INDUSTRIAL SERVICES LTD,17/04/2023, 420.00 ,LAR,72101500,Building maintenance and repair services
"Department for Levelling Up, Housing and Communities",Homes England,RI - MONIITORING SURVEYOR FEES,Investment,EDDISONS COMMERCIAL LIMITED,13/04/2023, 900.00 ,MED,81101500,Civil Engineering
"Department for Levelling Up, Housing and Communities",Homes England,RI - MONIITORING SURVEYOR FEES,Investment,EDDISONS COMMERCIAL LIMITED,14/04/2023, 900.00 ,MED,81101500,Civil Engineering
"Department for Levelling Up, Housing and Communities",Homes England,RI - MONIITORING SURVEYOR FEES,Investment,EDDISONS COMMERCIAL LIMITED,14/04/2023, 900.00 ,MED,81101500,Civil Engineering
"Department for Levelling Up, Housing and Communities",Homes England,RI - MONIITORING SURVEYOR FEES,Investment,EDDISONS COMMERCIAL LIMITED,24/04/2023, 780.00 ,MED,81101500,Civil Engineering
"Department for Levelling Up, Housing and Communities",Homes England,RI - MONIITORING SURVEYOR FEES,Investment,EDDISONS COMMERCIAL LIMITED,24/04/2023," 1,050.00 ",MED,81101500,Civil Engineering
"Department for Levelling Up, Housing and Communities",Homes England,MISC PROFESSIONAL FEES,Development,EDDISONS COMMERCIAL LIMITED,25/04/2023," 4,439.16 ",MED,81101500,Civil Engineering
"Department for Levelling Up, Housing and Communities",Homes England,PROF FEES LOANS CAPITALISED,Investment,EDDISONS COMMERCIAL LIMITED,26/04/2023, 900.00 ,MED,80131800,Real estate management services
"Department for Levelling Up, Housing and Communities",Homes England,RI - MONIITORING SURVEYOR FEES,Investment,EDDISONS COMMERCIAL LIMITED,26/04/2023, 900.00 ,MED,81101500,Civil Engineering
"Department for Levelling Up, Housing and Communities",Homes England,RI - MONIITORING SURVEYOR FEES,Investment,EDDISONS COMMERCIAL LIMITED,26/04/2023, 900.00 ,MED,81101500,Civil Engineering
"Department for Levelling Up, Housing and Communities",Homes England,RI - MONIITORING SURVEYOR FEES,Investment,EDDISONS COMMERCIAL LIMITED,28/04/2023, 900.00 ,MED,81101500,Civil Engineering
"Department for Levelling Up, Housing and Communities",Homes England,RI - MONIITORING SURVEYOR FEES,Investment,EDDISONS COMMERCIAL LIMITED,28/04/2023, 900.00 ,MED,81101500,Civil Engineering
"Department for Levelling Up, Housing and Communities",Homes England,LT FUND LOANS (PS) ADDITIONS,Investment,EARLS COURT PARTNERSHIP LIMITED,19/04/2023," 162,762.50 ",LAR,None,Loans
"Department for Levelling Up, Housing and Communities",Homes England,OTHER PROFESSIONAL FEES,"Markets, Partners & Places",EAST HAMPSHIRE DISTRICT COUNCIL,05/04/2023," 8,673.04 ",PUB,81101500,Civil Engineering
"Department for Levelling Up, Housing and Communities",Homes England,OTHER PROFESSIONAL FEES,"Markets, Partners & Places",EAST HAMPSHIRE DISTRICT COUNCIL,05/04/2023," 3,493.51 ",PUB,81101500,Civil Engineering
"Department for Levelling Up, Housing and Communities",Homes England,OTHER PROFESSIONAL FEES,"Markets, Partners & Places",EAST HAMPSHIRE DISTRICT COUNCIL,18/04/2023," 44,074.80 ",PUB,81101500,Civil Engineering
"Department for Levelling Up, Housing and Communities",Homes England,PACKAGE MAINTENANCE & SUBSCRIP,Cido,FRONTIER SOFTWARE PLC,13/04/2023," 60,275.87 ",LAR,43231500,Business function specific software
"Department for Levelling Up, Housing and Communities",Homes England,ENGINEERING FEES,"Markets, Partners & Places",AECOM LIMITED,04/04/2023," 3,000.00 ",LAR,81101500,Civil Engineering
"Department for Levelling Up, Housing and Communities",Homes England,MISC PROFESSIONAL FEES,Development,AECOM LIMITED,26/04/2023," 2,990.74 ",LAR,80101500,Business and Corporate Management Consultation Services
"Department for Levelling Up, Housing and Communities",Homes England,ENGINEERING FEES,Development,AECOM LIMITED,28/04/2023," 1,844.40 ",LAR,81101500,Civil Engineering
"Department for Levelling Up, Housing and Communities",Homes England,OTHER PROFESSIONAL FEES,"Markets, Partners & Places",AECOM LIMITED,28/04/2023," 167,817.60 ",LAR,80131800,Real estate management services
"Department for Levelling Up, Housing and Communities",Homes England,VALUATION FEES,Development,SAVILLS UK LIMITED,03/04/2023," 13,200.00 ",LAR,80131800,Real estate management services
"Department for Levelling Up, Housing and Communities",Homes England,PROPERTY SERVICES,Development,SAVILLS UK LIMITED,04/04/2023," 4,200.00 ",LAR,80131800,Real estate management services
"Department for Levelling Up, Housing and Communities",Homes England,PROF FEES LOANS CAPITALISED,Investment,SAVILLS UK LIMITED,06/04/2023, 810.00 ,LAR,80131800,Real estate management services
"Department for Levelling Up, Housing and Communities",Homes England,VALUATION FEES,Development,SAVILLS UK LIMITED,28/04/2023," 11,400.00 ",LAR,80131800,Real estate management services
"Department for Levelling Up, Housing and Communities",Homes England,ST FUND LOANS ADDITIONS,Investment,FP (YE CORNER) LIMITED,28/04/2023," 99,003.00 ",LAR,None,Loans
"Department for Levelling Up, Housing and Communities",Homes England,ESTATE GENERAL MAINTENANCE,Development,FASSFERN FORESTRY LIMITED,13/04/2023," 1,296.00 ",SMA,72101500,Building maintenance and repair services
"Department for Levelling Up, Housing and Communities",Homes England,LUHBF Loans Additions,Investment,FOXGLOVE INVESTMENT HOMES (HR) LIMITED,12/04/2023," 8,521.17 ",MIC,None,Loans
"Department for Levelling Up, Housing and Communities",Homes England,MANAGEMENT COSTS,Development,R FOX T/A SOUTHCOAST MAINTENANCE,14/04/2023," 1,028.40 ",SMA,80131800,Real estate management services
"Department for Levelling Up, Housing and Communities",Homes England,MANAGEMENT COSTS,Development,R FOX T/A SOUTHCOAST MAINTENANCE,14/04/2023," 4,590.00 ",SMA,80131800,Real estate management services
"Department for Levelling Up, Housing and Communities",Homes England,EXTERNAL BUILDING MAINTENANCE,Development,R FOX T/A SOUTHCOAST MAINTENANCE,14/04/2023," 1,944.00 ",SMA,72101500,Building maintenance and repair services
"Department for Levelling Up, Housing and Communities",Homes England,EXTERNAL BUILDING MAINTENANCE,Development,R FOX T/A SOUTHCOAST MAINTENANCE,14/04/2023," 2,280.00 ",SMA,72101500,Building maintenance and repair services
"Department for Levelling Up, Housing and Communities",Homes England,EXTERNAL BUILDING MAINTENANCE,Development,R FOX T/A SOUTHCOAST MAINTENANCE,14/04/2023," 1,140.00 ",SMA,72101500,Building maintenance and repair services
"Department for Levelling Up, Housing and Communities",Homes England,MANAGEMENT COSTS,Development,R FOX T/A SOUTHCOAST MAINTENANCE,14/04/2023," 2,760.00 ",SMA,72101500,Building maintenance and repair services
"Department for Levelling Up, Housing and Communities",Homes England,EXTERNAL BUILDING MAINTENANCE,Development,R FOX T/A SOUTHCOAST MAINTENANCE,14/04/2023," 18,360.00 ",SMA,72101500,Building maintenance and repair services
"Department for Levelling Up, Housing and Communities",Homes England,EXTERNAL BUILDING MAINTENANCE,Development,R FOX T/A SOUTHCOAST MAINTENANCE,19/04/2023," 6,720.00 ",SMA,72101500,Building maintenance and repair services
"Department for Levelling Up, Housing and Communities",Homes England,MANAGEMENT COSTS,Development,R FOX T/A SOUTHCOAST MAINTENANCE,24/04/2023, 374.40 ,SMA,80131800,Real estate management services
"Department for Levelling Up, Housing and Communities",Homes England,EXTERNAL BUILDING MAINTENANCE,Development,R FOX T/A SOUTHCOAST MAINTENANCE,24/04/2023, 180.00 ,SMA,72101500,Building maintenance and repair services
"Department for Levelling Up, Housing and Communities",Homes England,EXTERNAL BUILDING MAINTENANCE,Development,R FOX T/A SOUTHCOAST MAINTENANCE,24/04/2023, 540.00 ,SMA,72101500,Building maintenance and repair services
"Department for Levelling Up, Housing and Communities",Homes England,MANAGEMENT COSTS,Development,R FOX T/A SOUTHCOAST MAINTENANCE,24/04/2023, 528.00 ,SMA,80131800,Real estate management services
"Department for Levelling Up, Housing and Communities",Homes England,MANAGEMENT COSTS,Development,R FOX T/A SOUTHCOAST MAINTENANCE,24/04/2023, 780.00 ,SMA,80131800,Real estate management services
"Department for Levelling Up, Housing and Communities",Homes England,ESTATE GENERAL MAINTENANCE,"Markets, Partners & Places",FALCON SECURITY,18/04/2023," 4,736.40 ",SMA,72101500,Building maintenance and repair services
"Department for Levelling Up, Housing and Communities",Homes England,SECURITY,"Markets, Partners & Places",FALCON SECURITY,18/04/2023," 5,472.00 ",SMA,92121500,Guard services
"Department for Levelling Up, Housing and Communities",Homes England,ESTATE GENERAL MAINTENANCE,Development,FALCON SECURITY,18/04/2023," 4,560.00 ",SMA,72101500,Building maintenance and repair services
"Department for Levelling Up, Housing and Communities",Homes England,ESTATE GENERAL MAINTENANCE,Development,FALCON SECURITY,18/04/2023," 4,368.00 ",SMA,92121500,Guard services
"Department for Levelling Up, Housing and Communities",Homes England,ESTATE GENERAL MAINTENANCE,"Markets, Partners & Places",FALCON SECURITY,18/04/2023," 5,832.00 ",SMA,72101500,Building maintenance and repair services
"Department for Levelling Up, Housing and Communities",Homes England,ESTATE GENERAL MAINTENANCE,"Markets, Partners & Places",FALCON SECURITY,18/04/2023," 1,908.00 ",SMA,72101500,Building maintenance and repair services
"Department for Levelling Up, Housing and Communities",Homes England,ESTATE GENERAL MAINTENANCE,"Markets, Partners & Places",FALCON SECURITY,18/04/2023," 2,736.00 ",SMA,72101500,Building maintenance and repair services
"Department for Levelling Up, Housing and Communities",Homes England,SECURITY,Development,FALCON SECURITY,21/04/2023," 3,672.00 ",SMA,92121500,Guard services
"Department for Levelling Up, Housing and Communities",Homes England,BUILDINGS-ELECTRICITY,Development,FIRST NATIONAL SERVICES LTD,28/04/2023, 268.80 ,SMA,83101800,Electric utilities
"Department for Levelling Up, Housing and Communities",Homes England,SECURITY,Development,FIRST RESPONSE GROUP LTD,25/04/2023, 420.00 ,MED,92121500,Guard services
"Department for Levelling Up, Housing and Communities",Homes England,MANAGEMENT COSTS,"Markets, Partners & Places",FIRST RESPONSE GROUP LTD,25/04/2023," 2,879.96 ",MED,92121500,Guard services
"Department for Levelling Up, Housing and Communities",Homes England,MISC PROFESSIONAL FEES,Chief Customer Office,THE FUEL GROUP LIMITED,05/04/2023," 3,300.00 ",SMA,80111600,Temporary personnel services
"Department for Levelling Up, Housing and Communities",Homes England,MISC PROFESSIONAL FEES,Chief Customer Office,THE FUEL GROUP LIMITED,05/04/2023," 4,455.00 ",SMA,80111600,Temporary personnel services
"Department for Levelling Up, Housing and Communities",Homes England,MISC PROFESSIONAL FEES,Chief Customer Office,THE FUEL GROUP LIMITED,11/04/2023," 3,300.00 ",SMA,80111600,Temporary personnel services
"Department for Levelling Up, Housing and Communities",Homes England,AGENCY STAFF,Cido,THE FUEL GROUP LIMITED,11/04/2023," 2,640.00 ",SMA,80111600,Temporary personnel services
"Department for Levelling Up, Housing and Communities",Homes England,AGENCY STAFF,Chief Customer Office,THE FUEL GROUP LIMITED,12/04/2023," 3,960.00 ",SMA,80111600,Temporary personnel services
"Department for Levelling Up, Housing and Communities",Homes England,AGENCY STAFF,Chief Customer Office,THE FUEL GROUP LIMITED,12/04/2023," 1,320.00 ",SMA,80111600,Temporary personnel services
"Department for Levelling Up, Housing and Communities",Homes England,MISC PROFESSIONAL FEES,Chief Customer Office,THE FUEL GROUP LIMITED,12/04/2023," 2,673.00 ",SMA,80111600,Temporary personnel services
"Department for Levelling Up, Housing and Communities",Homes England,AGENCY STAFF,Investment,THE FUEL GROUP LIMITED,14/04/2023," 2,640.00 ",SMA,80111600,Temporary personnel services
"Department for Levelling Up, Housing and Communities",Homes England,AGENCY STAFF,Chief Customer Office,THE FUEL GROUP LIMITED,14/04/2023," 3,168.00 ",SMA,80111600,Temporary personnel services
"Department for Levelling Up, Housing and Communities",Homes England,AGENCY STAFF,Cido,THE FUEL GROUP LIMITED,14/04/2023," 2,112.00 ",SMA,80111600,Temporary personnel services
"Department for Levelling Up, Housing and Communities",Homes England,AGENCY STAFF,Chief Customer Office,THE FUEL GROUP LIMITED,17/04/2023," 2,376.00 ",SMA,80111600,Temporary personnel services
"Department for Levelling Up, Housing and Communities",Homes England,AGENCY STAFF,Chief Customer Office,THE FUEL GROUP LIMITED,24/04/2023," 3,168.00 ",SMA,80111600,Temporary personnel services
"Department for Levelling Up, Housing and Communities",Homes England,AGENCY STAFF,Cido,THE FUEL GROUP LIMITED,24/04/2023," 2,112.00 ",SMA,80111600,Temporary personnel services
"Department for Levelling Up, Housing and Communities",Homes England,ESTATE GENERAL MAINTENANCE,Development,F T GEARING L/S LTD,11/04/2023, 780.00 ,SMA,72101500,Building maintenance and repair services
"Department for Levelling Up, Housing and Communities",Homes England,ESTATE GENERAL MAINTENANCE,Development,F T GEARING L/S LTD,11/04/2023, 465.22 ,SMA,72101500,Building maintenance and repair services
"Department for Levelling Up, Housing and Communities",Homes England,ESTATE GENERAL MAINTENANCE,Development,F T GEARING L/S LTD,11/04/2023, 569.54 ,SMA,72101500,Building maintenance and repair services
"Department for Levelling Up, Housing and Communities",Homes England,ESTATE GENERAL MAINTENANCE,Development,F T GEARING L/S LTD,11/04/2023, 430.94 ,SMA,72101500,Building maintenance and repair services
"Department for Levelling Up, Housing and Communities",Homes England,PROF FEES LOANS CAPITALISED,Investment,AVISON YOUNG (UK) LTD,03/04/2023," 3,672.00 ",LAR,81101500,Civil Engineering
"Department for Levelling Up, Housing and Communities",Homes England,RI - MONIITORING SURVEYOR FEES,Investment,AVISON YOUNG (UK) LTD,04/04/2023," 1,438.74 ",LAR,81101500,Civil Engineering
"Department for Levelling Up, Housing and Communities",Homes England,RI - MONIITORING SURVEYOR FEES,Investment,AVISON YOUNG (UK) LTD,11/04/2023," 1,320.00 ",LAR,81101500,Civil Engineering
"Department for Levelling Up, Housing and Communities",Homes England,VALUATION FEES,Development,AVISON YOUNG (UK) LTD,19/04/2023," 2,400.00 ",LAR,80131800,Real estate management services
"Department for Levelling Up, Housing and Communities",Homes England,VALUATION FEES,Development,AVISON YOUNG (UK) LTD,25/04/2023," 2,400.00 ",LAR,80131800,Real estate management services
"Department for Levelling Up, Housing and Communities",Homes England,PROPERTY SERVICES,"Markets, Partners & Places",AVISON YOUNG (UK) LTD,25/04/2023," 9,000.00 ",LAR,80131800,Real estate management services
"Department for Levelling Up, Housing and Communities",Homes England,PROPERTY SERVICES,"Markets, Partners & Places",AVISON YOUNG (UK) LTD,26/04/2023," 6,023.10 ",LAR,80131800,Real estate management services
"Department for Levelling Up, Housing and Communities",Homes England,SERVICE CHARGE,Development,GVA LTD,24/04/2023," 41,671.80 ",LAR,80131500,Lease and rental of property or building
"Department for Levelling Up, Housing and Communities",Homes England,SERVICE CHARGE,Development,GVA LTD,24/04/2023," 41,671.80 ",LAR,80131500,Lease and rental of property or building
"Department for Levelling Up, Housing and Communities",Homes England,SERVICE CHARGE,Development,GVA LTD,24/04/2023," 41,671.80 ",LAR,80131500,Lease and rental of property or building
"Department for Levelling Up, Housing and Communities",Homes England,MISC PROFESSIONAL FEES,Chief Operating Officer,GOVERNMENT ACTUARY'S DEPARTMENT,28/04/2023," 11,724.84 ",PUB,84131700,Pension funds
"Department for Levelling Up, Housing and Communities",Homes England,ESTATE GENERAL MAINTENANCE,Development,GRASSTEX LIMITED,24/04/2023," 3,376.68 ",SMA,72101500,Building maintenance and repair services
"Department for Levelling Up, Housing and Communities",Homes England,EXTERNAL BUILDING MAINTENANCE,Development,GHP CONSTRUCTION LIMITED,27/04/2023, 838.60 ,MIC,72101500,Building maintenance and repair services
"Department for Levelling Up, Housing and Communities",Homes England,LUHBF Loans Additions,Investment,GADDES HOMES LTD,25/04/2023," 70,990.00 ",MIC,None,Loans
"Department for Levelling Up, Housing and Communities",Homes England,CAP GRNTS TO LOCAL AUTHORITIES,Investment,GLOUCESTERSHIRE COUNTY COUNCIL,27/04/2023," 4,437,349.66 ",PUB,None,Grants
"Department for Levelling Up, Housing and Communities",Homes England,STAFF RECRUITMENT COSTS,Chief Operating Officer,GENIUS GROUP LIMITED,04/04/2023," 36,000.00 ",SMA,80111700,Personnel Recruitment
"Department for Levelling Up, Housing and Communities",Homes England,SERVICE CHARGES,Chief Operating Officer,GOVERNMENT PROPERTY AGENCY,18/04/2023," 30,870.67 ",PUB,80131500,Lease and rental of property or building
"Department for Levelling Up, Housing and Communities",Homes England,SERVICE CHARGES,Chief Operating Officer,GOVERNMENT PROPERTY AGENCY,18/04/2023," 53,395.89 ",PUB,80131500,Lease and rental of property or building
"Department for Levelling Up, Housing and Communities",Homes England,RENT,Chief Operating Officer,GOVERNMENT PROPERTY AGENCY,18/04/2023," 67,805.81 ",PUB,80131500,Lease and rental of property or building
"Department for Levelling Up, Housing and Communities",Homes England,SERVICE CHARGES,Chief Operating Officer,GOVERNMENT PROPERTY AGENCY,27/04/2023," 3,772.50 ",PUB,80131500,Lease and rental of property or building
"Department for Levelling Up, Housing and Communities",Homes England,SERVICE CHARGES,Chief Operating Officer,GOVERNMENT PROPERTY AGENCY,27/04/2023," 192,853.94 ",PUB,80131500,Lease and rental of property or building
"Department for Levelling Up, Housing and Communities",Homes England,RENT,Chief Operating Officer,GOVERNMENT PROPERTY AGENCY,27/04/2023," 233,954.00 ",PUB,80131500,Lease and rental of property or building
"Department for Levelling Up, Housing and Communities",Homes England,TEAM MEETINGS,Development,The Grand Hotel Birmingham,25/04/2023, 325.00 ,MED,90111600,Meeting facilities
"Department for Levelling Up, Housing and Communities",Homes England,ST FUND LOANS ADDITIONS,Investment,GALTRES ESTATES LIMITED,18/04/2023," 42,034.22 ",MIC,None,Loans
"Department for Levelling Up, Housing and Communities",Homes England,BUILDINGS-VACANT RATES,Development,GOSPORT BOROUGH COUNCIL,19/04/2023, 636.23 ,PUB,80131500,Lease and rental of property or building
"Department for Levelling Up, Housing and Communities",Homes England,BUILDINGS-VACANT RATES,Development,GOSPORT BOROUGH COUNCIL,19/04/2023," 2,305.38 ",PUB,80131500,Lease and rental of property or building
"Department for Levelling Up, Housing and Communities",Homes England,BUILDINGS-VACANT RATES,Development,GOSPORT BOROUGH COUNCIL,19/04/2023," 2,173.80 ",PUB,80131500,Lease and rental of property or building
"Department for Levelling Up, Housing and Communities",Homes England,BUILDINGS-VACANT RATES,Development,GOSPORT BOROUGH COUNCIL,19/04/2023," 3,157.21 ",PUB,80131500,Lease and rental of property or building
"Department for Levelling Up, Housing and Communities",Homes England,BUILDINGS-VACANT RATES,Development,GOSPORT BOROUGH COUNCIL,19/04/2023," 1,905.33 ",PUB,80131500,Lease and rental of property or building
"Department for Levelling Up, Housing and Communities",Homes England,BUILDINGS-VACANT RATES,Development,GOSPORT BOROUGH COUNCIL,19/04/2023," 2,757.95 ",PUB,80131500,Lease and rental of property or building
"Department for Levelling Up, Housing and Communities",Homes England,BUILDINGS-VACANT RATES,Development,GOSPORT BOROUGH COUNCIL,19/04/2023," 2,254.99 ",PUB,80131500,Lease and rental of property or building
"Department for Levelling Up, Housing and Communities",Homes England,BUILDINGS-VACANT RATES,Development,GOSPORT BOROUGH COUNCIL,19/04/2023," 1,415.57 ",PUB,80131500,Lease and rental of property or building
"Department for Levelling Up, Housing and Communities",Homes England,BUILDINGS-VACANT RATES,Development,GOSPORT BOROUGH COUNCIL,19/04/2023," 2,941.13 ",PUB,80131500,Lease and rental of property or building
"Department for Levelling Up, Housing and Communities",Homes England,REV GRNTS TO LOCAL AUTHORITIES,Investment,GUILDFORD BOROUGH COUNCIL,05/04/2023," 265,125.33 ",PUB,None,Grants
"Department for Levelling Up, Housing and Communities",Homes England,CONTRACT WORKS,Investment,GLEEDS ADVISORY LTD,19/04/2023," 117,513.07 ",SMA,72121100,Commercial and office building construction services
"Department for Levelling Up, Housing and Communities",Homes England,AGENCY STAFF,Cido,GREEN PARK INTERIM & EXECUTIVE LTD,05/04/2023," 11,491.20 ",MED,80111600,Temporary personnel services
"Department for Levelling Up, Housing and Communities",Homes England,AGENCY STAFF,Cido,GREEN PARK INTERIM & EXECUTIVE LTD,05/04/2023," 8,618.40 ",MED,80111600,Temporary personnel services
"Department for Levelling Up, Housing and Communities",Homes England,AGENCY STAFF,Development,GREEN PARK INTERIM & EXECUTIVE LTD,06/04/2023," 1,284.00 ",MED,80111600,Temporary personnel services
"Department for Levelling Up, Housing and Communities",Homes England,AGENCY STAFF,Development,GREEN PARK INTERIM & EXECUTIVE LTD,17/04/2023," 1,027.20 ",MED,80111600,Temporary personnel services
"Department for Levelling Up, Housing and Communities",Homes England,AGENCY STAFF,Development,GREEN PARK INTERIM & EXECUTIVE LTD,25/04/2023," 1,027.20 ",MED,80111600,Temporary personnel services
"Department for Levelling Up, Housing and Communities",Homes England,AGENCY STAFF,Development,GREEN PARK INTERIM & EXECUTIVE LTD,25/04/2023," 1,284.00 ",MED,80111600,Temporary personnel services
"Department for Levelling Up, Housing and Communities",Homes England,AGENCY STAFF,Cido,HAYS ACCOUNTANCY & FINANCE,06/04/2023," 2,880.00 ",LAR,80111600,Temporary personnel services
"Department for Levelling Up, Housing and Communities",Homes England,AGENCY STAFF,Cido,HAYS ACCOUNTANCY & FINANCE,06/04/2023," 2,880.00 ",LAR,80111600,Temporary personnel services
"Department for Levelling Up, Housing and Communities",Homes England,AGENCY STAFF,Cido,HAYS ACCOUNTANCY & FINANCE,06/04/2023," 2,880.00 ",LAR,80111600,Temporary personnel services
"Department for Levelling Up, Housing and Communities",Homes England,AGENCY STAFF,Cido,HAYS ACCOUNTANCY & FINANCE,06/04/2023," 1,089.00 ",LAR,80111600,Temporary personnel services
"Department for Levelling Up, Housing and Communities",Homes England,AGENCY STAFF,Corporate Resources,HAYS ACCOUNTANCY & FINANCE,06/04/2023," 2,880.00 ",LAR,80111600,Temporary personnel services
